{"text_format":"1","workbook":"xlsx","n_sheets":29,"sheets":["COVER","Basic Instructions","GETTING STARTED","Footnotes list","METADATA_Output data","METADATA_Model_Description","METADATA_Sources","Table 1 - Supply","Table 2 - Use","Table 3 - Complementary","Table 4 - Carbon seq_stor","CODES","ErrorLog","Lists","MacroBehaviour","Specific Lists","Locks","Mandatory","IsNumeric","MustNotBeNegative","Summations","x StandardFootnotes","x ContentInHiddenSheets","x Between2Cells","x ForbiddenStrings","x MandatoryAtLeast","x Thresholds","x IsFormula","x FootnoteContent"],"not_rendered":{"charts":0,"images":3,"macros":1,"external_links":0,"defined_names":1,"comments":0,"pivot_tables":0},"unopened":[],"bounds":{"document_bytes":16777216,"sheet_cells":100000,"rows_first":2000,"rows_last":500,"rows_between":2000,"halvings":0,"cell_chars":16384,"cell_head_chars":4096},"cells_cut":0,"cells_raw":0,"read":"whole","date_system":"1900"}

{"sheet":"COVER","index":0,"n_rows":9,"n_cols":3,"rows_kept":9,"cut":false,"hidden":false,"merged":[]}
[]
[]
[null,null,{"$f":"UPPER(Lists!K3)","v":"STATISTICAL OFFICE OF THE EUROPEAN UNION"}]
[]
[null,null,{"$f":" Lists!K4","v":"Directorate E: Sectoral and regional statistics"}]
[null,null,{"$f":" Lists!K5","v":"Unit E-2: Environmental statistics and accounts; sustainable development"}]
[null,null,{"$f":"UPPER( Lists!K7)","v":"ECOSYSTEM SERVICES ACCOUNTS"}]
[null,null,{"$f":"CONCATENATE( Lists!K8,\" DATA COLLECTION\")","v":"2024 DATA COLLECTION"}]
[null,null,{"$f":"CONCATENATE(\"Launching date: \", Lists!K9)","v":"Launching date: 19 December 2024"}]

{"sheet":"Basic Instructions","index":1,"n_rows":92,"n_cols":6,"rows_kept":92,"cut":false,"hidden":false,"merged":[[17,2,17,5],[3,2,3,5],[4,2,4,5],[6,2,6,5],[8,2,8,5],[9,2,9,5],[10,2,10,5],[11,2,11,5],[12,2,12,5],[13,2,13,5],[14,2,14,5],[15,2,15,5],[43,2,43,5],[18,2,18,5],[19,2,19,5],[20,2,20,5],[21,2,21,5],[22,2,22,5],[24,2,24,5],[28,2,28,5],[29,2,29,5],[30,2,30,5],[34,2,34,5],[40,2,40,5],[64,2,64,5],[44,2,44,5],[45,2,45,5],[46,2,46,5],[47,2,47,5],[49,2,49,5],[50,2,50,5],[51,2,51,5],[54,2,54,5],[55,3,55,5],[61,2,61,5],[62,2,62,5],[91,2,91,5],[66,2,66,5],[68,2,68,5],[70,2,70,5],[72,2,72,5],[74,2,74,5],[78,2,78,5],[80,2,80,5],[85,2,85,5],[87,2,87,5],[88,2,88,5],[90,2,90,5]]}
[]
[]
[null,null,null,null,null,{"$f":"UPPER( Lists!K3)","v":"STATISTICAL OFFICE OF THE EUROPEAN UNION"}]
[null,null,{"$f":"UPPER( Lists!K7)","v":"ECOSYSTEM SERVICES ACCOUNTS"}]
[null,null,{"$f":"CONCATENATE( Lists!K8,\" DATA COLLECTION\")","v":"2024 DATA COLLECTION"}]
[]
[null,null,"BASIC INSTRUCTIONS"]
[]
[null,null,"Before filling in the questionnaire please read carefully the instructions below. "]
[null,null,"This EXCEL workbook is the questionnaire. "]
[null,null,"VERY IMPORTANT: Please do not delete or add rows to any of the tables in this questionnaire"]
[]
[null,null,"Table of contents"]
[null,null,"1. How to fill in the data sheets of the questionnaire"]
[null,null,"    1.1 Priority data"]
[null,null,"    1.2 Reporting conventions"]
[null,null,"    1.3 Built-in consistency checks"]
[null,null,"2. Flags"]
[null,null,"    2.1 Standard footnotes"]
[null,null,"    2.2 Country-specific explanatory footnotes"]
[null,null,"3. Definitions"]
[null,null,"4. Data submission"]
[null,null,"5. Methodology and questions"]
[]
[null,null,"1 -  How to fill in the data sheets of the questionnaire"]
[]
[null,null,"1.1 Priority data"]
[]
[null,null,"Priority data in this questionnaire are datapoints the reporting of which is foreseen mandatory under amended Regulation (EU) 691/2011 introducing module ecosystem accounts."]
[null,null,"A legend in each worksheet indicated which datapoints are the priority ones. Some of them are calculated automatically if data in input cells are provided."]
[null,null,"When using the built-in validation functions of the reporting tables (i.e. button 'Validate questionnaire'  in Table 1 or 2), cells intended for priority data will turn yellow if left blank ('Warning' message). The 'Warning' is intended for information, at this stage. You may submit the incomplete questionnaire, regardless the 'Warning'. Please see point 1.3 for further information on pre-validation."]
[]
[null,null,"1.2 Reporting conventions"]
[]
[null,null,"Report any real zeros and leave cell empty if you have no data. Do not write text in data cells; use footnotes if you need to provide additional context to any reported datapoint. Non-numeric symbols in cells that are designated for data reporting will result in an automated rejection of the questionnaire and a correction will be needed. "]
[null,null,"Description","Symbol"]
[null,null,"Real zero",0]
[null,null,"Not available",null," (blank/empty cell)"]
[]
[null,null,"Report emissions as a positive number (even though they represent decreases) or a 0, or leave the cell blank (voluntary item)."]
[null,null,"It is possible to insert decimal numbers. Please notice Eurostat will publish only up top two decimal places."]
[]
[null,null,"1.3 Built-in consistency checks"]
[null,null,"The questionnaire has built-in automated checks to verify internal consistency of reported data (e.g. sums across rows and columns, as applicable), using macro functions."]
[null,null,"The checks are activated by clicking on the button 'Validate questionnaire' in the header of each reporting table. Cells with consistency issues will be highlighted with red colour and the issues will be explained in the last worksheet 'ErrorLog'. Please run the automated checks and correct any identified consistency issues before submitting the questionnaire to Eurostat. After correcting the values, you may remove the colour using button 'Restore table colour'."]
[null,null,"To run the consistency checks it is crucial that macros are enabled in the questionnaire. This can be done via button 'Enable Content' in the yellow bar in the top part of the excel file."]
[]
[null,null,"2. Flags"]
[]
[null,null,"Flags (footnote symbols) should be entered in the reporting tables in the footnote columns, next to the value cell. There are two types of footnotes: "]
[null,null,"- Letters for standard footnotes (as defined by Eurostat)"]
[null,null,"- Numbers for country-specific footnotes (to be defined by the data compilers). "]
[]
[null,null,"2.1 Standard footnotes"]
[null,null,"The following footnotes will be used for the automatic data processing and data dissemination. Hence, they cannot be changed:"]
[null,null,"B) break in series","Please use this flag when the reported figure cannot be compared to the data reported for the previous year, e.g. because of new methods or sources being used or when you move from the old calculation rules to the new calculation rules. Please use this flag only when the change in methods, sources or calculation rules has a substantial impact."]
[null,null,"E) estimated data"]
[null,null,"P) provisional"]
[null,null,"To include standard footnotes use the drop-down menu. "]
[]
[null,null,"2.2 Country-specific explanatory footnotes"]
[null,null,"The country-specific footnotes can be used for any meaning beyond the pre-defined footnotes."]
[null,null,"To include a country-specific footnote, please first insert the text in the “Footnote list” sheet starting from number 1. Then in the data table please select the corresponding footnote reference number from the drop-down menu in the footnote column next to the value cell. The text you entered in the 'Footnote list' sheet will then appear automatically next to the footnote reference number. The same explanatory footnote can be chosen for all the values for which the same explanation applies. If by mistake a number is chosen from the drop-down menu, it is sufficient to press the key delete to clean the cell."]
[]
[null,null,"3. Definitions"]
[]
[null,null,"EU reporting for ecosystem services accounts uses the Guidance notes on ecosystem services accounts prepared by the Task force on ecosystem accounting and the Environmental accounts working groups as a methodological reference. The Guidance notes follow the SEEA - Ecosystem Accounting and Annex IX of Regulation (EU) 691/2011 on European environmental-economic accounts to add new modules.  "]
[]
[null,null,"The economic and accounting definitions are those of SNA 2008 and ESA 2010.     "]
[]
[null,null,"4. Data submission"]
[]
[null,null,"The standard tool for the transmission of statistical data is the eDAMIS system. The system creates a secure environment for the transmission of data, it records all data submissions and acknowledges the data delivery. The eDAMIS system has been installed in the National Statistical Institutes. It may be accessed at: "]
[null,null,null,"https://webgate.ec.europa.eu/edamis4/ "]
[null,null,"Please submit this questionnaire to Eurostat using the eDAMIS reporting system. Use the following details: "]
[null,null,"Domain name:",{"$f":" Lists!K12","v":"ENVDATA"}]
[null,null,"Dataset name:",{"$f":" Lists!K13","v":"ENVDATA_ECOSERV_A"}]
[]
[null,null,"Please enter in the eDAMIS field 'year' the reference year for which the data are reported for (closing stock), not the current calendar year. \nAfter filling all dataset details, eDAMIS will automatically name submitted files as 'ENVDATA_ECOSERV_A_cc_yyyy_0000_V000x\" where cc is the country code, yyyy the reference year and x the version of the file. \n"]
[]
[null,null,"Should you have any questions regarding data transmission do not hesitate to contact your local eDAMIS coordinator or the Eurostat eDAMIS helpdesk at: "]
[null,null,"   web page:",{"$f":" Lists!K14","v":"https://cros.ec.europa.eu/book-page/national-transmission-coordinators "}]
[null,null,"   e-mail address:",{"$f":" Lists!K15","v":"ESTAT-DATA-METADATA-SERVICES@ec.europa.eu"}]
[null,null,"   telephone:",{"$f":" Lists!K17","v":"(+352) 4301 33213"}]
[]
[null,null,"5. Methodology and questions"]
[]
[null,null,{"$f":"CONCATENATE(\"The guidelines to report on \",  Lists!K7,\" are available on Eurostat website:\")","v":"The guidelines to report on Ecosystem Services Accounts are available on Eurostat website:"}]
[null,null,{"$f":" Lists!K19","v":"https://ec.europa.eu/eurostat/web/environment/methodology "}]
[]
[null,null,"If you have questions, please send them to the following email addresses:"]
[null,null,{"$f":" Lists!K18","v":"ESTAT-ECOSYSTEMS@EC.EUROPA.EU"}]

{"sheet":"GETTING STARTED","index":2,"n_rows":23,"n_cols":7,"rows_kept":23,"cut":false,"hidden":false,"merged":[[14,3,14,6],[3,2,3,6],[4,2,4,6],[6,2,6,6],[8,2,8,3],[12,2,12,6],[16,3,16,6],[18,3,18,6],[20,3,20,6],[22,3,22,6],[23,2,23,6]]}
[]
[]
[null,null,null,null,null,null,{"$f":"UPPER(Lists!K3)","v":"STATISTICAL OFFICE OF THE EUROPEAN UNION"}]
[null,null,{"$f":"UPPER(Lists!K7)","v":"ECOSYSTEM SERVICES ACCOUNTS"}]
[null,null,{"$f":"CONCATENATE(Lists!K8,\" DATA COLLECTION\")","v":"2024 DATA COLLECTION"}]
[]
[null,null," GETTING STARTED"]
[]
[null,null,"Please select your country (click on the white cell):        ",null,null,null,{"$f":"IF(E9=\"\",\"\",VLOOKUP(E9,Lists!A2:B40,2,FALSE))","v":""}]
[null,null,"Reference year:    "]
[]
[null,null,{"$f":"CONCATENATE(\"The due date for reporting is \",Lists!K10)","v":"The due date for reporting is 13 June 2025"}]
[null,null,{"$f":"\"Who is the primary contact point for the data collection \" &  \"Ecosystem accounts\"&\"?\"","v":"Who is the primary contact point for the data collection Ecosystem accounts?"}]
[]
[null,null,"Name:"]
[]
[null,null,"Institution:"]
[]
[null,null,"Unit:"]
[]
[null,null,"Telephone:"]
[]
[null,null,"Email adress:"]

{"sheet":"Footnotes list","index":3,"n_rows":58,"n_cols":5,"rows_kept":58,"cut":false,"hidden":false,"merged":[[1,3,1,4],[3,3,3,4],[4,3,4,4],[6,3,6,4],[7,3,7,4]]}
[]
[]
[null,null,null,null,{"$f":"UPPER( Lists!K3)","v":"STATISTICAL OFFICE OF THE EUROPEAN UNION"}]
[null,null,null,{"$f":"UPPER( Lists!K7)","v":"ECOSYSTEM SERVICES ACCOUNTS"}]
[null,null,null,{"$f":"CONCATENATE( Lists!K8,\" DATA COLLECTION\")","v":"2024 DATA COLLECTION"}]
[]
[null,null,null,"EXPLANATORY FOOTNOTES"]
[null,null,null,{"$f":"IF('GETTING STARTED'!E9=\"\",\"\",'GETTING STARTED'!E9)","v":""}]
[null,null,null,1,"insert explanatory text here"]
[null,null,null,2]
[null,null,null,3]
[null,null,null,4]
[null,null,null,5]
[null,null,null,6]
[null,null,null,7]
[null,null,null,8]
[null,null,null,9]
[null,null,null,10]
[null,null,null,11]
[null,null,null,12]
[null,null,null,13]
[null,null,null,14]
[null,null,null,15]
[null,null,null,16]
[null,null,null,17]
[null,null,null,18]
[null,null,null,19]
[null,null,null,20]
[null,null,null,21]
[null,null,null,22]
[null,null,null,23]
[null,null,null,24]
[null,null,null,25]
[null,null,null,26]
[null,null,null,27]
[null,null,null,28]
[null,null,null,29]
[null,null,null,30]
[null,null,null,31]
[null,null,null,32]
[null,null,null,33]
[null,null,null,34]
[null,null,null,35]
[null,null,null,36]
[null,null,null,37]
[null,null,null,38]
[null,null,null,39]
[null,null,null,40]
[null,null,null,41]
[null,null,null,42]
[null,null,null,43]
[null,null,null,44]
[null,null,null,45]
[null,null,null,46]
[null,null,null,47]
[null,null,null,48]
[null,null,null,49]
[null,null,null,50]

{"sheet":"METADATA_Output data","index":4,"n_rows":36,"n_cols":11,"rows_kept":36,"cut":false,"hidden":false,"merged":[[1,3,1,10],[6,3,6,10],[7,3,7,10],[3,3,3,10],[4,3,4,10],[5,3,5,10]]}
[]
[]
[]
[null,null,null,"ECOSYSTEM SERVICES ACCOUNTS"]
[]
[null,null,null,"Most headings contain additional instructions for filling requested information. These are shown after clicking on the heading."]
[null,null,null,"METADATA (A) "]
[null,null,null,"Output data"]
[null,null,null,null,"Crop provision","Crop pollination","Wood provision","Air filtration","Global Climate Regulation","Local Climate Regulation","Nature-based tourism"]
[null,null,null,"Level 1 ecosystem typology"]
[null,null,null,"Ecosystem coverage"]
[null,null,null,"Greenhouses"]
[null,null,null,"Deposition Velocity (Vd) approach"]
[null,null,null,"If other Vd approach: \ndescription"]
[null,null,null,"Pollinator species"]
[null,null,null,"Acitivity-based types of bees"]
[null,null,null,"Pollinator crop dependency coefficients"]
[null,null,null,"Exclusion cultivated honey bees"]
[null,null,null,"Spatial allocation pollinator habitats"]
[null,null,null,"Habitat attractiveness"]
[null,null,null,"Forest coverage - FAWS"]
[null,null,null,"Forest coverage - FNAWS"]
[null,null,null,"City coverage"]
[null,null,null,"Temperature"]
[null,null,null,"Length of summer period"]
[null,null,null,"Length of summer period by region"]
[null,null,null,"Buffer zone"]
[null,null,null,"Tourism activities - requiring presence of nature"]
[null,null,null,"Tourism activities - enhanced by presence of nature"]
[null,null,null,"Tourism activities - other"]
[null,null,null,"On-ground/in-situ verification"]
[null,null,null,"If verified on-ground: \ndescription"]
[null,null,null,"Sensitivity analysis"]
[null,null,null,"If sensitivity analysis done:\ndescription"]
[null,null,null,"Uncertainty assessment"]
[null,null,null,"If uncertanties assessment done:\ndescription"]

{"sheet":"METADATA_Model_Description","index":5,"n_rows":18,"n_cols":13,"rows_kept":18,"cut":false,"hidden":false,"merged":[[7,3,7,5],[7,7,7,12],[1,3,1,4],[3,11,3,12],[3,3,3,5],[4,3,4,5],[5,3,5,5],[6,3,6,5],[2,11,2,12]]}
[]
[]
[]
[null,null,null,"ECOSYSTEM SERVICES ACCOUNTS"]
[]
[null,null,null,"Most headings contain additional instructions for filling requested information. These are shown after clicking on the heading."]
[null,null,null,"METADATA (B2)"]
[null,null,null,"Biophysical model description",null,null,null,"Only fill out columns H through M when the default model is NOT used."]
[null,null,null,"Ecosystem service","Use default model","Use INCA tool","IF \nNOT DEFAULT:","Name of model/\nmethodology","Main variables","Parameters","Scale","Spatial resolution","Frequency"]
[null,null,null,"Crop provision",null,null,null,null,null,"(e.g. crop type, production area, yield)"]
[null,null,null,"Crop pollination",null,null,null,null,null,"(e.g. crop type, pollinator species, habitat suitability, crop dependency coefficient)"]
[null,null,null,"Wood provision",null,null,null,null,null,"(e.g. ecosystem type (forest, other wooded land), net increment rate)"]
[null,null,null,"Air filtration",null,null,null,null,null,"(e.g. deposition velocity, PM concentration, wind speed, leaf area)"]
[null,null,null,"Global Climate Regulation - sequestration",null,null,null,null,null,"(e.g. ecosystem type, carbon sequestration rate)"]
[null,null,null,"Global Climate Regulation - storage",null,null,null,null,null,"(e.g. ecosystem type, carbon stock per hectare)"]
[null,null,null,"Local Climate Regulation",null,null,null,null,null,"(e.g. length summer season, air temperature, tree cover, evapotranspiration)"]
[null,null,null,"Nature-based tourism",null,null,null,null,null,"(e.g. region (NUTS), visitor nights, trip purpose)"]
[null,null,null,"Nature-based recreation",null,null,null,null,null,"(e.g. number oudoor visits, time spent, participation rate, trip distance, landscape attractiveness)"]

{"sheet":"METADATA_Sources","index":6,"n_rows":30,"n_cols":11,"rows_kept":30,"cut":false,"hidden":false,"merged":[[7,8,7,10],[30,3,30,4],[1,3,1,4],[3,3,3,4],[4,3,4,4],[5,3,5,4],[6,3,6,4],[7,3,7,4]]}
[]
[]
[]
[null,null,null,"ECOSYSTEM SERVICES ACCOUNTS"]
[]
[null,null,null,"Most headings contain additional instructions for filling requested information. These are shown after clicking on the heading."]
[null,null,null,"METADATA (B1)"]
[null,null,null,"Source data - characteristics",null,null,null,null,"Fill in columns I, J and K if the default dataset from \"INCA tool\" web site was NOT used."]
[null,null,null,"Source dataset name","Used in ecosystem service",null,"Use of default dataset \nfrom \"INCA tool\" web site","IF \nNOT DEFAULT:","Spatial resolution","Reference year of source dataset","Other metadata information"]
[null,null,1,"Ecosystem extent","All services",null,"\n\n\n"]
[null,null,2,"Leaf Area Index","Air filtration"]
[null,null,3,"Particulate Matter (PM) concentration","Air filtration"]
[null,null,4,"Wind speed","Air filtration"]
[null,null,5,"Production per crop","Crop provision"]
[null,null,6,"Area covered by crops","Crop provision"]
[null,null,7,"Pollinator dependencies for crops","Crop pollination"]
[null,null,8,"Crop types","Crop pollination"]
[null,null,9,"Net carbon sequestration","Global climate regulation"]
[null,null,10,"Carbon storage","Global climate regulation"]
[null,null,11,"Land Surface Temperature","Local climate regulation"]
[null,null,12,"Tree Cover Density","Local climate regulation"]
[null,null,13,"Evapotranspiration","Local climate regulation"]
[null,null,14,"Maximum daily air temperature","Local climate regulation"]
[null,null,15,"Overnight stays","Nature-based tourism"]
[null,null,16,"Ecosystem contribution","Nature-based tourism"]
[null,null,17,"Allocation to ecosystem type","Nature-based tourism"]
[null,null,18,"Net (annual) increment","Wood provision"]
[null,null,19]
[null,null,20]
[null,null,21]

{"sheet":"Table 1 - Supply","index":7,"n_rows":67,"n_cols":58,"rows_kept":67,"cut":false,"hidden":false,"merged":[[5,50,5,53],[6,32,6,33],[6,36,6,37],[6,40,6,41],[6,44,6,45],[6,48,6,49],[5,30,5,33],[5,34,5,37],[5,38,5,41],[5,42,5,45],[5,46,5,49],[1,5,1,54],[6,56,6,57],[6,8,6,9],[5,6,5,9],[6,12,6,13],[5,10,5,13],[6,16,6,17],[5,14,5,17],[6,20,6,21],[5,18,5,21],[6,24,6,25],[6,28,6,29],[5,54,5,57],[6,52,6,53],[5,22,5,25],[5,26,5,29]]}
[]
[null,"GEO =>",{"$f":"IF('GETTING STARTED'!G9=\"\",\"\",'GETTING STARTED'!G9)","v":""},null,null,"Table 1 - Ecosystem services supply table"]
[null,"TIME=>",{"$f":"IF('GETTING STARTED'!E10=\"\",\"\",'GETTING STARTED'!E10)","v":""},null,"Country:",{"$f":"IF('GETTING STARTED'!$E$9=\"\",\"\",'GETTING STARTED'!$E$9)","v":""},{"$f":"IF('GETTING STARTED'!$G$9=\"\",\"\",'GETTING STARTED'!$G$9)","v":""}]
[null,"IND_ACCT","TS",null,"Reference year:",{"$f":"IF('GETTING STARTED'!$E$10=\"\",\"\",'GETTING STARTED'!$E$10)","v":""}]
[]
[null,null,null,null,null,null,1,null,null,null,2,null,null,null,3,null,null,null,4,null,null,null,5,null,null,null,6,null,null,null,7,null,null,null,8,null,null,null,9,null,null,null,10,null,null,null,11,null,null,null,12]
[null,"ECOSERV (new)","UNIT",null,"SUPPLY","UNIT","Settlements and other artificial areas","Standard footnotes","Explanatory\nfootnote",null,"Cropland","Standard footnotes","Explanatory\nfootnote",null,"Grassland ","Standard footnotes","Explanatory\nfootnote",null,"Forest and woodland","Standard footnotes","Explanatory\nfootnote",null,"Heathland and shrub","Standard footnotes","Explanatory\nfootnote",null,"Sparsely vegetated ecosystems","Standard footnotes","Explanatory\nfootnote",null,"Inland wetlands","Standard footnotes","Explanatory\nfootnote",null,"Rivers and canals","Standard footnotes","Explanatory\nfootnote",null,"Lakes and reservoirs","Standard footnotes","Explanatory\nfootnote",null,"Marine inlets and transitional waters","Standard footnotes","Explanatory\nfootnote",null,"Coastal beaches, dunes and wetlands","Standard footnotes","Explanatory\nfootnote",null,"Marine ecosystems ","Standard footnotes","Explanatory\nfootnote",null,"TOTAL SUPPLY","Standard footnotes","Explanatory\nfootnote"]
[null,{"$f":"CODES!G8","v":"PROV_CR_MF11_12"},"THS_T",null,"Crop provision","1000 tonnes",{"$f":"IF(COUNTA(G9:G20)<2,\"\",SUM(G9,G20))","v":0},null,null,{"$f":"IF(TRIM(I8)=\"\", \"\", IF(VLOOKUP(I8,'Footnotes list'!$D$9:$E$107,2,FALSE)=0,\"\",VLOOKUP(I8,'Footnotes list'!$D$9:$E$107,2,FALSE) ) )","v":""},{"$f":"IF(COUNTA(K9:K20)<2,\"\",SUM(K9,K20))","v":0},null,null,{"$f":"IF(TRIM(M8)=\"\", \"\", IF(VLOOKUP(M8,'Footnotes list'!$D$9:$E$107,2,FALSE)=0,\"\",VLOOKUP(M8,'Footnotes list'!$D$9:$E$107,2,FALSE) ) )","v":""},{"$f":"IF(COUNTA(O9:O20)<2,\"\",SUM(O9,O20))","v":0},null,null,{"$f":"IF(TRIM(Q8)=\"\", \"\", IF(VLOOKUP(Q8,'Footnotes list'!$D$9:$E$107,2,FALSE)=0,\"\",VLOOKUP(Q8,'Footnotes list'!$D$9:$E$107,2,FALSE) ) )","v":""},{"$f":"IF(COUNTA(S9:S20)<2,\"\",SUM(S9,S20))","v":0},null,null,{"$f":"IF(TRIM(U8)=\"\", \"\", IF(VLOOKUP(U8,'Footnotes list'!$D$9:$E$107,2,FALSE)=0,\"\",VLOOKUP(U8,'Footnotes list'!$D$9:$E$107,2,FALSE) ) )","v":""},{"$f":"IF(COUNTA(W9:W20)<2,\"\",SUM(W9,W20))","v":0},null,null,{"$f":"IF(TRIM(Y8)=\"\", \"\", IF(VLOOKUP(Y8,'Footnotes list'!$D$9:$E$107,2,FALSE)=0,\"\",VLOOKUP(Y8,'Footnotes list'!$D$9:$E$107,2,FALSE) ) )","v":""},{"$f":"IF(COUNTA(AA9:AA20)<2,\"\",SUM(AA9,AA20))","v":0},null,null,{"$f":"IF(TRIM(AC8)=\"\", \"\", IF(VLOOKUP(AC8,'Footnotes list'!$D$9:$E$107,2,FALSE)=0,\"\",VLOOKUP(AC8,'Footnotes list'!$D$9:$E$107,2,FALSE) ) )","v":""},{"$f":"IF(COUNTA(AE9:AE20)<2,\"\",SUM(AE9,AE20))","v":0},null,null,{"$f":"IF(TRIM(AG8)=\"\", \"\", IF(VLOOKUP(AG8,'Footnotes list'!$D$9:$E$107,2,FALSE)=0,\"\",VLOOKUP(AG8,'Footnotes list'!$D$9:$E$107,2,FALSE) ) )","v":""},{"$f":"IF(COUNTA(AI9:AI20)<2,\"\",SUM(AI9,AI20))","v":0},null,null,{"$f":"IF(TRIM(AK8)=\"\", \"\", IF(VLOOKUP(AK8,'Footnotes list'!$D$9:$E$107,2,FALSE)=0,\"\",VLOOKUP(AK8,'Footnotes list'!$D$9:$E$107,2,FALSE) ) )","v":""},{"$f":"IF(COUNTA(AM9:AM20)<2,\"\",SUM(AM9,AM20))","v":0},null,null,{"$f":"IF(TRIM(AO8)=\"\", \"\", IF(VLOOKUP(AO8,'Footnotes list'!$D$9:$E$107,2,FALSE)=0,\"\",VLOOKUP(AO8,'Footnotes list'!$D$9:$E$107,2,FALSE) ) )","v":""},{"$f":"IF(COUNTA(AQ9:AQ20)<2,\"\",SUM(AQ9,AQ20))","v":0},null,null,{"$f":"IF(TRIM(AS8)=\"\", \"\", IF(VLOOKUP(AS8,'Footnotes list'!$D$9:$E$107,2,FALSE)=0,\"\",VLOOKUP(AS8,'Footnotes list'!$D$9:$E$107,2,FALSE) ) )","v":""},{"$f":"IF(COUNTA(AU9:AU20)<2,\"\",SUM(AU9,AU20))","v":0},null,null,{"$f":"IF(TRIM(AW8)=\"\", \"\", IF(VLOOKUP(AW8,'Footnotes list'!$D$9:$E$107,2,FALSE)=0,\"\",VLOOKUP(AW8,'Footnotes list'!$D$9:$E$107,2,FALSE) ) )","v":""},{"$f":"IF(COUNTA(AY9:AY20)<2,\"\",SUM(AY9,AY20))","v":0},null,null,{"$f":"IF(TRIM(BA8)=\"\", \"\", IF(VLOOKUP(BA8,'Footnotes list'!$D$9:$E$107,2,FALSE)=0,\"\",VLOOKUP(BA8,'Footnotes list'!$D$9:$E$107,2,FALSE) ) )","v":""},{"$f":"IF(COUNTA(G8,K8,O8,S8,W8,AA8,AE8,AI8,AM8,AQ8,AU8,AY8)<10,\"\",SUM(G8,K8,O8,S8,W8,AA8,AE8,AI8,AM8,AQ8,AU8,AY8))","v":0},null,null,{"$f":"IF(TRIM(BE8)=\"\", \"\", IF(VLOOKUP(BE8,'Footnotes list'!$D$9:$E$107,2,FALSE)=0,\"\",VLOOKUP(BE8,'Footnotes list'!$D$9:$E$107,2,FALSE) ) )","v":""}]
[null,{"$f":"CODES!G9","v":"PROV_CR_MF11"},"THS_T",null,"MF.1.1   Crops (excluding fodder crops)","1000 tonnes",{"$f":"IF(COUNTA(G10:G19)<10,\"\",SUM(G10:G19))","v":""},null,null,{"$f":"IF(TRIM(I9)=\"\", \"\", IF(VLOOKUP(I9,'Footnotes list'!$D$9:$E$107,2,FALSE)=0,\"\",VLOOKUP(I9,'Footnotes list'!$D$9:$E$107,2,FALSE) ) )","v":""},{"$f":"IF(COUNTA(K10:K19)<10,\"\",SUM(K10:K19))","v":""},null,null,{"$f":"IF(TRIM(M9)=\"\", \"\", IF(VLOOKUP(M9,'Footnotes list'!$D$9:$E$107,2,FALSE)=0,\"\",VLOOKUP(M9,'Footnotes list'!$D$9:$E$107,2,FALSE) ) )","v":""},{"$f":"IF(COUNTA(O10:O19)<10,\"\",SUM(O10:O19))","v":""},null,null,{"$f":"IF(TRIM(Q9)=\"\", \"\", IF(VLOOKUP(Q9,'Footnotes list'!$D$9:$E$107,2,FALSE)=0,\"\",VLOOKUP(Q9,'Footnotes list'!$D$9:$E$107,2,FALSE) ) )","v":""},{"$f":"IF(COUNTA(S10:S19)<10,\"\",SUM(S10:S19))","v":0},null,null,{"$f":"IF(TRIM(U9)=\"\", \"\", IF(VLOOKUP(U9,'Footnotes list'!$D$9:$E$107,2,FALSE)=0,\"\",VLOOKUP(U9,'Footnotes list'!$D$9:$E$107,2,FALSE) ) )","v":""},{"$f":"IF(COUNTA(W10:W19)<10,\"\",SUM(W10:W19))","v":0},null,null,{"$f":"IF(TRIM(Y9)=\"\", \"\", IF(VLOOKUP(Y9,'Footnotes list'!$D$9:$E$107,2,FALSE)=0,\"\",VLOOKUP(Y9,'Footnotes list'!$D$9:$E$107,2,FALSE) ) )","v":""},{"$f":"IF(COUNTA(AA10:AA19)<10,\"\",SUM(AA10:AA19))","v":0},null,null,{"$f":"IF(TRIM(AC9)=\"\", \"\", IF(VLOOKUP(AC9,'Footnotes list'!$D$9:$E$107,2,FALSE)=0,\"\",VLOOKUP(AC9,'Footnotes list'!$D$9:$E$107,2,FALSE) ) )","v":""},{"$f":"IF(COUNTA(AE10:AE19)<10,\"\",SUM(AE10:AE19))","v":0},null,null,{"$f":"IF(TRIM(AG9)=\"\", \"\", IF(VLOOKUP(AG9,'Footnotes list'!$D$9:$E$107,2,FALSE)=0,\"\",VLOOKUP(AG9,'Footnotes list'!$D$9:$E$107,2,FALSE) ) )","v":""},{"$f":"IF(COUNTA(AI10:AI19)<10,\"\",SUM(AI10:AI19))","v":0},null,null,{"$f":"IF(TRIM(AK9)=\"\", \"\", IF(VLOOKUP(AK9,'Footnotes list'!$D$9:$E$107,2,FALSE)=0,\"\",VLOOKUP(AK9,'Footnotes list'!$D$9:$E$107,2,FALSE) ) )","v":""},{"$f":"IF(COUNTA(AM10:AM19)<10,\"\",SUM(AM10:AM19))","v":0},null,null,{"$f":"IF(TRIM(AO9)=\"\", \"\", IF(VLOOKUP(AO9,'Footnotes list'!$D$9:$E$107,2,FALSE)=0,\"\",VLOOKUP(AO9,'Footnotes list'!$D$9:$E$107,2,FALSE) ) )","v":""},{"$f":"IF(COUNTA(AQ10:AQ19)<10,\"\",SUM(AQ10:AQ19))","v":0},null,null,{"$f":"IF(TRIM(AS9)=\"\", \"\", IF(VLOOKUP(AS9,'Footnotes list'!$D$9:$E$107,2,FALSE)=0,\"\",VLOOKUP(AS9,'Footnotes list'!$D$9:$E$107,2,FALSE) ) )","v":""},{"$f":"IF(COUNTA(AU10:AU19)<10,\"\",SUM(AU10:AU19))","v":0},null,null,{"$f":"IF(TRIM(AW9)=\"\", \"\", IF(VLOOKUP(AW9,'Footnotes list'!$D$9:$E$107,2,FALSE)=0,\"\",VLOOKUP(AW9,'Footnotes list'!$D$9:$E$107,2,FALSE) ) )","v":""},{"$f":"IF(COUNTA(AY10:AY19)<10,\"\",SUM(AY10:AY19))","v":0},null,null,{"$f":"IF(TRIM(BA9)=\"\", \"\", IF(VLOOKUP(BA9,'Footnotes list'!$D$9:$E$107,2,FALSE)=0,\"\",VLOOKUP(BA9,'Footnotes list'!$D$9:$E$107,2,FALSE) ) )","v":""},{"$f":"IF(COUNTA(G9,K9,O9,S9,W9,AA9,AE9,AI9,AM9,AQ9,AU9,AY9)<10,\"\",SUM(G9,K9,O9,S9,W9,AA9,AE9,AI9,AM9,AQ9,AU9,AY9))","v":0},null,null,{"$f":"IF(TRIM(BE9)=\"\", \"\", IF(VLOOKUP(BE9,'Footnotes list'!$D$9:$E$107,2,FALSE)=0,\"\",VLOOKUP(BE9,'Footnotes list'!$D$9:$E$107,2,FALSE) ) )","v":""}]
[null,{"$f":"CODES!G10","v":"PROV_CR_MF111"},"THS_T",null,"MF.1.1.1   Cereals ","1000 tonnes",null,null,null,{"$f":"IF(TRIM(I10)=\"\", \"\", IF(VLOOKUP(I10,'Footnotes list'!$D$9:$E$107,2,FALSE)=0,\"\",VLOOKUP(I10,'Footnotes list'!$D$9:$E$107,2,FALSE) ) )","v":""},null,null,null,{"$f":"IF(TRIM(M10)=\"\", \"\", IF(VLOOKUP(M10,'Footnotes list'!$D$9:$E$107,2,FALSE)=0,\"\",VLOOKUP(M10,'Footnotes list'!$D$9:$E$107,2,FALSE) ) )","v":""},null,null,null,{"$f":"IF(TRIM(Q10)=\"\", \"\", IF(VLOOKUP(Q10,'Footnotes list'!$D$9:$E$107,2,FALSE)=0,\"\",VLOOKUP(Q10,'Footnotes list'!$D$9:$E$107,2,FALSE) ) )","v":""},0,null,null,{"$f":"IF(TRIM(U10)=\"\", \"\", IF(VLOOKUP(U10,'Footnotes list'!$D$9:$E$107,2,FALSE)=0,\"\",VLOOKUP(U10,'Footnotes list'!$D$9:$E$107,2,FALSE) ) )","v":""},0,null,null,{"$f":"IF(TRIM(Y10)=\"\", \"\", IF(VLOOKUP(Y10,'Footnotes list'!$D$9:$E$107,2,FALSE)=0,\"\",VLOOKUP(Y10,'Footnotes list'!$D$9:$E$107,2,FALSE) ) )","v":""},0,null,null,{"$f":"IF(TRIM(AC10)=\"\", \"\", IF(VLOOKUP(AC10,'Footnotes list'!$D$9:$E$107,2,FALSE)=0,\"\",VLOOKUP(AC10,'Footnotes list'!$D$9:$E$107,2,FALSE) ) )","v":""},0,null,null,{"$f":"IF(TRIM(AG10)=\"\", \"\", IF(VLOOKUP(AG10,'Footnotes list'!$D$9:$E$107,2,FALSE)=0,\"\",VLOOKUP(AG10,'Footnotes list'!$D$9:$E$107,2,FALSE) ) )","v":""},0,null,null,{"$f":"IF(TRIM(AK10)=\"\", \"\", IF(VLOOKUP(AK10,'Footnotes list'!$D$9:$E$107,2,FALSE)=0,\"\",VLOOKUP(AK10,'Footnotes list'!$D$9:$E$107,2,FALSE) ) )","v":""},0,null,null,{"$f":"IF(TRIM(AO10)=\"\", \"\", IF(VLOOKUP(AO10,'Footnotes list'!$D$9:$E$107,2,FALSE)=0,\"\",VLOOKUP(AO10,'Footnotes list'!$D$9:$E$107,2,FALSE) ) )","v":""},0,null,null,{"$f":"IF(TRIM(AS10)=\"\", \"\", IF(VLOOKUP(AS10,'Footnotes list'!$D$9:$E$107,2,FALSE)=0,\"\",VLOOKUP(AS10,'Footnotes list'!$D$9:$E$107,2,FALSE) ) )","v":""},0,null,null,{"$f":"IF(TRIM(AW10)=\"\", \"\", IF(VLOOKUP(AW10,'Footnotes list'!$D$9:$E$107,2,FALSE)=0,\"\",VLOOKUP(AW10,'Footnotes list'!$D$9:$E$107,2,FALSE) ) )","v":""},0,null,null,{"$f":"IF(TRIM(BA10)=\"\", \"\", IF(VLOOKUP(BA10,'Footnotes list'!$D$9:$E$107,2,FALSE)=0,\"\",VLOOKUP(BA10,'Footnotes list'!$D$9:$E$107,2,FALSE) ) )","v":""},"",null,null,{"$f":"IF(TRIM(BE10)=\"\", \"\", IF(VLOOKUP(BE10,'Footnotes list'!$D$9:$E$107,2,FALSE)=0,\"\",VLOOKUP(BE10,'Footnotes list'!$D$9:$E$107,2,FALSE) ) )","v":""}]
[null,{"$f":"CODES!G11","v":"PROV_CR_MF112"},"THS_T",null,"MF.1.1.2   Roots, tubers","1000 tonnes",null,null,null,{"$f":"IF(TRIM(I11)=\"\", \"\", IF(VLOOKUP(I11,'Footnotes list'!$D$9:$E$107,2,FALSE)=0,\"\",VLOOKUP(I11,'Footnotes list'!$D$9:$E$107,2,FALSE) ) )","v":""},null,null,null,{"$f":"IF(TRIM(M11)=\"\", \"\", IF(VLOOKUP(M11,'Footnotes list'!$D$9:$E$107,2,FALSE)=0,\"\",VLOOKUP(M11,'Footnotes list'!$D$9:$E$107,2,FALSE) ) )","v":""},null,null,null,{"$f":"IF(TRIM(Q11)=\"\", \"\", IF(VLOOKUP(Q11,'Footnotes list'!$D$9:$E$107,2,FALSE)=0,\"\",VLOOKUP(Q11,'Footnotes list'!$D$9:$E$107,2,FALSE) ) )","v":""},0,null,null,{"$f":"IF(TRIM(U11)=\"\", \"\", IF(VLOOKUP(U11,'Footnotes list'!$D$9:$E$107,2,FALSE)=0,\"\",VLOOKUP(U11,'Footnotes list'!$D$9:$E$107,2,FALSE) ) )","v":""},0,null,null,{"$f":"IF(TRIM(Y11)=\"\", \"\", IF(VLOOKUP(Y11,'Footnotes list'!$D$9:$E$107,2,FALSE)=0,\"\",VLOOKUP(Y11,'Footnotes list'!$D$9:$E$107,2,FALSE) ) )","v":""},0,null,null,{"$f":"IF(TRIM(AC11)=\"\", \"\", IF(VLOOKUP(AC11,'Footnotes list'!$D$9:$E$107,2,FALSE)=0,\"\",VLOOKUP(AC11,'Footnotes list'!$D$9:$E$107,2,FALSE) ) )","v":""},0,null,null,{"$f":"IF(TRIM(AG11)=\"\", \"\", IF(VLOOKUP(AG11,'Footnotes list'!$D$9:$E$107,2,FALSE)=0,\"\",VLOOKUP(AG11,'Footnotes list'!$D$9:$E$107,2,FALSE) ) )","v":""},0,null,null,{"$f":"IF(TRIM(AK11)=\"\", \"\", IF(VLOOKUP(AK11,'Footnotes list'!$D$9:$E$107,2,FALSE)=0,\"\",VLOOKUP(AK11,'Footnotes list'!$D$9:$E$107,2,FALSE) ) )","v":""},0,null,null,{"$f":"IF(TRIM(AO11)=\"\", \"\", IF(VLOOKUP(AO11,'Footnotes list'!$D$9:$E$107,2,FALSE)=0,\"\",VLOOKUP(AO11,'Footnotes list'!$D$9:$E$107,2,FALSE) ) )","v":""},0,null,null,{"$f":"IF(TRIM(AS11)=\"\", \"\", IF(VLOOKUP(AS11,'Footnotes list'!$D$9:$E$107,2,FALSE)=0,\"\",VLOOKUP(AS11,'Footnotes list'!$D$9:$E$107,2,FALSE) ) )","v":""},0,null,null,{"$f":"IF(TRIM(AW11)=\"\", \"\", IF(VLOOKUP(AW11,'Footnotes list'!$D$9:$E$107,2,FALSE)=0,\"\",VLOOKUP(AW11,'Footnotes list'!$D$9:$E$107,2,FALSE) ) )","v":""},0,null,null,{"$f":"IF(TRIM(BA11)=\"\", \"\", IF(VLOOKUP(BA11,'Footnotes list'!$D$9:$E$107,2,FALSE)=0,\"\",VLOOKUP(BA11,'Footnotes list'!$D$9:$E$107,2,FALSE) ) )","v":""},"",null,null,{"$f":"IF(TRIM(BE11)=\"\", \"\", IF(VLOOKUP(BE11,'Footnotes list'!$D$9:$E$107,2,FALSE)=0,\"\",VLOOKUP(BE11,'Footnotes list'!$D$9:$E$107,2,FALSE) ) )","v":""}]
[null,{"$f":"CODES!G12","v":"PROV_CR_MF113"},"THS_T",null,"MF.1.1.3   Sugar crops ","1000 tonnes",null,null,null,{"$f":"IF(TRIM(I12)=\"\", \"\", IF(VLOOKUP(I12,'Footnotes list'!$D$9:$E$107,2,FALSE)=0,\"\",VLOOKUP(I12,'Footnotes list'!$D$9:$E$107,2,FALSE) ) )","v":""},null,null,null,{"$f":"IF(TRIM(M12)=\"\", \"\", IF(VLOOKUP(M12,'Footnotes list'!$D$9:$E$107,2,FALSE)=0,\"\",VLOOKUP(M12,'Footnotes list'!$D$9:$E$107,2,FALSE) ) )","v":""},null,null,null,{"$f":"IF(TRIM(Q12)=\"\", \"\", IF(VLOOKUP(Q12,'Footnotes list'!$D$9:$E$107,2,FALSE)=0,\"\",VLOOKUP(Q12,'Footnotes list'!$D$9:$E$107,2,FALSE) ) )","v":""},0,null,null,{"$f":"IF(TRIM(U12)=\"\", \"\", IF(VLOOKUP(U12,'Footnotes list'!$D$9:$E$107,2,FALSE)=0,\"\",VLOOKUP(U12,'Footnotes list'!$D$9:$E$107,2,FALSE) ) )","v":""},0,null,null,{"$f":"IF(TRIM(Y12)=\"\", \"\", IF(VLOOKUP(Y12,'Footnotes list'!$D$9:$E$107,2,FALSE)=0,\"\",VLOOKUP(Y12,'Footnotes list'!$D$9:$E$107,2,FALSE) ) )","v":""},0,null,null,{"$f":"IF(TRIM(AC12)=\"\", \"\", IF(VLOOKUP(AC12,'Footnotes list'!$D$9:$E$107,2,FALSE)=0,\"\",VLOOKUP(AC12,'Footnotes list'!$D$9:$E$107,2,FALSE) ) )","v":""},0,null,null,{"$f":"IF(TRIM(AG12)=\"\", \"\", IF(VLOOKUP(AG12,'Footnotes list'!$D$9:$E$107,2,FALSE)=0,\"\",VLOOKUP(AG12,'Footnotes list'!$D$9:$E$107,2,FALSE) ) )","v":""},0,null,null,{"$f":"IF(TRIM(AK12)=\"\", \"\", IF(VLOOKUP(AK12,'Footnotes list'!$D$9:$E$107,2,FALSE)=0,\"\",VLOOKUP(AK12,'Footnotes list'!$D$9:$E$107,2,FALSE) ) )","v":""},0,null,null,{"$f":"IF(TRIM(AO12)=\"\", \"\", IF(VLOOKUP(AO12,'Footnotes list'!$D$9:$E$107,2,FALSE)=0,\"\",VLOOKUP(AO12,'Footnotes list'!$D$9:$E$107,2,FALSE) ) )","v":""},0,null,null,{"$f":"IF(TRIM(AS12)=\"\", \"\", IF(VLOOKUP(AS12,'Footnotes list'!$D$9:$E$107,2,FALSE)=0,\"\",VLOOKUP(AS12,'Footnotes list'!$D$9:$E$107,2,FALSE) ) )","v":""},0,null,null,{"$f":"IF(TRIM(AW12)=\"\", \"\", IF(VLOOKUP(AW12,'Footnotes list'!$D$9:$E$107,2,FALSE)=0,\"\",VLOOKUP(AW12,'Footnotes list'!$D$9:$E$107,2,FALSE) ) )","v":""},0,null,null,{"$f":"IF(TRIM(BA12)=\"\", \"\", IF(VLOOKUP(BA12,'Footnotes list'!$D$9:$E$107,2,FALSE)=0,\"\",VLOOKUP(BA12,'Footnotes list'!$D$9:$E$107,2,FALSE) ) )","v":""},"",null,null,{"$f":"IF(TRIM(BE12)=\"\", \"\", IF(VLOOKUP(BE12,'Footnotes list'!$D$9:$E$107,2,FALSE)=0,\"\",VLOOKUP(BE12,'Footnotes list'!$D$9:$E$107,2,FALSE) ) )","v":""}]
[null,{"$f":"CODES!G13","v":"PROV_CR_MF114"},"THS_T",null,"MF.1.1.4   Pulses","1000 tonnes",null,null,null,{"$f":"IF(TRIM(I13)=\"\", \"\", IF(VLOOKUP(I13,'Footnotes list'!$D$9:$E$107,2,FALSE)=0,\"\",VLOOKUP(I13,'Footnotes list'!$D$9:$E$107,2,FALSE) ) )","v":""},null,null,null,{"$f":"IF(TRIM(M13)=\"\", \"\", IF(VLOOKUP(M13,'Footnotes list'!$D$9:$E$107,2,FALSE)=0,\"\",VLOOKUP(M13,'Footnotes list'!$D$9:$E$107,2,FALSE) ) )","v":""},null,null,null,{"$f":"IF(TRIM(Q13)=\"\", \"\", IF(VLOOKUP(Q13,'Footnotes list'!$D$9:$E$107,2,FALSE)=0,\"\",VLOOKUP(Q13,'Footnotes list'!$D$9:$E$107,2,FALSE) ) )","v":""},0,null,null,{"$f":"IF(TRIM(U13)=\"\", \"\", IF(VLOOKUP(U13,'Footnotes list'!$D$9:$E$107,2,FALSE)=0,\"\",VLOOKUP(U13,'Footnotes list'!$D$9:$E$107,2,FALSE) ) )","v":""},0,null,null,{"$f":"IF(TRIM(Y13)=\"\", \"\", IF(VLOOKUP(Y13,'Footnotes list'!$D$9:$E$107,2,FALSE)=0,\"\",VLOOKUP(Y13,'Footnotes list'!$D$9:$E$107,2,FALSE) ) )","v":""},0,null,null,{"$f":"IF(TRIM(AC13)=\"\", \"\", IF(VLOOKUP(AC13,'Footnotes list'!$D$9:$E$107,2,FALSE)=0,\"\",VLOOKUP(AC13,'Footnotes list'!$D$9:$E$107,2,FALSE) ) )","v":""},0,null,null,{"$f":"IF(TRIM(AG13)=\"\", \"\", IF(VLOOKUP(AG13,'Footnotes list'!$D$9:$E$107,2,FALSE)=0,\"\",VLOOKUP(AG13,'Footnotes list'!$D$9:$E$107,2,FALSE) ) )","v":""},0,null,null,{"$f":"IF(TRIM(AK13)=\"\", \"\", IF(VLOOKUP(AK13,'Footnotes list'!$D$9:$E$107,2,FALSE)=0,\"\",VLOOKUP(AK13,'Footnotes list'!$D$9:$E$107,2,FALSE) ) )","v":""},0,null,null,{"$f":"IF(TRIM(AO13)=\"\", \"\", IF(VLOOKUP(AO13,'Footnotes list'!$D$9:$E$107,2,FALSE)=0,\"\",VLOOKUP(AO13,'Footnotes list'!$D$9:$E$107,2,FALSE) ) )","v":""},0,null,null,{"$f":"IF(TRIM(AS13)=\"\", \"\", IF(VLOOKUP(AS13,'Footnotes list'!$D$9:$E$107,2,FALSE)=0,\"\",VLOOKUP(AS13,'Footnotes list'!$D$9:$E$107,2,FALSE) ) )","v":""},0,null,null,{"$f":"IF(TRIM(AW13)=\"\", \"\", IF(VLOOKUP(AW13,'Footnotes list'!$D$9:$E$107,2,FALSE)=0,\"\",VLOOKUP(AW13,'Footnotes list'!$D$9:$E$107,2,FALSE) ) )","v":""},0,null,null,{"$f":"IF(TRIM(BA13)=\"\", \"\", IF(VLOOKUP(BA13,'Footnotes list'!$D$9:$E$107,2,FALSE)=0,\"\",VLOOKUP(BA13,'Footnotes list'!$D$9:$E$107,2,FALSE) ) )","v":""},"",null,null,{"$f":"IF(TRIM(BE13)=\"\", \"\", IF(VLOOKUP(BE13,'Footnotes list'!$D$9:$E$107,2,FALSE)=0,\"\",VLOOKUP(BE13,'Footnotes list'!$D$9:$E$107,2,FALSE) ) )","v":""}]
[null,{"$f":"CODES!G14","v":"PROV_CR_MF115"},"THS_T",null,"MF.1.1.5   Nuts ","1000 tonnes",null,null,null,{"$f":"IF(TRIM(I14)=\"\", \"\", IF(VLOOKUP(I14,'Footnotes list'!$D$9:$E$107,2,FALSE)=0,\"\",VLOOKUP(I14,'Footnotes list'!$D$9:$E$107,2,FALSE) ) )","v":""},null,null,null,{"$f":"IF(TRIM(M14)=\"\", \"\", IF(VLOOKUP(M14,'Footnotes list'!$D$9:$E$107,2,FALSE)=0,\"\",VLOOKUP(M14,'Footnotes list'!$D$9:$E$107,2,FALSE) ) )","v":""},null,null,null,{"$f":"IF(TRIM(Q14)=\"\", \"\", IF(VLOOKUP(Q14,'Footnotes list'!$D$9:$E$107,2,FALSE)=0,\"\",VLOOKUP(Q14,'Footnotes list'!$D$9:$E$107,2,FALSE) ) )","v":""},0,null,null,{"$f":"IF(TRIM(U14)=\"\", \"\", IF(VLOOKUP(U14,'Footnotes list'!$D$9:$E$107,2,FALSE)=0,\"\",VLOOKUP(U14,'Footnotes list'!$D$9:$E$107,2,FALSE) ) )","v":""},0,null,null,{"$f":"IF(TRIM(Y14)=\"\", \"\", IF(VLOOKUP(Y14,'Footnotes list'!$D$9:$E$107,2,FALSE)=0,\"\",VLOOKUP(Y14,'Footnotes list'!$D$9:$E$107,2,FALSE) ) )","v":""},0,null,null,{"$f":"IF(TRIM(AC14)=\"\", \"\", IF(VLOOKUP(AC14,'Footnotes list'!$D$9:$E$107,2,FALSE)=0,\"\",VLOOKUP(AC14,'Footnotes list'!$D$9:$E$107,2,FALSE) ) )","v":""},0,null,null,{"$f":"IF(TRIM(AG14)=\"\", \"\", IF(VLOOKUP(AG14,'Footnotes list'!$D$9:$E$107,2,FALSE)=0,\"\",VLOOKUP(AG14,'Footnotes list'!$D$9:$E$107,2,FALSE) ) )","v":""},0,null,null,{"$f":"IF(TRIM(AK14)=\"\", \"\", IF(VLOOKUP(AK14,'Footnotes list'!$D$9:$E$107,2,FALSE)=0,\"\",VLOOKUP(AK14,'Footnotes list'!$D$9:$E$107,2,FALSE) ) )","v":""},0,null,null,{"$f":"IF(TRIM(AO14)=\"\", \"\", IF(VLOOKUP(AO14,'Footnotes list'!$D$9:$E$107,2,FALSE)=0,\"\",VLOOKUP(AO14,'Footnotes list'!$D$9:$E$107,2,FALSE) ) )","v":""},0,null,null,{"$f":"IF(TRIM(AS14)=\"\", \"\", IF(VLOOKUP(AS14,'Footnotes list'!$D$9:$E$107,2,FALSE)=0,\"\",VLOOKUP(AS14,'Footnotes list'!$D$9:$E$107,2,FALSE) ) )","v":""},0,null,null,{"$f":"IF(TRIM(AW14)=\"\", \"\", IF(VLOOKUP(AW14,'Footnotes list'!$D$9:$E$107,2,FALSE)=0,\"\",VLOOKUP(AW14,'Footnotes list'!$D$9:$E$107,2,FALSE) ) )","v":""},0,null,null,{"$f":"IF(TRIM(BA14)=\"\", \"\", IF(VLOOKUP(BA14,'Footnotes list'!$D$9:$E$107,2,FALSE)=0,\"\",VLOOKUP(BA14,'Footnotes list'!$D$9:$E$107,2,FALSE) ) )","v":""},"",null,null,{"$f":"IF(TRIM(BE14)=\"\", \"\", IF(VLOOKUP(BE14,'Footnotes list'!$D$9:$E$107,2,FALSE)=0,\"\",VLOOKUP(BE14,'Footnotes list'!$D$9:$E$107,2,FALSE) ) )","v":""}]
[null,{"$f":"CODES!G15","v":"PROV_CR_MF116"},"THS_T",null,"MF.1.1.6   Oil-bearing crops ","1000 tonnes",null,null,null,{"$f":"IF(TRIM(I15)=\"\", \"\", IF(VLOOKUP(I15,'Footnotes list'!$D$9:$E$107,2,FALSE)=0,\"\",VLOOKUP(I15,'Footnotes list'!$D$9:$E$107,2,FALSE) ) )","v":""},null,null,null,{"$f":"IF(TRIM(M15)=\"\", \"\", IF(VLOOKUP(M15,'Footnotes list'!$D$9:$E$107,2,FALSE)=0,\"\",VLOOKUP(M15,'Footnotes list'!$D$9:$E$107,2,FALSE) ) )","v":""},null,null,null,{"$f":"IF(TRIM(Q15)=\"\", \"\", IF(VLOOKUP(Q15,'Footnotes list'!$D$9:$E$107,2,FALSE)=0,\"\",VLOOKUP(Q15,'Footnotes list'!$D$9:$E$107,2,FALSE) ) )","v":""},0,null,null,{"$f":"IF(TRIM(U15)=\"\", \"\", IF(VLOOKUP(U15,'Footnotes list'!$D$9:$E$107,2,FALSE)=0,\"\",VLOOKUP(U15,'Footnotes list'!$D$9:$E$107,2,FALSE) ) )","v":""},0,null,null,{"$f":"IF(TRIM(Y15)=\"\", \"\", IF(VLOOKUP(Y15,'Footnotes list'!$D$9:$E$107,2,FALSE)=0,\"\",VLOOKUP(Y15,'Footnotes list'!$D$9:$E$107,2,FALSE) ) )","v":""},0,null,null,{"$f":"IF(TRIM(AC15)=\"\", \"\", IF(VLOOKUP(AC15,'Footnotes list'!$D$9:$E$107,2,FALSE)=0,\"\",VLOOKUP(AC15,'Footnotes list'!$D$9:$E$107,2,FALSE) ) )","v":""},0,null,null,{"$f":"IF(TRIM(AG15)=\"\", \"\", IF(VLOOKUP(AG15,'Footnotes list'!$D$9:$E$107,2,FALSE)=0,\"\",VLOOKUP(AG15,'Footnotes list'!$D$9:$E$107,2,FALSE) ) )","v":""},0,null,null,{"$f":"IF(TRIM(AK15)=\"\", \"\", IF(VLOOKUP(AK15,'Footnotes list'!$D$9:$E$107,2,FALSE)=0,\"\",VLOOKUP(AK15,'Footnotes list'!$D$9:$E$107,2,FALSE) ) )","v":""},0,null,null,{"$f":"IF(TRIM(AO15)=\"\", \"\", IF(VLOOKUP(AO15,'Footnotes list'!$D$9:$E$107,2,FALSE)=0,\"\",VLOOKUP(AO15,'Footnotes list'!$D$9:$E$107,2,FALSE) ) )","v":""},0,null,null,{"$f":"IF(TRIM(AS15)=\"\", \"\", IF(VLOOKUP(AS15,'Footnotes list'!$D$9:$E$107,2,FALSE)=0,\"\",VLOOKUP(AS15,'Footnotes list'!$D$9:$E$107,2,FALSE) ) )","v":""},0,null,null,{"$f":"IF(TRIM(AW15)=\"\", \"\", IF(VLOOKUP(AW15,'Footnotes list'!$D$9:$E$107,2,FALSE)=0,\"\",VLOOKUP(AW15,'Footnotes list'!$D$9:$E$107,2,FALSE) ) )","v":""},0,null,null,{"$f":"IF(TRIM(BA15)=\"\", \"\", IF(VLOOKUP(BA15,'Footnotes list'!$D$9:$E$107,2,FALSE)=0,\"\",VLOOKUP(BA15,'Footnotes list'!$D$9:$E$107,2,FALSE) ) )","v":""},"",null,null,{"$f":"IF(TRIM(BE15)=\"\", \"\", IF(VLOOKUP(BE15,'Footnotes list'!$D$9:$E$107,2,FALSE)=0,\"\",VLOOKUP(BE15,'Footnotes list'!$D$9:$E$107,2,FALSE) ) )","v":""}]
[null,{"$f":"CODES!G16","v":"PROV_CR_MF117"},"THS_T",null,"MF.1.1.7   Vegetables ","1000 tonnes",null,null,null,{"$f":"IF(TRIM(I16)=\"\", \"\", IF(VLOOKUP(I16,'Footnotes list'!$D$9:$E$107,2,FALSE)=0,\"\",VLOOKUP(I16,'Footnotes list'!$D$9:$E$107,2,FALSE) ) )","v":""},null,null,null,{"$f":"IF(TRIM(M16)=\"\", \"\", IF(VLOOKUP(M16,'Footnotes list'!$D$9:$E$107,2,FALSE)=0,\"\",VLOOKUP(M16,'Footnotes list'!$D$9:$E$107,2,FALSE) ) )","v":""},null,null,null,{"$f":"IF(TRIM(Q16)=\"\", \"\", IF(VLOOKUP(Q16,'Footnotes list'!$D$9:$E$107,2,FALSE)=0,\"\",VLOOKUP(Q16,'Footnotes list'!$D$9:$E$107,2,FALSE) ) )","v":""},0,null,null,{"$f":"IF(TRIM(U16)=\"\", \"\", IF(VLOOKUP(U16,'Footnotes list'!$D$9:$E$107,2,FALSE)=0,\"\",VLOOKUP(U16,'Footnotes list'!$D$9:$E$107,2,FALSE) ) )","v":""},0,null,null,{"$f":"IF(TRIM(Y16)=\"\", \"\", IF(VLOOKUP(Y16,'Footnotes list'!$D$9:$E$107,2,FALSE)=0,\"\",VLOOKUP(Y16,'Footnotes list'!$D$9:$E$107,2,FALSE) ) )","v":""},0,null,null,{"$f":"IF(TRIM(AC16)=\"\", \"\", IF(VLOOKUP(AC16,'Footnotes list'!$D$9:$E$107,2,FALSE)=0,\"\",VLOOKUP(AC16,'Footnotes list'!$D$9:$E$107,2,FALSE) ) )","v":""},0,null,null,{"$f":"IF(TRIM(AG16)=\"\", \"\", IF(VLOOKUP(AG16,'Footnotes list'!$D$9:$E$107,2,FALSE)=0,\"\",VLOOKUP(AG16,'Footnotes list'!$D$9:$E$107,2,FALSE) ) )","v":""},0,null,null,{"$f":"IF(TRIM(AK16)=\"\", \"\", IF(VLOOKUP(AK16,'Footnotes list'!$D$9:$E$107,2,FALSE)=0,\"\",VLOOKUP(AK16,'Footnotes list'!$D$9:$E$107,2,FALSE) ) )","v":""},0,null,null,{"$f":"IF(TRIM(AO16)=\"\", \"\", IF(VLOOKUP(AO16,'Footnotes list'!$D$9:$E$107,2,FALSE)=0,\"\",VLOOKUP(AO16,'Footnotes list'!$D$9:$E$107,2,FALSE) ) )","v":""},0,null,null,{"$f":"IF(TRIM(AS16)=\"\", \"\", IF(VLOOKUP(AS16,'Footnotes list'!$D$9:$E$107,2,FALSE)=0,\"\",VLOOKUP(AS16,'Footnotes list'!$D$9:$E$107,2,FALSE) ) )","v":""},0,null,null,{"$f":"IF(TRIM(AW16)=\"\", \"\", IF(VLOOKUP(AW16,'Footnotes list'!$D$9:$E$107,2,FALSE)=0,\"\",VLOOKUP(AW16,'Footnotes list'!$D$9:$E$107,2,FALSE) ) )","v":""},0,null,null,{"$f":"IF(TRIM(BA16)=\"\", \"\", IF(VLOOKUP(BA16,'Footnotes list'!$D$9:$E$107,2,FALSE)=0,\"\",VLOOKUP(BA16,'Footnotes list'!$D$9:$E$107,2,FALSE) ) )","v":""},"",null,null,{"$f":"IF(TRIM(BE16)=\"\", \"\", IF(VLOOKUP(BE16,'Footnotes list'!$D$9:$E$107,2,FALSE)=0,\"\",VLOOKUP(BE16,'Footnotes list'!$D$9:$E$107,2,FALSE) ) )","v":""}]
[null,{"$f":"CODES!G17","v":"PROV_CR_MF118"},"THS_T",null,"MF.1.1.8   Fruits ","1000 tonnes",null,null,null,{"$f":"IF(TRIM(I17)=\"\", \"\", IF(VLOOKUP(I17,'Footnotes list'!$D$9:$E$107,2,FALSE)=0,\"\",VLOOKUP(I17,'Footnotes list'!$D$9:$E$107,2,FALSE) ) )","v":""},null,null,null,{"$f":"IF(TRIM(M17)=\"\", \"\", IF(VLOOKUP(M17,'Footnotes list'!$D$9:$E$107,2,FALSE)=0,\"\",VLOOKUP(M17,'Footnotes list'!$D$9:$E$107,2,FALSE) ) )","v":""},null,null,null,{"$f":"IF(TRIM(Q17)=\"\", \"\", IF(VLOOKUP(Q17,'Footnotes list'!$D$9:$E$107,2,FALSE)=0,\"\",VLOOKUP(Q17,'Footnotes list'!$D$9:$E$107,2,FALSE) ) )","v":""},0,null,null,{"$f":"IF(TRIM(U17)=\"\", \"\", IF(VLOOKUP(U17,'Footnotes list'!$D$9:$E$107,2,FALSE)=0,\"\",VLOOKUP(U17,'Footnotes list'!$D$9:$E$107,2,FALSE) ) )","v":""},0,null,null,{"$f":"IF(TRIM(Y17)=\"\", \"\", IF(VLOOKUP(Y17,'Footnotes list'!$D$9:$E$107,2,FALSE)=0,\"\",VLOOKUP(Y17,'Footnotes list'!$D$9:$E$107,2,FALSE) ) )","v":""},0,null,null,{"$f":"IF(TRIM(AC17)=\"\", \"\", IF(VLOOKUP(AC17,'Footnotes list'!$D$9:$E$107,2,FALSE)=0,\"\",VLOOKUP(AC17,'Footnotes list'!$D$9:$E$107,2,FALSE) ) )","v":""},0,null,null,{"$f":"IF(TRIM(AG17)=\"\", \"\", IF(VLOOKUP(AG17,'Footnotes list'!$D$9:$E$107,2,FALSE)=0,\"\",VLOOKUP(AG17,'Footnotes list'!$D$9:$E$107,2,FALSE) ) )","v":""},0,null,null,{"$f":"IF(TRIM(AK17)=\"\", \"\", IF(VLOOKUP(AK17,'Footnotes list'!$D$9:$E$107,2,FALSE)=0,\"\",VLOOKUP(AK17,'Footnotes list'!$D$9:$E$107,2,FALSE) ) )","v":""},0,null,null,{"$f":"IF(TRIM(AO17)=\"\", \"\", IF(VLOOKUP(AO17,'Footnotes list'!$D$9:$E$107,2,FALSE)=0,\"\",VLOOKUP(AO17,'Footnotes list'!$D$9:$E$107,2,FALSE) ) )","v":""},0,null,null,{"$f":"IF(TRIM(AS17)=\"\", \"\", IF(VLOOKUP(AS17,'Footnotes list'!$D$9:$E$107,2,FALSE)=0,\"\",VLOOKUP(AS17,'Footnotes list'!$D$9:$E$107,2,FALSE) ) )","v":""},0,null,null,{"$f":"IF(TRIM(AW17)=\"\", \"\", IF(VLOOKUP(AW17,'Footnotes list'!$D$9:$E$107,2,FALSE)=0,\"\",VLOOKUP(AW17,'Footnotes list'!$D$9:$E$107,2,FALSE) ) )","v":""},0,null,null,{"$f":"IF(TRIM(BA17)=\"\", \"\", IF(VLOOKUP(BA17,'Footnotes list'!$D$9:$E$107,2,FALSE)=0,\"\",VLOOKUP(BA17,'Footnotes list'!$D$9:$E$107,2,FALSE) ) )","v":""},"",null,null,{"$f":"IF(TRIM(BE17)=\"\", \"\", IF(VLOOKUP(BE17,'Footnotes list'!$D$9:$E$107,2,FALSE)=0,\"\",VLOOKUP(BE17,'Footnotes list'!$D$9:$E$107,2,FALSE) ) )","v":""}]
[null,{"$f":"CODES!G18","v":"PROV_CR_MF119"},"THS_T",null,"MF.1.1.9   Fibres ","1000 tonnes",null,null,null,{"$f":"IF(TRIM(I18)=\"\", \"\", IF(VLOOKUP(I18,'Footnotes list'!$D$9:$E$107,2,FALSE)=0,\"\",VLOOKUP(I18,'Footnotes list'!$D$9:$E$107,2,FALSE) ) )","v":""},null,null,null,{"$f":"IF(TRIM(M18)=\"\", \"\", IF(VLOOKUP(M18,'Footnotes list'!$D$9:$E$107,2,FALSE)=0,\"\",VLOOKUP(M18,'Footnotes list'!$D$9:$E$107,2,FALSE) ) )","v":""},null,null,null,{"$f":"IF(TRIM(Q18)=\"\", \"\", IF(VLOOKUP(Q18,'Footnotes list'!$D$9:$E$107,2,FALSE)=0,\"\",VLOOKUP(Q18,'Footnotes list'!$D$9:$E$107,2,FALSE) ) )","v":""},0,null,null,{"$f":"IF(TRIM(U18)=\"\", \"\", IF(VLOOKUP(U18,'Footnotes list'!$D$9:$E$107,2,FALSE)=0,\"\",VLOOKUP(U18,'Footnotes list'!$D$9:$E$107,2,FALSE) ) )","v":""},0,null,null,{"$f":"IF(TRIM(Y18)=\"\", \"\", IF(VLOOKUP(Y18,'Footnotes list'!$D$9:$E$107,2,FALSE)=0,\"\",VLOOKUP(Y18,'Footnotes list'!$D$9:$E$107,2,FALSE) ) )","v":""},0,null,null,{"$f":"IF(TRIM(AC18)=\"\", \"\", IF(VLOOKUP(AC18,'Footnotes list'!$D$9:$E$107,2,FALSE)=0,\"\",VLOOKUP(AC18,'Footnotes list'!$D$9:$E$107,2,FALSE) ) )","v":""},0,null,null,{"$f":"IF(TRIM(AG18)=\"\", \"\", IF(VLOOKUP(AG18,'Footnotes list'!$D$9:$E$107,2,FALSE)=0,\"\",VLOOKUP(AG18,'Footnotes list'!$D$9:$E$107,2,FALSE) ) )","v":""},0,null,null,{"$f":"IF(TRIM(AK18)=\"\", \"\", IF(VLOOKUP(AK18,'Footnotes list'!$D$9:$E$107,2,FALSE)=0,\"\",VLOOKUP(AK18,'Footnotes list'!$D$9:$E$107,2,FALSE) ) )","v":""},0,null,null,{"$f":"IF(TRIM(AO18)=\"\", \"\", IF(VLOOKUP(AO18,'Footnotes list'!$D$9:$E$107,2,FALSE)=0,\"\",VLOOKUP(AO18,'Footnotes list'!$D$9:$E$107,2,FALSE) ) )","v":""},0,null,null,{"$f":"IF(TRIM(AS18)=\"\", \"\", IF(VLOOKUP(AS18,'Footnotes list'!$D$9:$E$107,2,FALSE)=0,\"\",VLOOKUP(AS18,'Footnotes list'!$D$9:$E$107,2,FALSE) ) )","v":""},0,null,null,{"$f":"IF(TRIM(AW18)=\"\", \"\", IF(VLOOKUP(AW18,'Footnotes list'!$D$9:$E$107,2,FALSE)=0,\"\",VLOOKUP(AW18,'Footnotes list'!$D$9:$E$107,2,FALSE) ) )","v":""},0,null,null,{"$f":"IF(TRIM(BA18)=\"\", \"\", IF(VLOOKUP(BA18,'Footnotes list'!$D$9:$E$107,2,FALSE)=0,\"\",VLOOKUP(BA18,'Footnotes list'!$D$9:$E$107,2,FALSE) ) )","v":""},"",null,null,{"$f":"IF(TRIM(BE18)=\"\", \"\", IF(VLOOKUP(BE18,'Footnotes list'!$D$9:$E$107,2,FALSE)=0,\"\",VLOOKUP(BE18,'Footnotes list'!$D$9:$E$107,2,FALSE) ) )","v":""}]
[null,{"$f":"CODES!G19","v":"PROV_CR_MF11A"},"THS_T",null,"MF.1.1.A   Other crops (excluding fodder crops) n.e.c.","1000 tonnes",null,null,null,{"$f":"IF(TRIM(I19)=\"\", \"\", IF(VLOOKUP(I19,'Footnotes list'!$D$9:$E$107,2,FALSE)=0,\"\",VLOOKUP(I19,'Footnotes list'!$D$9:$E$107,2,FALSE) ) )","v":""},null,null,null,{"$f":"IF(TRIM(M19)=\"\", \"\", IF(VLOOKUP(M19,'Footnotes list'!$D$9:$E$107,2,FALSE)=0,\"\",VLOOKUP(M19,'Footnotes list'!$D$9:$E$107,2,FALSE) ) )","v":""},null,null,null,{"$f":"IF(TRIM(Q19)=\"\", \"\", IF(VLOOKUP(Q19,'Footnotes list'!$D$9:$E$107,2,FALSE)=0,\"\",VLOOKUP(Q19,'Footnotes list'!$D$9:$E$107,2,FALSE) ) )","v":""},0,null,null,{"$f":"IF(TRIM(U19)=\"\", \"\", IF(VLOOKUP(U19,'Footnotes list'!$D$9:$E$107,2,FALSE)=0,\"\",VLOOKUP(U19,'Footnotes list'!$D$9:$E$107,2,FALSE) ) )","v":""},0,null,null,{"$f":"IF(TRIM(Y19)=\"\", \"\", IF(VLOOKUP(Y19,'Footnotes list'!$D$9:$E$107,2,FALSE)=0,\"\",VLOOKUP(Y19,'Footnotes list'!$D$9:$E$107,2,FALSE) ) )","v":""},0,null,null,{"$f":"IF(TRIM(AC19)=\"\", \"\", IF(VLOOKUP(AC19,'Footnotes list'!$D$9:$E$107,2,FALSE)=0,\"\",VLOOKUP(AC19,'Footnotes list'!$D$9:$E$107,2,FALSE) ) )","v":""},0,null,null,{"$f":"IF(TRIM(AG19)=\"\", \"\", IF(VLOOKUP(AG19,'Footnotes list'!$D$9:$E$107,2,FALSE)=0,\"\",VLOOKUP(AG19,'Footnotes list'!$D$9:$E$107,2,FALSE) ) )","v":""},0,null,null,{"$f":"IF(TRIM(AK19)=\"\", \"\", IF(VLOOKUP(AK19,'Footnotes list'!$D$9:$E$107,2,FALSE)=0,\"\",VLOOKUP(AK19,'Footnotes list'!$D$9:$E$107,2,FALSE) ) )","v":""},0,null,null,{"$f":"IF(TRIM(AO19)=\"\", \"\", IF(VLOOKUP(AO19,'Footnotes list'!$D$9:$E$107,2,FALSE)=0,\"\",VLOOKUP(AO19,'Footnotes list'!$D$9:$E$107,2,FALSE) ) )","v":""},0,null,null,{"$f":"IF(TRIM(AS19)=\"\", \"\", IF(VLOOKUP(AS19,'Footnotes list'!$D$9:$E$107,2,FALSE)=0,\"\",VLOOKUP(AS19,'Footnotes list'!$D$9:$E$107,2,FALSE) ) )","v":""},0,null,null,{"$f":"IF(TRIM(AW19)=\"\", \"\", IF(VLOOKUP(AW19,'Footnotes list'!$D$9:$E$107,2,FALSE)=0,\"\",VLOOKUP(AW19,'Footnotes list'!$D$9:$E$107,2,FALSE) ) )","v":""},0,null,null,{"$f":"IF(TRIM(BA19)=\"\", \"\", IF(VLOOKUP(BA19,'Footnotes list'!$D$9:$E$107,2,FALSE)=0,\"\",VLOOKUP(BA19,'Footnotes list'!$D$9:$E$107,2,FALSE) ) )","v":""},"",null,null,{"$f":"IF(TRIM(BE19)=\"\", \"\", IF(VLOOKUP(BE19,'Footnotes list'!$D$9:$E$107,2,FALSE)=0,\"\",VLOOKUP(BE19,'Footnotes list'!$D$9:$E$107,2,FALSE) ) )","v":""}]
[null,{"$f":"CODES!G20","v":"PROV_CR_MF12"},"THS_T",null,"MF.1.2   Crop residues (used), fodder crops and grazed biomass","1000 tonnes",{"$f":"IF(COUNTA(G21:G24)<4,\"\",SUM(G21,G24))","v":""},null,null,{"$f":"IF(TRIM(I20)=\"\", \"\", IF(VLOOKUP(I20,'Footnotes list'!$D$9:$E$107,2,FALSE)=0,\"\",VLOOKUP(I20,'Footnotes list'!$D$9:$E$107,2,FALSE) ) )","v":""},{"$f":"IF(COUNTA(K21:K24)<4,\"\",SUM(K21,K24))","v":""},null,null,{"$f":"IF(TRIM(M20)=\"\", \"\", IF(VLOOKUP(M20,'Footnotes list'!$D$9:$E$107,2,FALSE)=0,\"\",VLOOKUP(M20,'Footnotes list'!$D$9:$E$107,2,FALSE) ) )","v":""},{"$f":"IF(COUNTA(O21:O24)<4,\"\",SUM(O21,O24))","v":""},null,null,{"$f":"IF(TRIM(Q20)=\"\", \"\", IF(VLOOKUP(Q20,'Footnotes list'!$D$9:$E$107,2,FALSE)=0,\"\",VLOOKUP(Q20,'Footnotes list'!$D$9:$E$107,2,FALSE) ) )","v":""},{"$f":"IF(COUNTA(S21:S24)<4,\"\",SUM(S21,S24))","v":0},null,null,{"$f":"IF(TRIM(U20)=\"\", \"\", IF(VLOOKUP(U20,'Footnotes list'!$D$9:$E$107,2,FALSE)=0,\"\",VLOOKUP(U20,'Footnotes list'!$D$9:$E$107,2,FALSE) ) )","v":""},{"$f":"IF(COUNTA(W21:W24)<4,\"\",SUM(W21,W24))","v":0},null,null,{"$f":"IF(TRIM(Y20)=\"\", \"\", IF(VLOOKUP(Y20,'Footnotes list'!$D$9:$E$107,2,FALSE)=0,\"\",VLOOKUP(Y20,'Footnotes list'!$D$9:$E$107,2,FALSE) ) )","v":""},{"$f":"IF(COUNTA(AA21:AA24)<4,\"\",SUM(AA21,AA24))","v":0},null,null,{"$f":"IF(TRIM(AC20)=\"\", \"\", IF(VLOOKUP(AC20,'Footnotes list'!$D$9:$E$107,2,FALSE)=0,\"\",VLOOKUP(AC20,'Footnotes list'!$D$9:$E$107,2,FALSE) ) )","v":""},{"$f":"IF(COUNTA(AE21:AE24)<4,\"\",SUM(AE21,AE24))","v":0},null,null,{"$f":"IF(TRIM(AG20)=\"\", \"\", IF(VLOOKUP(AG20,'Footnotes list'!$D$9:$E$107,2,FALSE)=0,\"\",VLOOKUP(AG20,'Footnotes list'!$D$9:$E$107,2,FALSE) ) )","v":""},{"$f":"IF(COUNTA(AI21:AI24)<4,\"\",SUM(AI21,AI24))","v":0},null,null,{"$f":"IF(TRIM(AK20)=\"\", \"\", IF(VLOOKUP(AK20,'Footnotes list'!$D$9:$E$107,2,FALSE)=0,\"\",VLOOKUP(AK20,'Footnotes list'!$D$9:$E$107,2,FALSE) ) )","v":""},{"$f":"IF(COUNTA(AM21:AM24)<4,\"\",SUM(AM21,AM24))","v":0},null,null,{"$f":"IF(TRIM(AO20)=\"\", \"\", IF(VLOOKUP(AO20,'Footnotes list'!$D$9:$E$107,2,FALSE)=0,\"\",VLOOKUP(AO20,'Footnotes list'!$D$9:$E$107,2,FALSE) ) )","v":""},{"$f":"IF(COUNTA(AQ21:AQ24)<4,\"\",SUM(AQ21,AQ24))","v":0},null,null,{"$f":"IF(TRIM(AS20)=\"\", \"\", IF(VLOOKUP(AS20,'Footnotes list'!$D$9:$E$107,2,FALSE)=0,\"\",VLOOKUP(AS20,'Footnotes list'!$D$9:$E$107,2,FALSE) ) )","v":""},{"$f":"IF(COUNTA(AU21:AU24)<4,\"\",SUM(AU21,AU24))","v":0},null,null,{"$f":"IF(TRIM(AW20)=\"\", \"\", IF(VLOOKUP(AW20,'Footnotes list'!$D$9:$E$107,2,FALSE)=0,\"\",VLOOKUP(AW20,'Footnotes list'!$D$9:$E$107,2,FALSE) ) )","v":""},{"$f":"IF(COUNTA(AY21:AY24)<4,\"\",SUM(AY21,AY24))","v":0},null,null,{"$f":"IF(TRIM(BA20)=\"\", \"\", IF(VLOOKUP(BA20,'Footnotes list'!$D$9:$E$107,2,FALSE)=0,\"\",VLOOKUP(BA20,'Footnotes list'!$D$9:$E$107,2,FALSE) ) )","v":""},0,null,null,{"$f":"IF(TRIM(BE20)=\"\", \"\", IF(VLOOKUP(BE20,'Footnotes list'!$D$9:$E$107,2,FALSE)=0,\"\",VLOOKUP(BE20,'Footnotes list'!$D$9:$E$107,2,FALSE) ) )","v":""}]
[null,{"$f":"CODES!G21","v":"PROV_CR_MF121"},"THS_T",null,"MF.1.2.1   Crop residues (used)","1000 tonnes",{"$f":"IF(COUNTA(G22:G23)<2,\"\",SUM(G22:G23))","v":""},null,null,{"$f":"IF(TRIM(I21)=\"\", \"\", IF(VLOOKUP(I21,'Footnotes list'!$D$9:$E$107,2,FALSE)=0,\"\",VLOOKUP(I21,'Footnotes list'!$D$9:$E$107,2,FALSE) ) )","v":""},{"$f":"IF(COUNTA(K22:K23)<2,\"\",SUM(K22:K23))","v":""},null,null,{"$f":"IF(TRIM(M21)=\"\", \"\", IF(VLOOKUP(M21,'Footnotes list'!$D$9:$E$107,2,FALSE)=0,\"\",VLOOKUP(M21,'Footnotes list'!$D$9:$E$107,2,FALSE) ) )","v":""},{"$f":"IF(COUNTA(O22:O23)<2,\"\",SUM(O22:O23))","v":""},null,null,{"$f":"IF(TRIM(Q21)=\"\", \"\", IF(VLOOKUP(Q21,'Footnotes list'!$D$9:$E$107,2,FALSE)=0,\"\",VLOOKUP(Q21,'Footnotes list'!$D$9:$E$107,2,FALSE) ) )","v":""},{"$f":"IF(COUNTA(S22:S23)<2,\"\",SUM(S22:S23))","v":0},null,null,{"$f":"IF(TRIM(U21)=\"\", \"\", IF(VLOOKUP(U21,'Footnotes list'!$D$9:$E$107,2,FALSE)=0,\"\",VLOOKUP(U21,'Footnotes list'!$D$9:$E$107,2,FALSE) ) )","v":""},{"$f":"IF(COUNTA(W22:W23)<2,\"\",SUM(W22:W23))","v":0},null,null,{"$f":"IF(TRIM(Y21)=\"\", \"\", IF(VLOOKUP(Y21,'Footnotes list'!$D$9:$E$107,2,FALSE)=0,\"\",VLOOKUP(Y21,'Footnotes list'!$D$9:$E$107,2,FALSE) ) )","v":""},{"$f":"IF(COUNTA(AA22:AA23)<2,\"\",SUM(AA22:AA23))","v":0},null,null,{"$f":"IF(TRIM(AC21)=\"\", \"\", IF(VLOOKUP(AC21,'Footnotes list'!$D$9:$E$107,2,FALSE)=0,\"\",VLOOKUP(AC21,'Footnotes list'!$D$9:$E$107,2,FALSE) ) )","v":""},{"$f":"IF(COUNTA(AE22:AE23)<2,\"\",SUM(AE22:AE23))","v":0},null,null,{"$f":"IF(TRIM(AG21)=\"\", \"\", IF(VLOOKUP(AG21,'Footnotes list'!$D$9:$E$107,2,FALSE)=0,\"\",VLOOKUP(AG21,'Footnotes list'!$D$9:$E$107,2,FALSE) ) )","v":""},{"$f":"IF(COUNTA(AI22:AI23)<2,\"\",SUM(AI22:AI23))","v":0},null,null,{"$f":"IF(TRIM(AK21)=\"\", \"\", IF(VLOOKUP(AK21,'Footnotes list'!$D$9:$E$107,2,FALSE)=0,\"\",VLOOKUP(AK21,'Footnotes list'!$D$9:$E$107,2,FALSE) ) )","v":""},{"$f":"IF(COUNTA(AM22:AM23)<2,\"\",SUM(AM22:AM23))","v":0},null,null,{"$f":"IF(TRIM(AO21)=\"\", \"\", IF(VLOOKUP(AO21,'Footnotes list'!$D$9:$E$107,2,FALSE)=0,\"\",VLOOKUP(AO21,'Footnotes list'!$D$9:$E$107,2,FALSE) ) )","v":""},{"$f":"IF(COUNTA(AQ22:AQ23)<2,\"\",SUM(AQ22:AQ23))","v":0},null,null,{"$f":"IF(TRIM(AS21)=\"\", \"\", IF(VLOOKUP(AS21,'Footnotes list'!$D$9:$E$107,2,FALSE)=0,\"\",VLOOKUP(AS21,'Footnotes list'!$D$9:$E$107,2,FALSE) ) )","v":""},{"$f":"IF(COUNTA(AU22:AU23)<2,\"\",SUM(AU22:AU23))","v":0},null,null,{"$f":"IF(TRIM(AW21)=\"\", \"\", IF(VLOOKUP(AW21,'Footnotes list'!$D$9:$E$107,2,FALSE)=0,\"\",VLOOKUP(AW21,'Footnotes list'!$D$9:$E$107,2,FALSE) ) )","v":""},{"$f":"IF(COUNTA(AY22:AY23)<2,\"\",SUM(AY22:AY23))","v":0},null,null,{"$f":"IF(TRIM(BA21)=\"\", \"\", IF(VLOOKUP(BA21,'Footnotes list'!$D$9:$E$107,2,FALSE)=0,\"\",VLOOKUP(BA21,'Footnotes list'!$D$9:$E$107,2,FALSE) ) )","v":""},0,null,null,{"$f":"IF(TRIM(BE21)=\"\", \"\", IF(VLOOKUP(BE21,'Footnotes list'!$D$9:$E$107,2,FALSE)=0,\"\",VLOOKUP(BE21,'Footnotes list'!$D$9:$E$107,2,FALSE) ) )","v":""}]
[null,{"$f":"CODES!G22","v":"PROV_CR_MF1211"},"THS_T",null,"MF.1.2.1.1   Straw","1000 tonnes",null,null,null,{"$f":"IF(TRIM(I22)=\"\", \"\", IF(VLOOKUP(I22,'Footnotes list'!$D$9:$E$107,2,FALSE)=0,\"\",VLOOKUP(I22,'Footnotes list'!$D$9:$E$107,2,FALSE) ) )","v":""},null,null,null,{"$f":"IF(TRIM(M22)=\"\", \"\", IF(VLOOKUP(M22,'Footnotes list'!$D$9:$E$107,2,FALSE)=0,\"\",VLOOKUP(M22,'Footnotes list'!$D$9:$E$107,2,FALSE) ) )","v":""},null,null,null,{"$f":"IF(TRIM(Q22)=\"\", \"\", IF(VLOOKUP(Q22,'Footnotes list'!$D$9:$E$107,2,FALSE)=0,\"\",VLOOKUP(Q22,'Footnotes list'!$D$9:$E$107,2,FALSE) ) )","v":""},0,null,null,{"$f":"IF(TRIM(U22)=\"\", \"\", IF(VLOOKUP(U22,'Footnotes list'!$D$9:$E$107,2,FALSE)=0,\"\",VLOOKUP(U22,'Footnotes list'!$D$9:$E$107,2,FALSE) ) )","v":""},0,null,null,{"$f":"IF(TRIM(Y22)=\"\", \"\", IF(VLOOKUP(Y22,'Footnotes list'!$D$9:$E$107,2,FALSE)=0,\"\",VLOOKUP(Y22,'Footnotes list'!$D$9:$E$107,2,FALSE) ) )","v":""},0,null,null,{"$f":"IF(TRIM(AC22)=\"\", \"\", IF(VLOOKUP(AC22,'Footnotes list'!$D$9:$E$107,2,FALSE)=0,\"\",VLOOKUP(AC22,'Footnotes list'!$D$9:$E$107,2,FALSE) ) )","v":""},0,null,null,{"$f":"IF(TRIM(AG22)=\"\", \"\", IF(VLOOKUP(AG22,'Footnotes list'!$D$9:$E$107,2,FALSE)=0,\"\",VLOOKUP(AG22,'Footnotes list'!$D$9:$E$107,2,FALSE) ) )","v":""},0,null,null,{"$f":"IF(TRIM(AK22)=\"\", \"\", IF(VLOOKUP(AK22,'Footnotes list'!$D$9:$E$107,2,FALSE)=0,\"\",VLOOKUP(AK22,'Footnotes list'!$D$9:$E$107,2,FALSE) ) )","v":""},0,null,null,{"$f":"IF(TRIM(AO22)=\"\", \"\", IF(VLOOKUP(AO22,'Footnotes list'!$D$9:$E$107,2,FALSE)=0,\"\",VLOOKUP(AO22,'Footnotes list'!$D$9:$E$107,2,FALSE) ) )","v":""},0,null,null,{"$f":"IF(TRIM(AS22)=\"\", \"\", IF(VLOOKUP(AS22,'Footnotes list'!$D$9:$E$107,2,FALSE)=0,\"\",VLOOKUP(AS22,'Footnotes list'!$D$9:$E$107,2,FALSE) ) )","v":""},0,null,null,{"$f":"IF(TRIM(AW22)=\"\", \"\", IF(VLOOKUP(AW22,'Footnotes list'!$D$9:$E$107,2,FALSE)=0,\"\",VLOOKUP(AW22,'Footnotes list'!$D$9:$E$107,2,FALSE) ) )","v":""},0,null,null,{"$f":"IF(TRIM(BA22)=\"\", \"\", IF(VLOOKUP(BA22,'Footnotes list'!$D$9:$E$107,2,FALSE)=0,\"\",VLOOKUP(BA22,'Footnotes list'!$D$9:$E$107,2,FALSE) ) )","v":""},"",null,null,{"$f":"IF(TRIM(BE22)=\"\", \"\", IF(VLOOKUP(BE22,'Footnotes list'!$D$9:$E$107,2,FALSE)=0,\"\",VLOOKUP(BE22,'Footnotes list'!$D$9:$E$107,2,FALSE) ) )","v":""}]
[null,{"$f":"CODES!G23","v":"PROV_CR_MF1212"},"THS_T",null,"MF.1.2.1.2   Other crop residues (sugar and fodder beet leaves, etc.)","1000 tonnes",null,null,null,{"$f":"IF(TRIM(I23)=\"\", \"\", IF(VLOOKUP(I23,'Footnotes list'!$D$9:$E$107,2,FALSE)=0,\"\",VLOOKUP(I23,'Footnotes list'!$D$9:$E$107,2,FALSE) ) )","v":""},null,null,null,{"$f":"IF(TRIM(M23)=\"\", \"\", IF(VLOOKUP(M23,'Footnotes list'!$D$9:$E$107,2,FALSE)=0,\"\",VLOOKUP(M23,'Footnotes list'!$D$9:$E$107,2,FALSE) ) )","v":""},null,null,null,{"$f":"IF(TRIM(Q23)=\"\", \"\", IF(VLOOKUP(Q23,'Footnotes list'!$D$9:$E$107,2,FALSE)=0,\"\",VLOOKUP(Q23,'Footnotes list'!$D$9:$E$107,2,FALSE) ) )","v":""},0,null,null,{"$f":"IF(TRIM(U23)=\"\", \"\", IF(VLOOKUP(U23,'Footnotes list'!$D$9:$E$107,2,FALSE)=0,\"\",VLOOKUP(U23,'Footnotes list'!$D$9:$E$107,2,FALSE) ) )","v":""},0,null,null,{"$f":"IF(TRIM(Y23)=\"\", \"\", IF(VLOOKUP(Y23,'Footnotes list'!$D$9:$E$107,2,FALSE)=0,\"\",VLOOKUP(Y23,'Footnotes list'!$D$9:$E$107,2,FALSE) ) )","v":""},0,null,null,{"$f":"IF(TRIM(AC23)=\"\", \"\", IF(VLOOKUP(AC23,'Footnotes list'!$D$9:$E$107,2,FALSE)=0,\"\",VLOOKUP(AC23,'Footnotes list'!$D$9:$E$107,2,FALSE) ) )","v":""},0,null,null,{"$f":"IF(TRIM(AG23)=\"\", \"\", IF(VLOOKUP(AG23,'Footnotes list'!$D$9:$E$107,2,FALSE)=0,\"\",VLOOKUP(AG23,'Footnotes list'!$D$9:$E$107,2,FALSE) ) )","v":""},0,null,null,{"$f":"IF(TRIM(AK23)=\"\", \"\", IF(VLOOKUP(AK23,'Footnotes list'!$D$9:$E$107,2,FALSE)=0,\"\",VLOOKUP(AK23,'Footnotes list'!$D$9:$E$107,2,FALSE) ) )","v":""},0,null,null,{"$f":"IF(TRIM(AO23)=\"\", \"\", IF(VLOOKUP(AO23,'Footnotes list'!$D$9:$E$107,2,FALSE)=0,\"\",VLOOKUP(AO23,'Footnotes list'!$D$9:$E$107,2,FALSE) ) )","v":""},0,null,null,{"$f":"IF(TRIM(AS23)=\"\", \"\", IF(VLOOKUP(AS23,'Footnotes list'!$D$9:$E$107,2,FALSE)=0,\"\",VLOOKUP(AS23,'Footnotes list'!$D$9:$E$107,2,FALSE) ) )","v":""},0,null,null,{"$f":"IF(TRIM(AW23)=\"\", \"\", IF(VLOOKUP(AW23,'Footnotes list'!$D$9:$E$107,2,FALSE)=0,\"\",VLOOKUP(AW23,'Footnotes list'!$D$9:$E$107,2,FALSE) ) )","v":""},0,null,null,{"$f":"IF(TRIM(BA23)=\"\", \"\", IF(VLOOKUP(BA23,'Footnotes list'!$D$9:$E$107,2,FALSE)=0,\"\",VLOOKUP(BA23,'Footnotes list'!$D$9:$E$107,2,FALSE) ) )","v":""},"",null,null,{"$f":"IF(TRIM(BE23)=\"\", \"\", IF(VLOOKUP(BE23,'Footnotes list'!$D$9:$E$107,2,FALSE)=0,\"\",VLOOKUP(BE23,'Footnotes list'!$D$9:$E$107,2,FALSE) ) )","v":""}]
[null,{"$f":"CODES!G24","v":"PROV_CR_MF122"},"THS_T",null,"MF.1.2.2   Fodder crops and grazed biomass","1000 tonnes",{"$f":"IF(COUNTA(G25:G26)<2,\"\",SUM(G25:G26))","v":""},null,null,{"$f":"IF(TRIM(I24)=\"\", \"\", IF(VLOOKUP(I24,'Footnotes list'!$D$9:$E$107,2,FALSE)=0,\"\",VLOOKUP(I24,'Footnotes list'!$D$9:$E$107,2,FALSE) ) )","v":""},{"$f":"IF(COUNTA(K25:K26)<2,\"\",SUM(K25:K26))","v":""},null,null,{"$f":"IF(TRIM(M24)=\"\", \"\", IF(VLOOKUP(M24,'Footnotes list'!$D$9:$E$107,2,FALSE)=0,\"\",VLOOKUP(M24,'Footnotes list'!$D$9:$E$107,2,FALSE) ) )","v":""},{"$f":"IF(COUNTA(O25:O26)<2,\"\",SUM(O25:O26))","v":""},null,null,{"$f":"IF(TRIM(Q24)=\"\", \"\", IF(VLOOKUP(Q24,'Footnotes list'!$D$9:$E$107,2,FALSE)=0,\"\",VLOOKUP(Q24,'Footnotes list'!$D$9:$E$107,2,FALSE) ) )","v":""},{"$f":"IF(COUNTA(S25:S26)<2,\"\",SUM(S25:S26))","v":0},null,null,{"$f":"IF(TRIM(U24)=\"\", \"\", IF(VLOOKUP(U24,'Footnotes list'!$D$9:$E$107,2,FALSE)=0,\"\",VLOOKUP(U24,'Footnotes list'!$D$9:$E$107,2,FALSE) ) )","v":""},{"$f":"IF(COUNTA(W25:W26)<2,\"\",SUM(W25:W26))","v":0},null,null,{"$f":"IF(TRIM(Y24)=\"\", \"\", IF(VLOOKUP(Y24,'Footnotes list'!$D$9:$E$107,2,FALSE)=0,\"\",VLOOKUP(Y24,'Footnotes list'!$D$9:$E$107,2,FALSE) ) )","v":""},{"$f":"IF(COUNTA(AA25:AA26)<2,\"\",SUM(AA25:AA26))","v":0},null,null,{"$f":"IF(TRIM(AC24)=\"\", \"\", IF(VLOOKUP(AC24,'Footnotes list'!$D$9:$E$107,2,FALSE)=0,\"\",VLOOKUP(AC24,'Footnotes list'!$D$9:$E$107,2,FALSE) ) )","v":""},{"$f":"IF(COUNTA(AE25:AE26)<2,\"\",SUM(AE25:AE26))","v":0},null,null,{"$f":"IF(TRIM(AG24)=\"\", \"\", IF(VLOOKUP(AG24,'Footnotes list'!$D$9:$E$107,2,FALSE)=0,\"\",VLOOKUP(AG24,'Footnotes list'!$D$9:$E$107,2,FALSE) ) )","v":""},{"$f":"IF(COUNTA(AI25:AI26)<2,\"\",SUM(AI25:AI26))","v":0},null,null,{"$f":"IF(TRIM(AK24)=\"\", \"\", IF(VLOOKUP(AK24,'Footnotes list'!$D$9:$E$107,2,FALSE)=0,\"\",VLOOKUP(AK24,'Footnotes list'!$D$9:$E$107,2,FALSE) ) )","v":""},{"$f":"IF(COUNTA(AM25:AM26)<2,\"\",SUM(AM25:AM26))","v":0},null,null,{"$f":"IF(TRIM(AO24)=\"\", \"\", IF(VLOOKUP(AO24,'Footnotes list'!$D$9:$E$107,2,FALSE)=0,\"\",VLOOKUP(AO24,'Footnotes list'!$D$9:$E$107,2,FALSE) ) )","v":""},{"$f":"IF(COUNTA(AQ25:AQ26)<2,\"\",SUM(AQ25:AQ26))","v":0},null,null,{"$f":"IF(TRIM(AS24)=\"\", \"\", IF(VLOOKUP(AS24,'Footnotes list'!$D$9:$E$107,2,FALSE)=0,\"\",VLOOKUP(AS24,'Footnotes list'!$D$9:$E$107,2,FALSE) ) )","v":""},{"$f":"IF(COUNTA(AU25:AU26)<2,\"\",SUM(AU25:AU26))","v":0},null,null,{"$f":"IF(TRIM(AW24)=\"\", \"\", IF(VLOOKUP(AW24,'Footnotes list'!$D$9:$E$107,2,FALSE)=0,\"\",VLOOKUP(AW24,'Footnotes list'!$D$9:$E$107,2,FALSE) ) )","v":""},{"$f":"IF(COUNTA(AY25:AY26)<2,\"\",SUM(AY25:AY26))","v":0},null,null,{"$f":"IF(TRIM(BA24)=\"\", \"\", IF(VLOOKUP(BA24,'Footnotes list'!$D$9:$E$107,2,FALSE)=0,\"\",VLOOKUP(BA24,'Footnotes list'!$D$9:$E$107,2,FALSE) ) )","v":""},0,null,null,{"$f":"IF(TRIM(BE24)=\"\", \"\", IF(VLOOKUP(BE24,'Footnotes list'!$D$9:$E$107,2,FALSE)=0,\"\",VLOOKUP(BE24,'Footnotes list'!$D$9:$E$107,2,FALSE) ) )","v":""}]
[null,{"$f":"CODES!G25","v":"PROV_CR_MF1221"},"THS_T",null,"MF.1.2.2.1   Fodder crops (including biomass harvest from grassland)","1000 tonnes",null,null,null,{"$f":"IF(TRIM(I25)=\"\", \"\", IF(VLOOKUP(I25,'Footnotes list'!$D$9:$E$107,2,FALSE)=0,\"\",VLOOKUP(I25,'Footnotes list'!$D$9:$E$107,2,FALSE) ) )","v":""},null,null,null,{"$f":"IF(TRIM(M25)=\"\", \"\", IF(VLOOKUP(M25,'Footnotes list'!$D$9:$E$107,2,FALSE)=0,\"\",VLOOKUP(M25,'Footnotes list'!$D$9:$E$107,2,FALSE) ) )","v":""},null,null,null,{"$f":"IF(TRIM(Q25)=\"\", \"\", IF(VLOOKUP(Q25,'Footnotes list'!$D$9:$E$107,2,FALSE)=0,\"\",VLOOKUP(Q25,'Footnotes list'!$D$9:$E$107,2,FALSE) ) )","v":""},0,null,null,{"$f":"IF(TRIM(U25)=\"\", \"\", IF(VLOOKUP(U25,'Footnotes list'!$D$9:$E$107,2,FALSE)=0,\"\",VLOOKUP(U25,'Footnotes list'!$D$9:$E$107,2,FALSE) ) )","v":""},0,null,null,{"$f":"IF(TRIM(Y25)=\"\", \"\", IF(VLOOKUP(Y25,'Footnotes list'!$D$9:$E$107,2,FALSE)=0,\"\",VLOOKUP(Y25,'Footnotes list'!$D$9:$E$107,2,FALSE) ) )","v":""},0,null,null,{"$f":"IF(TRIM(AC25)=\"\", \"\", IF(VLOOKUP(AC25,'Footnotes list'!$D$9:$E$107,2,FALSE)=0,\"\",VLOOKUP(AC25,'Footnotes list'!$D$9:$E$107,2,FALSE) ) )","v":""},0,null,null,{"$f":"IF(TRIM(AG25)=\"\", \"\", IF(VLOOKUP(AG25,'Footnotes list'!$D$9:$E$107,2,FALSE)=0,\"\",VLOOKUP(AG25,'Footnotes list'!$D$9:$E$107,2,FALSE) ) )","v":""},0,null,null,{"$f":"IF(TRIM(AK25)=\"\", \"\", IF(VLOOKUP(AK25,'Footnotes list'!$D$9:$E$107,2,FALSE)=0,\"\",VLOOKUP(AK25,'Footnotes list'!$D$9:$E$107,2,FALSE) ) )","v":""},0,null,null,{"$f":"IF(TRIM(AO25)=\"\", \"\", IF(VLOOKUP(AO25,'Footnotes list'!$D$9:$E$107,2,FALSE)=0,\"\",VLOOKUP(AO25,'Footnotes list'!$D$9:$E$107,2,FALSE) ) )","v":""},0,null,null,{"$f":"IF(TRIM(AS25)=\"\", \"\", IF(VLOOKUP(AS25,'Footnotes list'!$D$9:$E$107,2,FALSE)=0,\"\",VLOOKUP(AS25,'Footnotes list'!$D$9:$E$107,2,FALSE) ) )","v":""},0,null,null,{"$f":"IF(TRIM(AW25)=\"\", \"\", IF(VLOOKUP(AW25,'Footnotes list'!$D$9:$E$107,2,FALSE)=0,\"\",VLOOKUP(AW25,'Footnotes list'!$D$9:$E$107,2,FALSE) ) )","v":""},0,null,null,{"$f":"IF(TRIM(BA25)=\"\", \"\", IF(VLOOKUP(BA25,'Footnotes list'!$D$9:$E$107,2,FALSE)=0,\"\",VLOOKUP(BA25,'Footnotes list'!$D$9:$E$107,2,FALSE) ) )","v":""},"",null,null,{"$f":"IF(TRIM(BE25)=\"\", \"\", IF(VLOOKUP(BE25,'Footnotes list'!$D$9:$E$107,2,FALSE)=0,\"\",VLOOKUP(BE25,'Footnotes list'!$D$9:$E$107,2,FALSE) ) )","v":""}]
[null,{"$f":"CODES!G26","v":"PROV_CR_MF1222"},"THS_T",null,"MF.1.2.2.2   Grazed biomass","1000 tonnes",null,null,null,{"$f":"IF(TRIM(I26)=\"\", \"\", IF(VLOOKUP(I26,'Footnotes list'!$D$9:$E$107,2,FALSE)=0,\"\",VLOOKUP(I26,'Footnotes list'!$D$9:$E$107,2,FALSE) ) )","v":""},null,null,null,{"$f":"IF(TRIM(M26)=\"\", \"\", IF(VLOOKUP(M26,'Footnotes list'!$D$9:$E$107,2,FALSE)=0,\"\",VLOOKUP(M26,'Footnotes list'!$D$9:$E$107,2,FALSE) ) )","v":""},null,null,null,{"$f":"IF(TRIM(Q26)=\"\", \"\", IF(VLOOKUP(Q26,'Footnotes list'!$D$9:$E$107,2,FALSE)=0,\"\",VLOOKUP(Q26,'Footnotes list'!$D$9:$E$107,2,FALSE) ) )","v":""},0,null,null,{"$f":"IF(TRIM(U26)=\"\", \"\", IF(VLOOKUP(U26,'Footnotes list'!$D$9:$E$107,2,FALSE)=0,\"\",VLOOKUP(U26,'Footnotes list'!$D$9:$E$107,2,FALSE) ) )","v":""},0,null,null,{"$f":"IF(TRIM(Y26)=\"\", \"\", IF(VLOOKUP(Y26,'Footnotes list'!$D$9:$E$107,2,FALSE)=0,\"\",VLOOKUP(Y26,'Footnotes list'!$D$9:$E$107,2,FALSE) ) )","v":""},0,null,null,{"$f":"IF(TRIM(AC26)=\"\", \"\", IF(VLOOKUP(AC26,'Footnotes list'!$D$9:$E$107,2,FALSE)=0,\"\",VLOOKUP(AC26,'Footnotes list'!$D$9:$E$107,2,FALSE) ) )","v":""},0,null,null,{"$f":"IF(TRIM(AG26)=\"\", \"\", IF(VLOOKUP(AG26,'Footnotes list'!$D$9:$E$107,2,FALSE)=0,\"\",VLOOKUP(AG26,'Footnotes list'!$D$9:$E$107,2,FALSE) ) )","v":""},0,null,null,{"$f":"IF(TRIM(AK26)=\"\", \"\", IF(VLOOKUP(AK26,'Footnotes list'!$D$9:$E$107,2,FALSE)=0,\"\",VLOOKUP(AK26,'Footnotes list'!$D$9:$E$107,2,FALSE) ) )","v":""},0,null,null,{"$f":"IF(TRIM(AO26)=\"\", \"\", IF(VLOOKUP(AO26,'Footnotes list'!$D$9:$E$107,2,FALSE)=0,\"\",VLOOKUP(AO26,'Footnotes list'!$D$9:$E$107,2,FALSE) ) )","v":""},0,null,null,{"$f":"IF(TRIM(AS26)=\"\", \"\", IF(VLOOKUP(AS26,'Footnotes list'!$D$9:$E$107,2,FALSE)=0,\"\",VLOOKUP(AS26,'Footnotes list'!$D$9:$E$107,2,FALSE) ) )","v":""},0,null,null,{"$f":"IF(TRIM(AW26)=\"\", \"\", IF(VLOOKUP(AW26,'Footnotes list'!$D$9:$E$107,2,FALSE)=0,\"\",VLOOKUP(AW26,'Footnotes list'!$D$9:$E$107,2,FALSE) ) )","v":""},0,null,null,{"$f":"IF(TRIM(BA26)=\"\", \"\", IF(VLOOKUP(BA26,'Footnotes list'!$D$9:$E$107,2,FALSE)=0,\"\",VLOOKUP(BA26,'Footnotes list'!$D$9:$E$107,2,FALSE) ) )","v":""},"",null,null,{"$f":"IF(TRIM(BE26)=\"\", \"\", IF(VLOOKUP(BE26,'Footnotes list'!$D$9:$E$107,2,FALSE)=0,\"\",VLOOKUP(BE26,'Footnotes list'!$D$9:$E$107,2,FALSE) ) )","v":""}]
[null,{"$f":"CODES!G27","v":"PROV_POLN_MF11_12"},"THS_T",null,"Crop pollination","1000 tonnes",{"$f":"IF(COUNTA(G28:G39)<2,\"\",SUM(G28,G39))","v":0},null,null,{"$f":"IF(TRIM(I27)=\"\", \"\", IF(VLOOKUP(I27,'Footnotes list'!$D$9:$E$107,2,FALSE)=0,\"\",VLOOKUP(I27,'Footnotes list'!$D$9:$E$107,2,FALSE) ) )","v":""},{"$f":"IF(COUNTA(K28:K39)<2,\"\",SUM(K28,K39))","v":0},null,null,{"$f":"IF(TRIM(M27)=\"\", \"\", IF(VLOOKUP(M27,'Footnotes list'!$D$9:$E$107,2,FALSE)=0,\"\",VLOOKUP(M27,'Footnotes list'!$D$9:$E$107,2,FALSE) ) )","v":""},{"$f":"IF(COUNTA(O28:O39)<2,\"\",SUM(O28,O39))","v":0},null,null,{"$f":"IF(TRIM(Q27)=\"\", \"\", IF(VLOOKUP(Q27,'Footnotes list'!$D$9:$E$107,2,FALSE)=0,\"\",VLOOKUP(Q27,'Footnotes list'!$D$9:$E$107,2,FALSE) ) )","v":""},{"$f":"IF(COUNTA(S28:S39)<2,\"\",SUM(S28,S39))","v":0},null,null,{"$f":"IF(TRIM(U27)=\"\", \"\", IF(VLOOKUP(U27,'Footnotes list'!$D$9:$E$107,2,FALSE)=0,\"\",VLOOKUP(U27,'Footnotes list'!$D$9:$E$107,2,FALSE) ) )","v":""},{"$f":"IF(COUNTA(W28:W39)<2,\"\",SUM(W28,W39))","v":0},null,null,{"$f":"IF(TRIM(Y27)=\"\", \"\", IF(VLOOKUP(Y27,'Footnotes list'!$D$9:$E$107,2,FALSE)=0,\"\",VLOOKUP(Y27,'Footnotes list'!$D$9:$E$107,2,FALSE) ) )","v":""},{"$f":"IF(COUNTA(AA28:AA39)<2,\"\",SUM(AA28,AA39))","v":0},null,null,{"$f":"IF(TRIM(AC27)=\"\", \"\", IF(VLOOKUP(AC27,'Footnotes list'!$D$9:$E$107,2,FALSE)=0,\"\",VLOOKUP(AC27,'Footnotes list'!$D$9:$E$107,2,FALSE) ) )","v":""},{"$f":"IF(COUNTA(AE28:AE39)<2,\"\",SUM(AE28,AE39))","v":0},null,null,{"$f":"IF(TRIM(AG27)=\"\", \"\", IF(VLOOKUP(AG27,'Footnotes list'!$D$9:$E$107,2,FALSE)=0,\"\",VLOOKUP(AG27,'Footnotes list'!$D$9:$E$107,2,FALSE) ) )","v":""},{"$f":"IF(COUNTA(AI28:AI39)<2,\"\",SUM(AI28,AI39))","v":0},null,null,{"$f":"IF(TRIM(AK27)=\"\", \"\", IF(VLOOKUP(AK27,'Footnotes list'!$D$9:$E$107,2,FALSE)=0,\"\",VLOOKUP(AK27,'Footnotes list'!$D$9:$E$107,2,FALSE) ) )","v":""},{"$f":"IF(COUNTA(AM28:AM39)<2,\"\",SUM(AM28,AM39))","v":0},null,null,{"$f":"IF(TRIM(AO27)=\"\", \"\", IF(VLOOKUP(AO27,'Footnotes list'!$D$9:$E$107,2,FALSE)=0,\"\",VLOOKUP(AO27,'Footnotes list'!$D$9:$E$107,2,FALSE) ) )","v":""},{"$f":"IF(COUNTA(AQ28:AQ39)<2,\"\",SUM(AQ28,AQ39))","v":0},null,null,{"$f":"IF(TRIM(AS27)=\"\", \"\", IF(VLOOKUP(AS27,'Footnotes list'!$D$9:$E$107,2,FALSE)=0,\"\",VLOOKUP(AS27,'Footnotes list'!$D$9:$E$107,2,FALSE) ) )","v":""},{"$f":"IF(COUNTA(AU28:AU39)<2,\"\",SUM(AU28,AU39))","v":0},null,null,{"$f":"IF(TRIM(AW27)=\"\", \"\", IF(VLOOKUP(AW27,'Footnotes list'!$D$9:$E$107,2,FALSE)=0,\"\",VLOOKUP(AW27,'Footnotes list'!$D$9:$E$107,2,FALSE) ) )","v":""},{"$f":"IF(COUNTA(AY28:AY39)<2,\"\",SUM(AY28,AY39))","v":0},null,null,{"$f":"IF(TRIM(BA27)=\"\", \"\", IF(VLOOKUP(BA27,'Footnotes list'!$D$9:$E$107,2,FALSE)=0,\"\",VLOOKUP(BA27,'Footnotes list'!$D$9:$E$107,2,FALSE) ) )","v":""},0,null,null,{"$f":"IF(TRIM(BE27)=\"\", \"\", IF(VLOOKUP(BE27,'Footnotes list'!$D$9:$E$107,2,FALSE)=0,\"\",VLOOKUP(BE27,'Footnotes list'!$D$9:$E$107,2,FALSE) ) )","v":""}]
[null,{"$f":"CODES!G28","v":"PROV_POLN_MF11"},"THS_T",null,"MF.1.1   Crops (excluding fodder crops)","1000 tonnes",{"$f":"IF(COUNTA(G29:G38)<10,\"\",SUM(G29:G38))","v":""},null,null,{"$f":"IF(TRIM(I28)=\"\", \"\", IF(VLOOKUP(I28,'Footnotes list'!$D$9:$E$107,2,FALSE)=0,\"\",VLOOKUP(I28,'Footnotes list'!$D$9:$E$107,2,FALSE) ) )","v":""},{"$f":"IF(COUNTA(K29:K38)<10,\"\",SUM(K29:K38))","v":""},null,null,{"$f":"IF(TRIM(M28)=\"\", \"\", IF(VLOOKUP(M28,'Footnotes list'!$D$9:$E$107,2,FALSE)=0,\"\",VLOOKUP(M28,'Footnotes list'!$D$9:$E$107,2,FALSE) ) )","v":""},{"$f":"IF(COUNTA(O29:O38)<10,\"\",SUM(O29:O38))","v":""},null,null,{"$f":"IF(TRIM(Q28)=\"\", \"\", IF(VLOOKUP(Q28,'Footnotes list'!$D$9:$E$107,2,FALSE)=0,\"\",VLOOKUP(Q28,'Footnotes list'!$D$9:$E$107,2,FALSE) ) )","v":""},{"$f":"IF(COUNTA(S29:S38)<10,\"\",SUM(S29:S38))","v":0},null,null,{"$f":"IF(TRIM(U28)=\"\", \"\", IF(VLOOKUP(U28,'Footnotes list'!$D$9:$E$107,2,FALSE)=0,\"\",VLOOKUP(U28,'Footnotes list'!$D$9:$E$107,2,FALSE) ) )","v":""},{"$f":"IF(COUNTA(W29:W38)<10,\"\",SUM(W29:W38))","v":0},null,null,{"$f":"IF(TRIM(Y28)=\"\", \"\", IF(VLOOKUP(Y28,'Footnotes list'!$D$9:$E$107,2,FALSE)=0,\"\",VLOOKUP(Y28,'Footnotes list'!$D$9:$E$107,2,FALSE) ) )","v":""},{"$f":"IF(COUNTA(AA29:AA38)<10,\"\",SUM(AA29:AA38))","v":0},null,null,{"$f":"IF(TRIM(AC28)=\"\", \"\", IF(VLOOKUP(AC28,'Footnotes list'!$D$9:$E$107,2,FALSE)=0,\"\",VLOOKUP(AC28,'Footnotes list'!$D$9:$E$107,2,FALSE) ) )","v":""},{"$f":"IF(COUNTA(AE29:AE38)<10,\"\",SUM(AE29:AE38))","v":0},null,null,{"$f":"IF(TRIM(AG28)=\"\", \"\", IF(VLOOKUP(AG28,'Footnotes list'!$D$9:$E$107,2,FALSE)=0,\"\",VLOOKUP(AG28,'Footnotes list'!$D$9:$E$107,2,FALSE) ) )","v":""},{"$f":"IF(COUNTA(AI29:AI38)<10,\"\",SUM(AI29:AI38))","v":0},null,null,{"$f":"IF(TRIM(AK28)=\"\", \"\", IF(VLOOKUP(AK28,'Footnotes list'!$D$9:$E$107,2,FALSE)=0,\"\",VLOOKUP(AK28,'Footnotes list'!$D$9:$E$107,2,FALSE) ) )","v":""},{"$f":"IF(COUNTA(AM29:AM38)<10,\"\",SUM(AM29:AM38))","v":0},null,null,{"$f":"IF(TRIM(AO28)=\"\", \"\", IF(VLOOKUP(AO28,'Footnotes list'!$D$9:$E$107,2,FALSE)=0,\"\",VLOOKUP(AO28,'Footnotes list'!$D$9:$E$107,2,FALSE) ) )","v":""},{"$f":"IF(COUNTA(AQ29:AQ38)<10,\"\",SUM(AQ29:AQ38))","v":0},null,null,{"$f":"IF(TRIM(AS28)=\"\", \"\", IF(VLOOKUP(AS28,'Footnotes list'!$D$9:$E$107,2,FALSE)=0,\"\",VLOOKUP(AS28,'Footnotes list'!$D$9:$E$107,2,FALSE) ) )","v":""},{"$f":"IF(COUNTA(AU29:AU38)<10,\"\",SUM(AU29:AU38))","v":0},null,null,{"$f":"IF(TRIM(AW28)=\"\", \"\", IF(VLOOKUP(AW28,'Footnotes list'!$D$9:$E$107,2,FALSE)=0,\"\",VLOOKUP(AW28,'Footnotes list'!$D$9:$E$107,2,FALSE) ) )","v":""},{"$f":"IF(COUNTA(AY29:AY38)<10,\"\",SUM(AY29:AY38))","v":0},null,null,{"$f":"IF(TRIM(BA28)=\"\", \"\", IF(VLOOKUP(BA28,'Footnotes list'!$D$9:$E$107,2,FALSE)=0,\"\",VLOOKUP(BA28,'Footnotes list'!$D$9:$E$107,2,FALSE) ) )","v":""},0,null,null,{"$f":"IF(TRIM(BE28)=\"\", \"\", IF(VLOOKUP(BE28,'Footnotes list'!$D$9:$E$107,2,FALSE)=0,\"\",VLOOKUP(BE28,'Footnotes list'!$D$9:$E$107,2,FALSE) ) )","v":""}]
[null,{"$f":"CODES!G29","v":"PROV_POLN_MF111"},"THS_T",null,"MF.1.1.1   Cereals ","1000 tonnes",null,null,null,{"$f":"IF(TRIM(I29)=\"\", \"\", IF(VLOOKUP(I29,'Footnotes list'!$D$9:$E$107,2,FALSE)=0,\"\",VLOOKUP(I29,'Footnotes list'!$D$9:$E$107,2,FALSE) ) )","v":""},null,null,null,{"$f":"IF(TRIM(M29)=\"\", \"\", IF(VLOOKUP(M29,'Footnotes list'!$D$9:$E$107,2,FALSE)=0,\"\",VLOOKUP(M29,'Footnotes list'!$D$9:$E$107,2,FALSE) ) )","v":""},null,null,null,{"$f":"IF(TRIM(Q29)=\"\", \"\", IF(VLOOKUP(Q29,'Footnotes list'!$D$9:$E$107,2,FALSE)=0,\"\",VLOOKUP(Q29,'Footnotes list'!$D$9:$E$107,2,FALSE) ) )","v":""},0,null,null,{"$f":"IF(TRIM(U29)=\"\", \"\", IF(VLOOKUP(U29,'Footnotes list'!$D$9:$E$107,2,FALSE)=0,\"\",VLOOKUP(U29,'Footnotes list'!$D$9:$E$107,2,FALSE) ) )","v":""},0,null,null,{"$f":"IF(TRIM(Y29)=\"\", \"\", IF(VLOOKUP(Y29,'Footnotes list'!$D$9:$E$107,2,FALSE)=0,\"\",VLOOKUP(Y29,'Footnotes list'!$D$9:$E$107,2,FALSE) ) )","v":""},0,null,null,{"$f":"IF(TRIM(AC29)=\"\", \"\", IF(VLOOKUP(AC29,'Footnotes list'!$D$9:$E$107,2,FALSE)=0,\"\",VLOOKUP(AC29,'Footnotes list'!$D$9:$E$107,2,FALSE) ) )","v":""},0,null,null,{"$f":"IF(TRIM(AG29)=\"\", \"\", IF(VLOOKUP(AG29,'Footnotes list'!$D$9:$E$107,2,FALSE)=0,\"\",VLOOKUP(AG29,'Footnotes list'!$D$9:$E$107,2,FALSE) ) )","v":""},0,null,null,{"$f":"IF(TRIM(AK29)=\"\", \"\", IF(VLOOKUP(AK29,'Footnotes list'!$D$9:$E$107,2,FALSE)=0,\"\",VLOOKUP(AK29,'Footnotes list'!$D$9:$E$107,2,FALSE) ) )","v":""},0,null,null,{"$f":"IF(TRIM(AO29)=\"\", \"\", IF(VLOOKUP(AO29,'Footnotes list'!$D$9:$E$107,2,FALSE)=0,\"\",VLOOKUP(AO29,'Footnotes list'!$D$9:$E$107,2,FALSE) ) )","v":""},0,null,null,{"$f":"IF(TRIM(AS29)=\"\", \"\", IF(VLOOKUP(AS29,'Footnotes list'!$D$9:$E$107,2,FALSE)=0,\"\",VLOOKUP(AS29,'Footnotes list'!$D$9:$E$107,2,FALSE) ) )","v":""},0,null,null,{"$f":"IF(TRIM(AW29)=\"\", \"\", IF(VLOOKUP(AW29,'Footnotes list'!$D$9:$E$107,2,FALSE)=0,\"\",VLOOKUP(AW29,'Footnotes list'!$D$9:$E$107,2,FALSE) ) )","v":""},0,null,null,{"$f":"IF(TRIM(BA29)=\"\", \"\", IF(VLOOKUP(BA29,'Footnotes list'!$D$9:$E$107,2,FALSE)=0,\"\",VLOOKUP(BA29,'Footnotes list'!$D$9:$E$107,2,FALSE) ) )","v":""},"",null,null,{"$f":"IF(TRIM(BE29)=\"\", \"\", IF(VLOOKUP(BE29,'Footnotes list'!$D$9:$E$107,2,FALSE)=0,\"\",VLOOKUP(BE29,'Footnotes list'!$D$9:$E$107,2,FALSE) ) )","v":""}]
[null,{"$f":"CODES!G30","v":"PROV_POLN_MF112"},"THS_T",null,"MF.1.1.2   Roots, tubers","1000 tonnes",null,null,null,{"$f":"IF(TRIM(I30)=\"\", \"\", IF(VLOOKUP(I30,'Footnotes list'!$D$9:$E$107,2,FALSE)=0,\"\",VLOOKUP(I30,'Footnotes list'!$D$9:$E$107,2,FALSE) ) )","v":""},null,null,null,{"$f":"IF(TRIM(M30)=\"\", \"\", IF(VLOOKUP(M30,'Footnotes list'!$D$9:$E$107,2,FALSE)=0,\"\",VLOOKUP(M30,'Footnotes list'!$D$9:$E$107,2,FALSE) ) )","v":""},null,null,null,{"$f":"IF(TRIM(Q30)=\"\", \"\", IF(VLOOKUP(Q30,'Footnotes list'!$D$9:$E$107,2,FALSE)=0,\"\",VLOOKUP(Q30,'Footnotes list'!$D$9:$E$107,2,FALSE) ) )","v":""},0,null,null,{"$f":"IF(TRIM(U30)=\"\", \"\", IF(VLOOKUP(U30,'Footnotes list'!$D$9:$E$107,2,FALSE)=0,\"\",VLOOKUP(U30,'Footnotes list'!$D$9:$E$107,2,FALSE) ) )","v":""},0,null,null,{"$f":"IF(TRIM(Y30)=\"\", \"\", IF(VLOOKUP(Y30,'Footnotes list'!$D$9:$E$107,2,FALSE)=0,\"\",VLOOKUP(Y30,'Footnotes list'!$D$9:$E$107,2,FALSE) ) )","v":""},0,null,null,{"$f":"IF(TRIM(AC30)=\"\", \"\", IF(VLOOKUP(AC30,'Footnotes list'!$D$9:$E$107,2,FALSE)=0,\"\",VLOOKUP(AC30,'Footnotes list'!$D$9:$E$107,2,FALSE) ) )","v":""},0,null,null,{"$f":"IF(TRIM(AG30)=\"\", \"\", IF(VLOOKUP(AG30,'Footnotes list'!$D$9:$E$107,2,FALSE)=0,\"\",VLOOKUP(AG30,'Footnotes list'!$D$9:$E$107,2,FALSE) ) )","v":""},0,null,null,{"$f":"IF(TRIM(AK30)=\"\", \"\", IF(VLOOKUP(AK30,'Footnotes list'!$D$9:$E$107,2,FALSE)=0,\"\",VLOOKUP(AK30,'Footnotes list'!$D$9:$E$107,2,FALSE) ) )","v":""},0,null,null,{"$f":"IF(TRIM(AO30)=\"\", \"\", IF(VLOOKUP(AO30,'Footnotes list'!$D$9:$E$107,2,FALSE)=0,\"\",VLOOKUP(AO30,'Footnotes list'!$D$9:$E$107,2,FALSE) ) )","v":""},0,null,null,{"$f":"IF(TRIM(AS30)=\"\", \"\", IF(VLOOKUP(AS30,'Footnotes list'!$D$9:$E$107,2,FALSE)=0,\"\",VLOOKUP(AS30,'Footnotes list'!$D$9:$E$107,2,FALSE) ) )","v":""},0,null,null,{"$f":"IF(TRIM(AW30)=\"\", \"\", IF(VLOOKUP(AW30,'Footnotes list'!$D$9:$E$107,2,FALSE)=0,\"\",VLOOKUP(AW30,'Footnotes list'!$D$9:$E$107,2,FALSE) ) )","v":""},0,null,null,{"$f":"IF(TRIM(BA30)=\"\", \"\", IF(VLOOKUP(BA30,'Footnotes list'!$D$9:$E$107,2,FALSE)=0,\"\",VLOOKUP(BA30,'Footnotes list'!$D$9:$E$107,2,FALSE) ) )","v":""},"",null,null,{"$f":"IF(TRIM(BE30)=\"\", \"\", IF(VLOOKUP(BE30,'Footnotes list'!$D$9:$E$107,2,FALSE)=0,\"\",VLOOKUP(BE30,'Footnotes list'!$D$9:$E$107,2,FALSE) ) )","v":""}]
[null,{"$f":"CODES!G31","v":"PROV_POLN_MF113"},"THS_T",null,"MF.1.1.3   Sugar crops ","1000 tonnes",null,null,null,{"$f":"IF(TRIM(I31)=\"\", \"\", IF(VLOOKUP(I31,'Footnotes list'!$D$9:$E$107,2,FALSE)=0,\"\",VLOOKUP(I31,'Footnotes list'!$D$9:$E$107,2,FALSE) ) )","v":""},null,null,null,{"$f":"IF(TRIM(M31)=\"\", \"\", IF(VLOOKUP(M31,'Footnotes list'!$D$9:$E$107,2,FALSE)=0,\"\",VLOOKUP(M31,'Footnotes list'!$D$9:$E$107,2,FALSE) ) )","v":""},null,null,null,{"$f":"IF(TRIM(Q31)=\"\", \"\", IF(VLOOKUP(Q31,'Footnotes list'!$D$9:$E$107,2,FALSE)=0,\"\",VLOOKUP(Q31,'Footnotes list'!$D$9:$E$107,2,FALSE) ) )","v":""},0,null,null,{"$f":"IF(TRIM(U31)=\"\", \"\", IF(VLOOKUP(U31,'Footnotes list'!$D$9:$E$107,2,FALSE)=0,\"\",VLOOKUP(U31,'Footnotes list'!$D$9:$E$107,2,FALSE) ) )","v":""},0,null,null,{"$f":"IF(TRIM(Y31)=\"\", \"\", IF(VLOOKUP(Y31,'Footnotes list'!$D$9:$E$107,2,FALSE)=0,\"\",VLOOKUP(Y31,'Footnotes list'!$D$9:$E$107,2,FALSE) ) )","v":""},0,null,null,{"$f":"IF(TRIM(AC31)=\"\", \"\", IF(VLOOKUP(AC31,'Footnotes list'!$D$9:$E$107,2,FALSE)=0,\"\",VLOOKUP(AC31,'Footnotes list'!$D$9:$E$107,2,FALSE) ) )","v":""},0,null,null,{"$f":"IF(TRIM(AG31)=\"\", \"\", IF(VLOOKUP(AG31,'Footnotes list'!$D$9:$E$107,2,FALSE)=0,\"\",VLOOKUP(AG31,'Footnotes list'!$D$9:$E$107,2,FALSE) ) )","v":""},0,null,null,{"$f":"IF(TRIM(AK31)=\"\", \"\", IF(VLOOKUP(AK31,'Footnotes list'!$D$9:$E$107,2,FALSE)=0,\"\",VLOOKUP(AK31,'Footnotes list'!$D$9:$E$107,2,FALSE) ) )","v":""},0,null,null,{"$f":"IF(TRIM(AO31)=\"\", \"\", IF(VLOOKUP(AO31,'Footnotes list'!$D$9:$E$107,2,FALSE)=0,\"\",VLOOKUP(AO31,'Footnotes list'!$D$9:$E$107,2,FALSE) ) )","v":""},0,null,null,{"$f":"IF(TRIM(AS31)=\"\", \"\", IF(VLOOKUP(AS31,'Footnotes list'!$D$9:$E$107,2,FALSE)=0,\"\",VLOOKUP(AS31,'Footnotes list'!$D$9:$E$107,2,FALSE) ) )","v":""},0,null,null,{"$f":"IF(TRIM(AW31)=\"\", \"\", IF(VLOOKUP(AW31,'Footnotes list'!$D$9:$E$107,2,FALSE)=0,\"\",VLOOKUP(AW31,'Footnotes list'!$D$9:$E$107,2,FALSE) ) )","v":""},0,null,null,{"$f":"IF(TRIM(BA31)=\"\", \"\", IF(VLOOKUP(BA31,'Footnotes list'!$D$9:$E$107,2,FALSE)=0,\"\",VLOOKUP(BA31,'Footnotes list'!$D$9:$E$107,2,FALSE) ) )","v":""},"",null,null,{"$f":"IF(TRIM(BE31)=\"\", \"\", IF(VLOOKUP(BE31,'Footnotes list'!$D$9:$E$107,2,FALSE)=0,\"\",VLOOKUP(BE31,'Footnotes list'!$D$9:$E$107,2,FALSE) ) )","v":""}]
[null,{"$f":"CODES!G32","v":"PROV_POLN_MF114"},"THS_T",null,"MF.1.1.4   Pulses","1000 tonnes",null,null,null,{"$f":"IF(TRIM(I32)=\"\", \"\", IF(VLOOKUP(I32,'Footnotes list'!$D$9:$E$107,2,FALSE)=0,\"\",VLOOKUP(I32,'Footnotes list'!$D$9:$E$107,2,FALSE) ) )","v":""},null,null,null,{"$f":"IF(TRIM(M32)=\"\", \"\", IF(VLOOKUP(M32,'Footnotes list'!$D$9:$E$107,2,FALSE)=0,\"\",VLOOKUP(M32,'Footnotes list'!$D$9:$E$107,2,FALSE) ) )","v":""},null,null,null,{"$f":"IF(TRIM(Q32)=\"\", \"\", IF(VLOOKUP(Q32,'Footnotes list'!$D$9:$E$107,2,FALSE)=0,\"\",VLOOKUP(Q32,'Footnotes list'!$D$9:$E$107,2,FALSE) ) )","v":""},0,null,null,{"$f":"IF(TRIM(U32)=\"\", \"\", IF(VLOOKUP(U32,'Footnotes list'!$D$9:$E$107,2,FALSE)=0,\"\",VLOOKUP(U32,'Footnotes list'!$D$9:$E$107,2,FALSE) ) )","v":""},0,null,null,{"$f":"IF(TRIM(Y32)=\"\", \"\", IF(VLOOKUP(Y32,'Footnotes list'!$D$9:$E$107,2,FALSE)=0,\"\",VLOOKUP(Y32,'Footnotes list'!$D$9:$E$107,2,FALSE) ) )","v":""},0,null,null,{"$f":"IF(TRIM(AC32)=\"\", \"\", IF(VLOOKUP(AC32,'Footnotes list'!$D$9:$E$107,2,FALSE)=0,\"\",VLOOKUP(AC32,'Footnotes list'!$D$9:$E$107,2,FALSE) ) )","v":""},0,null,null,{"$f":"IF(TRIM(AG32)=\"\", \"\", IF(VLOOKUP(AG32,'Footnotes list'!$D$9:$E$107,2,FALSE)=0,\"\",VLOOKUP(AG32,'Footnotes list'!$D$9:$E$107,2,FALSE) ) )","v":""},0,null,null,{"$f":"IF(TRIM(AK32)=\"\", \"\", IF(VLOOKUP(AK32,'Footnotes list'!$D$9:$E$107,2,FALSE)=0,\"\",VLOOKUP(AK32,'Footnotes list'!$D$9:$E$107,2,FALSE) ) )","v":""},0,null,null,{"$f":"IF(TRIM(AO32)=\"\", \"\", IF(VLOOKUP(AO32,'Footnotes list'!$D$9:$E$107,2,FALSE)=0,\"\",VLOOKUP(AO32,'Footnotes list'!$D$9:$E$107,2,FALSE) ) )","v":""},0,null,null,{"$f":"IF(TRIM(AS32)=\"\", \"\", IF(VLOOKUP(AS32,'Footnotes list'!$D$9:$E$107,2,FALSE)=0,\"\",VLOOKUP(AS32,'Footnotes list'!$D$9:$E$107,2,FALSE) ) )","v":""},0,null,null,{"$f":"IF(TRIM(AW32)=\"\", \"\", IF(VLOOKUP(AW32,'Footnotes list'!$D$9:$E$107,2,FALSE)=0,\"\",VLOOKUP(AW32,'Footnotes list'!$D$9:$E$107,2,FALSE) ) )","v":""},0,null,null,{"$f":"IF(TRIM(BA32)=\"\", \"\", IF(VLOOKUP(BA32,'Footnotes list'!$D$9:$E$107,2,FALSE)=0,\"\",VLOOKUP(BA32,'Footnotes list'!$D$9:$E$107,2,FALSE) ) )","v":""},"",null,null,{"$f":"IF(TRIM(BE32)=\"\", \"\", IF(VLOOKUP(BE32,'Footnotes list'!$D$9:$E$107,2,FALSE)=0,\"\",VLOOKUP(BE32,'Footnotes list'!$D$9:$E$107,2,FALSE) ) )","v":""}]
[null,{"$f":"CODES!G33","v":"PROV_POLN_MF115"},"THS_T",null,"MF.1.1.5   Nuts ","1000 tonnes",null,null,null,{"$f":"IF(TRIM(I33)=\"\", \"\", IF(VLOOKUP(I33,'Footnotes list'!$D$9:$E$107,2,FALSE)=0,\"\",VLOOKUP(I33,'Footnotes list'!$D$9:$E$107,2,FALSE) ) )","v":""},null,null,null,{"$f":"IF(TRIM(M33)=\"\", \"\", IF(VLOOKUP(M33,'Footnotes list'!$D$9:$E$107,2,FALSE)=0,\"\",VLOOKUP(M33,'Footnotes list'!$D$9:$E$107,2,FALSE) ) )","v":""},null,null,null,{"$f":"IF(TRIM(Q33)=\"\", \"\", IF(VLOOKUP(Q33,'Footnotes list'!$D$9:$E$107,2,FALSE)=0,\"\",VLOOKUP(Q33,'Footnotes list'!$D$9:$E$107,2,FALSE) ) )","v":""},0,null,null,{"$f":"IF(TRIM(U33)=\"\", \"\", IF(VLOOKUP(U33,'Footnotes list'!$D$9:$E$107,2,FALSE)=0,\"\",VLOOKUP(U33,'Footnotes list'!$D$9:$E$107,2,FALSE) ) )","v":""},0,null,null,{"$f":"IF(TRIM(Y33)=\"\", \"\", IF(VLOOKUP(Y33,'Footnotes list'!$D$9:$E$107,2,FALSE)=0,\"\",VLOOKUP(Y33,'Footnotes list'!$D$9:$E$107,2,FALSE) ) )","v":""},0,null,null,{"$f":"IF(TRIM(AC33)=\"\", \"\", IF(VLOOKUP(AC33,'Footnotes list'!$D$9:$E$107,2,FALSE)=0,\"\",VLOOKUP(AC33,'Footnotes list'!$D$9:$E$107,2,FALSE) ) )","v":""},0,null,null,{"$f":"IF(TRIM(AG33)=\"\", \"\", IF(VLOOKUP(AG33,'Footnotes list'!$D$9:$E$107,2,FALSE)=0,\"\",VLOOKUP(AG33,'Footnotes list'!$D$9:$E$107,2,FALSE) ) )","v":""},0,null,null,{"$f":"IF(TRIM(AK33)=\"\", \"\", IF(VLOOKUP(AK33,'Footnotes list'!$D$9:$E$107,2,FALSE)=0,\"\",VLOOKUP(AK33,'Footnotes list'!$D$9:$E$107,2,FALSE) ) )","v":""},0,null,null,{"$f":"IF(TRIM(AO33)=\"\", \"\", IF(VLOOKUP(AO33,'Footnotes list'!$D$9:$E$107,2,FALSE)=0,\"\",VLOOKUP(AO33,'Footnotes list'!$D$9:$E$107,2,FALSE) ) )","v":""},0,null,null,{"$f":"IF(TRIM(AS33)=\"\", \"\", IF(VLOOKUP(AS33,'Footnotes list'!$D$9:$E$107,2,FALSE)=0,\"\",VLOOKUP(AS33,'Footnotes list'!$D$9:$E$107,2,FALSE) ) )","v":""},0,null,null,{"$f":"IF(TRIM(AW33)=\"\", \"\", IF(VLOOKUP(AW33,'Footnotes list'!$D$9:$E$107,2,FALSE)=0,\"\",VLOOKUP(AW33,'Footnotes list'!$D$9:$E$107,2,FALSE) ) )","v":""},0,null,null,{"$f":"IF(TRIM(BA33)=\"\", \"\", IF(VLOOKUP(BA33,'Footnotes list'!$D$9:$E$107,2,FALSE)=0,\"\",VLOOKUP(BA33,'Footnotes list'!$D$9:$E$107,2,FALSE) ) )","v":""},"",null,null,{"$f":"IF(TRIM(BE33)=\"\", \"\", IF(VLOOKUP(BE33,'Footnotes list'!$D$9:$E$107,2,FALSE)=0,\"\",VLOOKUP(BE33,'Footnotes list'!$D$9:$E$107,2,FALSE) ) )","v":""}]
[null,{"$f":"CODES!G34","v":"PROV_POLN_MF116"},"THS_T",null,"MF.1.1.6   Oil-bearing crops ","1000 tonnes",null,null,null,{"$f":"IF(TRIM(I34)=\"\", \"\", IF(VLOOKUP(I34,'Footnotes list'!$D$9:$E$107,2,FALSE)=0,\"\",VLOOKUP(I34,'Footnotes list'!$D$9:$E$107,2,FALSE) ) )","v":""},null,null,null,{"$f":"IF(TRIM(M34)=\"\", \"\", IF(VLOOKUP(M34,'Footnotes list'!$D$9:$E$107,2,FALSE)=0,\"\",VLOOKUP(M34,'Footnotes list'!$D$9:$E$107,2,FALSE) ) )","v":""},null,null,null,{"$f":"IF(TRIM(Q34)=\"\", \"\", IF(VLOOKUP(Q34,'Footnotes list'!$D$9:$E$107,2,FALSE)=0,\"\",VLOOKUP(Q34,'Footnotes list'!$D$9:$E$107,2,FALSE) ) )","v":""},0,null,null,{"$f":"IF(TRIM(U34)=\"\", \"\", IF(VLOOKUP(U34,'Footnotes list'!$D$9:$E$107,2,FALSE)=0,\"\",VLOOKUP(U34,'Footnotes list'!$D$9:$E$107,2,FALSE) ) )","v":""},0,null,null,{"$f":"IF(TRIM(Y34)=\"\", \"\", IF(VLOOKUP(Y34,'Footnotes list'!$D$9:$E$107,2,FALSE)=0,\"\",VLOOKUP(Y34,'Footnotes list'!$D$9:$E$107,2,FALSE) ) )","v":""},0,null,null,{"$f":"IF(TRIM(AC34)=\"\", \"\", IF(VLOOKUP(AC34,'Footnotes list'!$D$9:$E$107,2,FALSE)=0,\"\",VLOOKUP(AC34,'Footnotes list'!$D$9:$E$107,2,FALSE) ) )","v":""},0,null,null,{"$f":"IF(TRIM(AG34)=\"\", \"\", IF(VLOOKUP(AG34,'Footnotes list'!$D$9:$E$107,2,FALSE)=0,\"\",VLOOKUP(AG34,'Footnotes list'!$D$9:$E$107,2,FALSE) ) )","v":""},0,null,null,{"$f":"IF(TRIM(AK34)=\"\", \"\", IF(VLOOKUP(AK34,'Footnotes list'!$D$9:$E$107,2,FALSE)=0,\"\",VLOOKUP(AK34,'Footnotes list'!$D$9:$E$107,2,FALSE) ) )","v":""},0,null,null,{"$f":"IF(TRIM(AO34)=\"\", \"\", IF(VLOOKUP(AO34,'Footnotes list'!$D$9:$E$107,2,FALSE)=0,\"\",VLOOKUP(AO34,'Footnotes list'!$D$9:$E$107,2,FALSE) ) )","v":""},0,null,null,{"$f":"IF(TRIM(AS34)=\"\", \"\", IF(VLOOKUP(AS34,'Footnotes list'!$D$9:$E$107,2,FALSE)=0,\"\",VLOOKUP(AS34,'Footnotes list'!$D$9:$E$107,2,FALSE) ) )","v":""},0,null,null,{"$f":"IF(TRIM(AW34)=\"\", \"\", IF(VLOOKUP(AW34,'Footnotes list'!$D$9:$E$107,2,FALSE)=0,\"\",VLOOKUP(AW34,'Footnotes list'!$D$9:$E$107,2,FALSE) ) )","v":""},0,null,null,{"$f":"IF(TRIM(BA34)=\"\", \"\", IF(VLOOKUP(BA34,'Footnotes list'!$D$9:$E$107,2,FALSE)=0,\"\",VLOOKUP(BA34,'Footnotes list'!$D$9:$E$107,2,FALSE) ) )","v":""},"",null,null,{"$f":"IF(TRIM(BE34)=\"\", \"\", IF(VLOOKUP(BE34,'Footnotes list'!$D$9:$E$107,2,FALSE)=0,\"\",VLOOKUP(BE34,'Footnotes list'!$D$9:$E$107,2,FALSE) ) )","v":""}]
[null,{"$f":"CODES!G35","v":"PROV_POLN_MF117"},"THS_T",null,"MF.1.1.7   Vegetables ","1000 tonnes",null,null,null,{"$f":"IF(TRIM(I35)=\"\", \"\", IF(VLOOKUP(I35,'Footnotes list'!$D$9:$E$107,2,FALSE)=0,\"\",VLOOKUP(I35,'Footnotes list'!$D$9:$E$107,2,FALSE) ) )","v":""},null,null,null,{"$f":"IF(TRIM(M35)=\"\", \"\", IF(VLOOKUP(M35,'Footnotes list'!$D$9:$E$107,2,FALSE)=0,\"\",VLOOKUP(M35,'Footnotes list'!$D$9:$E$107,2,FALSE) ) )","v":""},null,null,null,{"$f":"IF(TRIM(Q35)=\"\", \"\", IF(VLOOKUP(Q35,'Footnotes list'!$D$9:$E$107,2,FALSE)=0,\"\",VLOOKUP(Q35,'Footnotes list'!$D$9:$E$107,2,FALSE) ) )","v":""},0,null,null,{"$f":"IF(TRIM(U35)=\"\", \"\", IF(VLOOKUP(U35,'Footnotes list'!$D$9:$E$107,2,FALSE)=0,\"\",VLOOKUP(U35,'Footnotes list'!$D$9:$E$107,2,FALSE) ) )","v":""},0,null,null,{"$f":"IF(TRIM(Y35)=\"\", \"\", IF(VLOOKUP(Y35,'Footnotes list'!$D$9:$E$107,2,FALSE)=0,\"\",VLOOKUP(Y35,'Footnotes list'!$D$9:$E$107,2,FALSE) ) )","v":""},0,null,null,{"$f":"IF(TRIM(AC35)=\"\", \"\", IF(VLOOKUP(AC35,'Footnotes list'!$D$9:$E$107,2,FALSE)=0,\"\",VLOOKUP(AC35,'Footnotes list'!$D$9:$E$107,2,FALSE) ) )","v":""},0,null,null,{"$f":"IF(TRIM(AG35)=\"\", \"\", IF(VLOOKUP(AG35,'Footnotes list'!$D$9:$E$107,2,FALSE)=0,\"\",VLOOKUP(AG35,'Footnotes list'!$D$9:$E$107,2,FALSE) ) )","v":""},0,null,null,{"$f":"IF(TRIM(AK35)=\"\", \"\", IF(VLOOKUP(AK35,'Footnotes list'!$D$9:$E$107,2,FALSE)=0,\"\",VLOOKUP(AK35,'Footnotes list'!$D$9:$E$107,2,FALSE) ) )","v":""},0,null,null,{"$f":"IF(TRIM(AO35)=\"\", \"\", IF(VLOOKUP(AO35,'Footnotes list'!$D$9:$E$107,2,FALSE)=0,\"\",VLOOKUP(AO35,'Footnotes list'!$D$9:$E$107,2,FALSE) ) )","v":""},0,null,null,{"$f":"IF(TRIM(AS35)=\"\", \"\", IF(VLOOKUP(AS35,'Footnotes list'!$D$9:$E$107,2,FALSE)=0,\"\",VLOOKUP(AS35,'Footnotes list'!$D$9:$E$107,2,FALSE) ) )","v":""},0,null,null,{"$f":"IF(TRIM(AW35)=\"\", \"\", IF(VLOOKUP(AW35,'Footnotes list'!$D$9:$E$107,2,FALSE)=0,\"\",VLOOKUP(AW35,'Footnotes list'!$D$9:$E$107,2,FALSE) ) )","v":""},0,null,null,{"$f":"IF(TRIM(BA35)=\"\", \"\", IF(VLOOKUP(BA35,'Footnotes list'!$D$9:$E$107,2,FALSE)=0,\"\",VLOOKUP(BA35,'Footnotes list'!$D$9:$E$107,2,FALSE) ) )","v":""},"",null,null,{"$f":"IF(TRIM(BE35)=\"\", \"\", IF(VLOOKUP(BE35,'Footnotes list'!$D$9:$E$107,2,FALSE)=0,\"\",VLOOKUP(BE35,'Footnotes list'!$D$9:$E$107,2,FALSE) ) )","v":""}]
[null,{"$f":"CODES!G36","v":"PROV_POLN_MF118"},"THS_T",null,"MF.1.1.8   Fruits ","1000 tonnes",null,null,null,{"$f":"IF(TRIM(I36)=\"\", \"\", IF(VLOOKUP(I36,'Footnotes list'!$D$9:$E$107,2,FALSE)=0,\"\",VLOOKUP(I36,'Footnotes list'!$D$9:$E$107,2,FALSE) ) )","v":""},null,null,null,{"$f":"IF(TRIM(M36)=\"\", \"\", IF(VLOOKUP(M36,'Footnotes list'!$D$9:$E$107,2,FALSE)=0,\"\",VLOOKUP(M36,'Footnotes list'!$D$9:$E$107,2,FALSE) ) )","v":""},null,null,null,{"$f":"IF(TRIM(Q36)=\"\", \"\", IF(VLOOKUP(Q36,'Footnotes list'!$D$9:$E$107,2,FALSE)=0,\"\",VLOOKUP(Q36,'Footnotes list'!$D$9:$E$107,2,FALSE) ) )","v":""},0,null,null,{"$f":"IF(TRIM(U36)=\"\", \"\", IF(VLOOKUP(U36,'Footnotes list'!$D$9:$E$107,2,FALSE)=0,\"\",VLOOKUP(U36,'Footnotes list'!$D$9:$E$107,2,FALSE) ) )","v":""},0,null,null,{"$f":"IF(TRIM(Y36)=\"\", \"\", IF(VLOOKUP(Y36,'Footnotes list'!$D$9:$E$107,2,FALSE)=0,\"\",VLOOKUP(Y36,'Footnotes list'!$D$9:$E$107,2,FALSE) ) )","v":""},0,null,null,{"$f":"IF(TRIM(AC36)=\"\", \"\", IF(VLOOKUP(AC36,'Footnotes list'!$D$9:$E$107,2,FALSE)=0,\"\",VLOOKUP(AC36,'Footnotes list'!$D$9:$E$107,2,FALSE) ) )","v":""},0,null,null,{"$f":"IF(TRIM(AG36)=\"\", \"\", IF(VLOOKUP(AG36,'Footnotes list'!$D$9:$E$107,2,FALSE)=0,\"\",VLOOKUP(AG36,'Footnotes list'!$D$9:$E$107,2,FALSE) ) )","v":""},0,null,null,{"$f":"IF(TRIM(AK36)=\"\", \"\", IF(VLOOKUP(AK36,'Footnotes list'!$D$9:$E$107,2,FALSE)=0,\"\",VLOOKUP(AK36,'Footnotes list'!$D$9:$E$107,2,FALSE) ) )","v":""},0,null,null,{"$f":"IF(TRIM(AO36)=\"\", \"\", IF(VLOOKUP(AO36,'Footnotes list'!$D$9:$E$107,2,FALSE)=0,\"\",VLOOKUP(AO36,'Footnotes list'!$D$9:$E$107,2,FALSE) ) )","v":""},0,null,null,{"$f":"IF(TRIM(AS36)=\"\", \"\", IF(VLOOKUP(AS36,'Footnotes list'!$D$9:$E$107,2,FALSE)=0,\"\",VLOOKUP(AS36,'Footnotes list'!$D$9:$E$107,2,FALSE) ) )","v":""},0,null,null,{"$f":"IF(TRIM(AW36)=\"\", \"\", IF(VLOOKUP(AW36,'Footnotes list'!$D$9:$E$107,2,FALSE)=0,\"\",VLOOKUP(AW36,'Footnotes list'!$D$9:$E$107,2,FALSE) ) )","v":""},0,null,null,{"$f":"IF(TRIM(BA36)=\"\", \"\", IF(VLOOKUP(BA36,'Footnotes list'!$D$9:$E$107,2,FALSE)=0,\"\",VLOOKUP(BA36,'Footnotes list'!$D$9:$E$107,2,FALSE) ) )","v":""},"",null,null,{"$f":"IF(TRIM(BE36)=\"\", \"\", IF(VLOOKUP(BE36,'Footnotes list'!$D$9:$E$107,2,FALSE)=0,\"\",VLOOKUP(BE36,'Footnotes list'!$D$9:$E$107,2,FALSE) ) )","v":""}]
[null,{"$f":"CODES!G37","v":"PROV_POLN_MF119"},"THS_T",null,"MF.1.1.9   Fibres ","1000 tonnes",null,null,null,{"$f":"IF(TRIM(I37)=\"\", \"\", IF(VLOOKUP(I37,'Footnotes list'!$D$9:$E$107,2,FALSE)=0,\"\",VLOOKUP(I37,'Footnotes list'!$D$9:$E$107,2,FALSE) ) )","v":""},null,null,null,{"$f":"IF(TRIM(M37)=\"\", \"\", IF(VLOOKUP(M37,'Footnotes list'!$D$9:$E$107,2,FALSE)=0,\"\",VLOOKUP(M37,'Footnotes list'!$D$9:$E$107,2,FALSE) ) )","v":""},null,null,null,{"$f":"IF(TRIM(Q37)=\"\", \"\", IF(VLOOKUP(Q37,'Footnotes list'!$D$9:$E$107,2,FALSE)=0,\"\",VLOOKUP(Q37,'Footnotes list'!$D$9:$E$107,2,FALSE) ) )","v":""},0,null,null,{"$f":"IF(TRIM(U37)=\"\", \"\", IF(VLOOKUP(U37,'Footnotes list'!$D$9:$E$107,2,FALSE)=0,\"\",VLOOKUP(U37,'Footnotes list'!$D$9:$E$107,2,FALSE) ) )","v":""},0,null,null,{"$f":"IF(TRIM(Y37)=\"\", \"\", IF(VLOOKUP(Y37,'Footnotes list'!$D$9:$E$107,2,FALSE)=0,\"\",VLOOKUP(Y37,'Footnotes list'!$D$9:$E$107,2,FALSE) ) )","v":""},0,null,null,{"$f":"IF(TRIM(AC37)=\"\", \"\", IF(VLOOKUP(AC37,'Footnotes list'!$D$9:$E$107,2,FALSE)=0,\"\",VLOOKUP(AC37,'Footnotes list'!$D$9:$E$107,2,FALSE) ) )","v":""},0,null,null,{"$f":"IF(TRIM(AG37)=\"\", \"\", IF(VLOOKUP(AG37,'Footnotes list'!$D$9:$E$107,2,FALSE)=0,\"\",VLOOKUP(AG37,'Footnotes list'!$D$9:$E$107,2,FALSE) ) )","v":""},0,null,null,{"$f":"IF(TRIM(AK37)=\"\", \"\", IF(VLOOKUP(AK37,'Footnotes list'!$D$9:$E$107,2,FALSE)=0,\"\",VLOOKUP(AK37,'Footnotes list'!$D$9:$E$107,2,FALSE) ) )","v":""},0,null,null,{"$f":"IF(TRIM(AO37)=\"\", \"\", IF(VLOOKUP(AO37,'Footnotes list'!$D$9:$E$107,2,FALSE)=0,\"\",VLOOKUP(AO37,'Footnotes list'!$D$9:$E$107,2,FALSE) ) )","v":""},0,null,null,{"$f":"IF(TRIM(AS37)=\"\", \"\", IF(VLOOKUP(AS37,'Footnotes list'!$D$9:$E$107,2,FALSE)=0,\"\",VLOOKUP(AS37,'Footnotes list'!$D$9:$E$107,2,FALSE) ) )","v":""},0,null,null,{"$f":"IF(TRIM(AW37)=\"\", \"\", IF(VLOOKUP(AW37,'Footnotes list'!$D$9:$E$107,2,FALSE)=0,\"\",VLOOKUP(AW37,'Footnotes list'!$D$9:$E$107,2,FALSE) ) )","v":""},0,null,null,{"$f":"IF(TRIM(BA37)=\"\", \"\", IF(VLOOKUP(BA37,'Footnotes list'!$D$9:$E$107,2,FALSE)=0,\"\",VLOOKUP(BA37,'Footnotes list'!$D$9:$E$107,2,FALSE) ) )","v":""},"",null,null,{"$f":"IF(TRIM(BE37)=\"\", \"\", IF(VLOOKUP(BE37,'Footnotes list'!$D$9:$E$107,2,FALSE)=0,\"\",VLOOKUP(BE37,'Footnotes list'!$D$9:$E$107,2,FALSE) ) )","v":""}]
[null,{"$f":"CODES!G38","v":"PROV_POLN_MF11A"},"THS_T",null,"MF.1.1.A   Other crops (excluding fodder crops) n.e.c.","1000 tonnes",null,null,null,{"$f":"IF(TRIM(I38)=\"\", \"\", IF(VLOOKUP(I38,'Footnotes list'!$D$9:$E$107,2,FALSE)=0,\"\",VLOOKUP(I38,'Footnotes list'!$D$9:$E$107,2,FALSE) ) )","v":""},null,null,null,{"$f":"IF(TRIM(M38)=\"\", \"\", IF(VLOOKUP(M38,'Footnotes list'!$D$9:$E$107,2,FALSE)=0,\"\",VLOOKUP(M38,'Footnotes list'!$D$9:$E$107,2,FALSE) ) )","v":""},null,null,null,{"$f":"IF(TRIM(Q38)=\"\", \"\", IF(VLOOKUP(Q38,'Footnotes list'!$D$9:$E$107,2,FALSE)=0,\"\",VLOOKUP(Q38,'Footnotes list'!$D$9:$E$107,2,FALSE) ) )","v":""},0,null,null,{"$f":"IF(TRIM(U38)=\"\", \"\", IF(VLOOKUP(U38,'Footnotes list'!$D$9:$E$107,2,FALSE)=0,\"\",VLOOKUP(U38,'Footnotes list'!$D$9:$E$107,2,FALSE) ) )","v":""},0,null,null,{"$f":"IF(TRIM(Y38)=\"\", \"\", IF(VLOOKUP(Y38,'Footnotes list'!$D$9:$E$107,2,FALSE)=0,\"\",VLOOKUP(Y38,'Footnotes list'!$D$9:$E$107,2,FALSE) ) )","v":""},0,null,null,{"$f":"IF(TRIM(AC38)=\"\", \"\", IF(VLOOKUP(AC38,'Footnotes list'!$D$9:$E$107,2,FALSE)=0,\"\",VLOOKUP(AC38,'Footnotes list'!$D$9:$E$107,2,FALSE) ) )","v":""},0,null,null,{"$f":"IF(TRIM(AG38)=\"\", \"\", IF(VLOOKUP(AG38,'Footnotes list'!$D$9:$E$107,2,FALSE)=0,\"\",VLOOKUP(AG38,'Footnotes list'!$D$9:$E$107,2,FALSE) ) )","v":""},0,null,null,{"$f":"IF(TRIM(AK38)=\"\", \"\", IF(VLOOKUP(AK38,'Footnotes list'!$D$9:$E$107,2,FALSE)=0,\"\",VLOOKUP(AK38,'Footnotes list'!$D$9:$E$107,2,FALSE) ) )","v":""},0,null,null,{"$f":"IF(TRIM(AO38)=\"\", \"\", IF(VLOOKUP(AO38,'Footnotes list'!$D$9:$E$107,2,FALSE)=0,\"\",VLOOKUP(AO38,'Footnotes list'!$D$9:$E$107,2,FALSE) ) )","v":""},0,null,null,{"$f":"IF(TRIM(AS38)=\"\", \"\", IF(VLOOKUP(AS38,'Footnotes list'!$D$9:$E$107,2,FALSE)=0,\"\",VLOOKUP(AS38,'Footnotes list'!$D$9:$E$107,2,FALSE) ) )","v":""},0,null,null,{"$f":"IF(TRIM(AW38)=\"\", \"\", IF(VLOOKUP(AW38,'Footnotes list'!$D$9:$E$107,2,FALSE)=0,\"\",VLOOKUP(AW38,'Footnotes list'!$D$9:$E$107,2,FALSE) ) )","v":""},0,null,null,{"$f":"IF(TRIM(BA38)=\"\", \"\", IF(VLOOKUP(BA38,'Footnotes list'!$D$9:$E$107,2,FALSE)=0,\"\",VLOOKUP(BA38,'Footnotes list'!$D$9:$E$107,2,FALSE) ) )","v":""},"",null,null,{"$f":"IF(TRIM(BE38)=\"\", \"\", IF(VLOOKUP(BE38,'Footnotes list'!$D$9:$E$107,2,FALSE)=0,\"\",VLOOKUP(BE38,'Footnotes list'!$D$9:$E$107,2,FALSE) ) )","v":""}]
[null,{"$f":"CODES!G39","v":"PROV_POLN_MF12"},"THS_T",null,"MF.1.2   Crop residues (used), fodder crops and grazed biomass","1000 tonnes",{"$f":"IF(COUNTA(G40:G43)<4,\"\",SUM(G40,G43))","v":0},null,null,{"$f":"IF(TRIM(I39)=\"\", \"\", IF(VLOOKUP(I39,'Footnotes list'!$D$9:$E$107,2,FALSE)=0,\"\",VLOOKUP(I39,'Footnotes list'!$D$9:$E$107,2,FALSE) ) )","v":""},{"$f":"IF(COUNTA(K40:K43)<4,\"\",SUM(K40,K43))","v":0},null,null,{"$f":"IF(TRIM(M39)=\"\", \"\", IF(VLOOKUP(M39,'Footnotes list'!$D$9:$E$107,2,FALSE)=0,\"\",VLOOKUP(M39,'Footnotes list'!$D$9:$E$107,2,FALSE) ) )","v":""},{"$f":"IF(COUNTA(O40:O43)<4,\"\",SUM(O40,O43))","v":0},null,null,{"$f":"IF(TRIM(Q39)=\"\", \"\", IF(VLOOKUP(Q39,'Footnotes list'!$D$9:$E$107,2,FALSE)=0,\"\",VLOOKUP(Q39,'Footnotes list'!$D$9:$E$107,2,FALSE) ) )","v":""},{"$f":"IF(COUNTA(S40:S43)<4,\"\",SUM(S40,S43))","v":0},null,null,{"$f":"IF(TRIM(U39)=\"\", \"\", IF(VLOOKUP(U39,'Footnotes list'!$D$9:$E$107,2,FALSE)=0,\"\",VLOOKUP(U39,'Footnotes list'!$D$9:$E$107,2,FALSE) ) )","v":""},{"$f":"IF(COUNTA(W40:W43)<4,\"\",SUM(W40,W43))","v":0},null,null,{"$f":"IF(TRIM(Y39)=\"\", \"\", IF(VLOOKUP(Y39,'Footnotes list'!$D$9:$E$107,2,FALSE)=0,\"\",VLOOKUP(Y39,'Footnotes list'!$D$9:$E$107,2,FALSE) ) )","v":""},{"$f":"IF(COUNTA(AA40:AA43)<4,\"\",SUM(AA40,AA43))","v":0},null,null,{"$f":"IF(TRIM(AC39)=\"\", \"\", IF(VLOOKUP(AC39,'Footnotes list'!$D$9:$E$107,2,FALSE)=0,\"\",VLOOKUP(AC39,'Footnotes list'!$D$9:$E$107,2,FALSE) ) )","v":""},{"$f":"IF(COUNTA(AE40:AE43)<4,\"\",SUM(AE40,AE43))","v":0},null,null,{"$f":"IF(TRIM(AG39)=\"\", \"\", IF(VLOOKUP(AG39,'Footnotes list'!$D$9:$E$107,2,FALSE)=0,\"\",VLOOKUP(AG39,'Footnotes list'!$D$9:$E$107,2,FALSE) ) )","v":""},{"$f":"IF(COUNTA(AI40:AI43)<4,\"\",SUM(AI40,AI43))","v":0},null,null,{"$f":"IF(TRIM(AK39)=\"\", \"\", IF(VLOOKUP(AK39,'Footnotes list'!$D$9:$E$107,2,FALSE)=0,\"\",VLOOKUP(AK39,'Footnotes list'!$D$9:$E$107,2,FALSE) ) )","v":""},{"$f":"IF(COUNTA(AM40:AM43)<4,\"\",SUM(AM40,AM43))","v":0},null,null,{"$f":"IF(TRIM(AO39)=\"\", \"\", IF(VLOOKUP(AO39,'Footnotes list'!$D$9:$E$107,2,FALSE)=0,\"\",VLOOKUP(AO39,'Footnotes list'!$D$9:$E$107,2,FALSE) ) )","v":""},{"$f":"IF(COUNTA(AQ40:AQ43)<4,\"\",SUM(AQ40,AQ43))","v":0},null,null,{"$f":"IF(TRIM(AS39)=\"\", \"\", IF(VLOOKUP(AS39,'Footnotes list'!$D$9:$E$107,2,FALSE)=0,\"\",VLOOKUP(AS39,'Footnotes list'!$D$9:$E$107,2,FALSE) ) )","v":""},{"$f":"IF(COUNTA(AU40:AU43)<4,\"\",SUM(AU40,AU43))","v":0},null,null,{"$f":"IF(TRIM(AW39)=\"\", \"\", IF(VLOOKUP(AW39,'Footnotes list'!$D$9:$E$107,2,FALSE)=0,\"\",VLOOKUP(AW39,'Footnotes list'!$D$9:$E$107,2,FALSE) ) )","v":""},{"$f":"IF(COUNTA(AY40:AY43)<4,\"\",SUM(AY40,AY43))","v":0},null,null,{"$f":"IF(TRIM(BA39)=\"\", \"\", IF(VLOOKUP(BA39,'Footnotes list'!$D$9:$E$107,2,FALSE)=0,\"\",VLOOKUP(BA39,'Footnotes list'!$D$9:$E$107,2,FALSE) ) )","v":""},0,null,null,{"$f":"IF(TRIM(BE39)=\"\", \"\", IF(VLOOKUP(BE39,'Footnotes list'!$D$9:$E$107,2,FALSE)=0,\"\",VLOOKUP(BE39,'Footnotes list'!$D$9:$E$107,2,FALSE) ) )","v":""}]
[null,{"$f":"CODES!G40","v":"PROV_POLN_MF121"},"THS_T",null,"MF.1.2.1   Crop residues (used)","1000 tonnes",{"$f":"IF(COUNTA(G41:G42)<2,\"\",SUM(G41:G42))","v":0},null,null,{"$f":"IF(TRIM(I40)=\"\", \"\", IF(VLOOKUP(I40,'Footnotes list'!$D$9:$E$107,2,FALSE)=0,\"\",VLOOKUP(I40,'Footnotes list'!$D$9:$E$107,2,FALSE) ) )","v":""},{"$f":"IF(COUNTA(K41:K42)<2,\"\",SUM(K41:K42))","v":0},null,null,{"$f":"IF(TRIM(M40)=\"\", \"\", IF(VLOOKUP(M40,'Footnotes list'!$D$9:$E$107,2,FALSE)=0,\"\",VLOOKUP(M40,'Footnotes list'!$D$9:$E$107,2,FALSE) ) )","v":""},{"$f":"IF(COUNTA(O41:O42)<2,\"\",SUM(O41:O42))","v":0},null,null,{"$f":"IF(TRIM(Q40)=\"\", \"\", IF(VLOOKUP(Q40,'Footnotes list'!$D$9:$E$107,2,FALSE)=0,\"\",VLOOKUP(Q40,'Footnotes list'!$D$9:$E$107,2,FALSE) ) )","v":""},{"$f":"IF(COUNTA(S41:S42)<2,\"\",SUM(S41:S42))","v":0},null,null,{"$f":"IF(TRIM(U40)=\"\", \"\", IF(VLOOKUP(U40,'Footnotes list'!$D$9:$E$107,2,FALSE)=0,\"\",VLOOKUP(U40,'Footnotes list'!$D$9:$E$107,2,FALSE) ) )","v":""},{"$f":"IF(COUNTA(W41:W42)<2,\"\",SUM(W41:W42))","v":0},null,null,{"$f":"IF(TRIM(Y40)=\"\", \"\", IF(VLOOKUP(Y40,'Footnotes list'!$D$9:$E$107,2,FALSE)=0,\"\",VLOOKUP(Y40,'Footnotes list'!$D$9:$E$107,2,FALSE) ) )","v":""},{"$f":"IF(COUNTA(AA41:AA42)<2,\"\",SUM(AA41:AA42))","v":0},null,null,{"$f":"IF(TRIM(AC40)=\"\", \"\", IF(VLOOKUP(AC40,'Footnotes list'!$D$9:$E$107,2,FALSE)=0,\"\",VLOOKUP(AC40,'Footnotes list'!$D$9:$E$107,2,FALSE) ) )","v":""},{"$f":"IF(COUNTA(AE41:AE42)<2,\"\",SUM(AE41:AE42))","v":0},null,null,{"$f":"IF(TRIM(AG40)=\"\", \"\", IF(VLOOKUP(AG40,'Footnotes list'!$D$9:$E$107,2,FALSE)=0,\"\",VLOOKUP(AG40,'Footnotes list'!$D$9:$E$107,2,FALSE) ) )","v":""},{"$f":"IF(COUNTA(AI41:AI42)<2,\"\",SUM(AI41:AI42))","v":0},null,null,{"$f":"IF(TRIM(AK40)=\"\", \"\", IF(VLOOKUP(AK40,'Footnotes list'!$D$9:$E$107,2,FALSE)=0,\"\",VLOOKUP(AK40,'Footnotes list'!$D$9:$E$107,2,FALSE) ) )","v":""},{"$f":"IF(COUNTA(AM41:AM42)<2,\"\",SUM(AM41:AM42))","v":0},null,null,{"$f":"IF(TRIM(AO40)=\"\", \"\", IF(VLOOKUP(AO40,'Footnotes list'!$D$9:$E$107,2,FALSE)=0,\"\",VLOOKUP(AO40,'Footnotes list'!$D$9:$E$107,2,FALSE) ) )","v":""},{"$f":"IF(COUNTA(AQ41:AQ42)<2,\"\",SUM(AQ41:AQ42))","v":0},null,null,{"$f":"IF(TRIM(AS40)=\"\", \"\", IF(VLOOKUP(AS40,'Footnotes list'!$D$9:$E$107,2,FALSE)=0,\"\",VLOOKUP(AS40,'Footnotes list'!$D$9:$E$107,2,FALSE) ) )","v":""},{"$f":"IF(COUNTA(AU41:AU42)<2,\"\",SUM(AU41:AU42))","v":0},null,null,{"$f":"IF(TRIM(AW40)=\"\", \"\", IF(VLOOKUP(AW40,'Footnotes list'!$D$9:$E$107,2,FALSE)=0,\"\",VLOOKUP(AW40,'Footnotes list'!$D$9:$E$107,2,FALSE) ) )","v":""},{"$f":"IF(COUNTA(AY41:AY42)<2,\"\",SUM(AY41:AY42))","v":0},null,null,{"$f":"IF(TRIM(BA40)=\"\", \"\", IF(VLOOKUP(BA40,'Footnotes list'!$D$9:$E$107,2,FALSE)=0,\"\",VLOOKUP(BA40,'Footnotes list'!$D$9:$E$107,2,FALSE) ) )","v":""},0,null,null,{"$f":"IF(TRIM(BE40)=\"\", \"\", IF(VLOOKUP(BE40,'Footnotes list'!$D$9:$E$107,2,FALSE)=0,\"\",VLOOKUP(BE40,'Footnotes list'!$D$9:$E$107,2,FALSE) ) )","v":""}]
[null,{"$f":"CODES!G41","v":"PROV_POLN_MF1211"},"THS_T",null,"MF.1.2.1.1   Straw","1000 tonnes",0,null,null,{"$f":"IF(TRIM(I41)=\"\", \"\", IF(VLOOKUP(I41,'Footnotes list'!$D$9:$E$107,2,FALSE)=0,\"\",VLOOKUP(I41,'Footnotes list'!$D$9:$E$107,2,FALSE) ) )","v":""},0,null,null,{"$f":"IF(TRIM(M41)=\"\", \"\", IF(VLOOKUP(M41,'Footnotes list'!$D$9:$E$107,2,FALSE)=0,\"\",VLOOKUP(M41,'Footnotes list'!$D$9:$E$107,2,FALSE) ) )","v":""},0,null,null,{"$f":"IF(TRIM(Q41)=\"\", \"\", IF(VLOOKUP(Q41,'Footnotes list'!$D$9:$E$107,2,FALSE)=0,\"\",VLOOKUP(Q41,'Footnotes list'!$D$9:$E$107,2,FALSE) ) )","v":""},0,null,null,{"$f":"IF(TRIM(U41)=\"\", \"\", IF(VLOOKUP(U41,'Footnotes list'!$D$9:$E$107,2,FALSE)=0,\"\",VLOOKUP(U41,'Footnotes list'!$D$9:$E$107,2,FALSE) ) )","v":""},0,null,null,{"$f":"IF(TRIM(Y41)=\"\", \"\", IF(VLOOKUP(Y41,'Footnotes list'!$D$9:$E$107,2,FALSE)=0,\"\",VLOOKUP(Y41,'Footnotes list'!$D$9:$E$107,2,FALSE) ) )","v":""},0,null,null,{"$f":"IF(TRIM(AC41)=\"\", \"\", IF(VLOOKUP(AC41,'Footnotes list'!$D$9:$E$107,2,FALSE)=0,\"\",VLOOKUP(AC41,'Footnotes list'!$D$9:$E$107,2,FALSE) ) )","v":""},0,null,null,{"$f":"IF(TRIM(AG41)=\"\", \"\", IF(VLOOKUP(AG41,'Footnotes list'!$D$9:$E$107,2,FALSE)=0,\"\",VLOOKUP(AG41,'Footnotes list'!$D$9:$E$107,2,FALSE) ) )","v":""},0,null,null,{"$f":"IF(TRIM(AK41)=\"\", \"\", IF(VLOOKUP(AK41,'Footnotes list'!$D$9:$E$107,2,FALSE)=0,\"\",VLOOKUP(AK41,'Footnotes list'!$D$9:$E$107,2,FALSE) ) )","v":""},0,null,null,{"$f":"IF(TRIM(AO41)=\"\", \"\", IF(VLOOKUP(AO41,'Footnotes list'!$D$9:$E$107,2,FALSE)=0,\"\",VLOOKUP(AO41,'Footnotes list'!$D$9:$E$107,2,FALSE) ) )","v":""},0,null,null,{"$f":"IF(TRIM(AS41)=\"\", \"\", IF(VLOOKUP(AS41,'Footnotes list'!$D$9:$E$107,2,FALSE)=0,\"\",VLOOKUP(AS41,'Footnotes list'!$D$9:$E$107,2,FALSE) ) )","v":""},0,null,null,{"$f":"IF(TRIM(AW41)=\"\", \"\", IF(VLOOKUP(AW41,'Footnotes list'!$D$9:$E$107,2,FALSE)=0,\"\",VLOOKUP(AW41,'Footnotes list'!$D$9:$E$107,2,FALSE) ) )","v":""},0,null,null,{"$f":"IF(TRIM(BA41)=\"\", \"\", IF(VLOOKUP(BA41,'Footnotes list'!$D$9:$E$107,2,FALSE)=0,\"\",VLOOKUP(BA41,'Footnotes list'!$D$9:$E$107,2,FALSE) ) )","v":""},0,null,null,{"$f":"IF(TRIM(BE41)=\"\", \"\", IF(VLOOKUP(BE41,'Footnotes list'!$D$9:$E$107,2,FALSE)=0,\"\",VLOOKUP(BE41,'Footnotes list'!$D$9:$E$107,2,FALSE) ) )","v":""}]
[null,{"$f":"CODES!G42","v":"PROV_POLN_MF1212"},"THS_T",null,"MF.1.2.1.2   Other crop residues (sugar and fodder beet leaves, etc.)","1000 tonnes",0,null,null,{"$f":"IF(TRIM(I42)=\"\", \"\", IF(VLOOKUP(I42,'Footnotes list'!$D$9:$E$107,2,FALSE)=0,\"\",VLOOKUP(I42,'Footnotes list'!$D$9:$E$107,2,FALSE) ) )","v":""},0,null,null,{"$f":"IF(TRIM(M42)=\"\", \"\", IF(VLOOKUP(M42,'Footnotes list'!$D$9:$E$107,2,FALSE)=0,\"\",VLOOKUP(M42,'Footnotes list'!$D$9:$E$107,2,FALSE) ) )","v":""},0,null,null,{"$f":"IF(TRIM(Q42)=\"\", \"\", IF(VLOOKUP(Q42,'Footnotes list'!$D$9:$E$107,2,FALSE)=0,\"\",VLOOKUP(Q42,'Footnotes list'!$D$9:$E$107,2,FALSE) ) )","v":""},0,null,null,{"$f":"IF(TRIM(U42)=\"\", \"\", IF(VLOOKUP(U42,'Footnotes list'!$D$9:$E$107,2,FALSE)=0,\"\",VLOOKUP(U42,'Footnotes list'!$D$9:$E$107,2,FALSE) ) )","v":""},0,null,null,{"$f":"IF(TRIM(Y42)=\"\", \"\", IF(VLOOKUP(Y42,'Footnotes list'!$D$9:$E$107,2,FALSE)=0,\"\",VLOOKUP(Y42,'Footnotes list'!$D$9:$E$107,2,FALSE) ) )","v":""},0,null,null,{"$f":"IF(TRIM(AC42)=\"\", \"\", IF(VLOOKUP(AC42,'Footnotes list'!$D$9:$E$107,2,FALSE)=0,\"\",VLOOKUP(AC42,'Footnotes list'!$D$9:$E$107,2,FALSE) ) )","v":""},0,null,null,{"$f":"IF(TRIM(AG42)=\"\", \"\", IF(VLOOKUP(AG42,'Footnotes list'!$D$9:$E$107,2,FALSE)=0,\"\",VLOOKUP(AG42,'Footnotes list'!$D$9:$E$107,2,FALSE) ) )","v":""},0,null,null,{"$f":"IF(TRIM(AK42)=\"\", \"\", IF(VLOOKUP(AK42,'Footnotes list'!$D$9:$E$107,2,FALSE)=0,\"\",VLOOKUP(AK42,'Footnotes list'!$D$9:$E$107,2,FALSE) ) )","v":""},0,null,null,{"$f":"IF(TRIM(AO42)=\"\", \"\", IF(VLOOKUP(AO42,'Footnotes list'!$D$9:$E$107,2,FALSE)=0,\"\",VLOOKUP(AO42,'Footnotes list'!$D$9:$E$107,2,FALSE) ) )","v":""},0,null,null,{"$f":"IF(TRIM(AS42)=\"\", \"\", IF(VLOOKUP(AS42,'Footnotes list'!$D$9:$E$107,2,FALSE)=0,\"\",VLOOKUP(AS42,'Footnotes list'!$D$9:$E$107,2,FALSE) ) )","v":""},0,null,null,{"$f":"IF(TRIM(AW42)=\"\", \"\", IF(VLOOKUP(AW42,'Footnotes list'!$D$9:$E$107,2,FALSE)=0,\"\",VLOOKUP(AW42,'Footnotes list'!$D$9:$E$107,2,FALSE) ) )","v":""},0,null,null,{"$f":"IF(TRIM(BA42)=\"\", \"\", IF(VLOOKUP(BA42,'Footnotes list'!$D$9:$E$107,2,FALSE)=0,\"\",VLOOKUP(BA42,'Footnotes list'!$D$9:$E$107,2,FALSE) ) )","v":""},0,null,null,{"$f":"IF(TRIM(BE42)=\"\", \"\", IF(VLOOKUP(BE42,'Footnotes list'!$D$9:$E$107,2,FALSE)=0,\"\",VLOOKUP(BE42,'Footnotes list'!$D$9:$E$107,2,FALSE) ) )","v":""}]
[null,{"$f":"CODES!G43","v":"PROV_POLN_MF122"},"THS_T",null,"MF.1.2.2   Fodder crops and grazed biomass","1000 tonnes",{"$f":"IF(COUNTA(G44:G45)<2,\"\",SUM(G44:G45))","v":0},null,null,{"$f":"IF(TRIM(I43)=\"\", \"\", IF(VLOOKUP(I43,'Footnotes list'!$D$9:$E$107,2,FALSE)=0,\"\",VLOOKUP(I43,'Footnotes list'!$D$9:$E$107,2,FALSE) ) )","v":""},{"$f":"IF(COUNTA(K44:K45)<2,\"\",SUM(K44:K45))","v":0},null,null,{"$f":"IF(TRIM(M43)=\"\", \"\", IF(VLOOKUP(M43,'Footnotes list'!$D$9:$E$107,2,FALSE)=0,\"\",VLOOKUP(M43,'Footnotes list'!$D$9:$E$107,2,FALSE) ) )","v":""},{"$f":"IF(COUNTA(O44:O45)<2,\"\",SUM(O44:O45))","v":0},null,null,{"$f":"IF(TRIM(Q43)=\"\", \"\", IF(VLOOKUP(Q43,'Footnotes list'!$D$9:$E$107,2,FALSE)=0,\"\",VLOOKUP(Q43,'Footnotes list'!$D$9:$E$107,2,FALSE) ) )","v":""},{"$f":"IF(COUNTA(S44:S45)<2,\"\",SUM(S44:S45))","v":0},null,null,{"$f":"IF(TRIM(U43)=\"\", \"\", IF(VLOOKUP(U43,'Footnotes list'!$D$9:$E$107,2,FALSE)=0,\"\",VLOOKUP(U43,'Footnotes list'!$D$9:$E$107,2,FALSE) ) )","v":""},{"$f":"IF(COUNTA(W44:W45)<2,\"\",SUM(W44:W45))","v":0},null,null,{"$f":"IF(TRIM(Y43)=\"\", \"\", IF(VLOOKUP(Y43,'Footnotes list'!$D$9:$E$107,2,FALSE)=0,\"\",VLOOKUP(Y43,'Footnotes list'!$D$9:$E$107,2,FALSE) ) )","v":""},{"$f":"IF(COUNTA(AA44:AA45)<2,\"\",SUM(AA44:AA45))","v":0},null,null,{"$f":"IF(TRIM(AC43)=\"\", \"\", IF(VLOOKUP(AC43,'Footnotes list'!$D$9:$E$107,2,FALSE)=0,\"\",VLOOKUP(AC43,'Footnotes list'!$D$9:$E$107,2,FALSE) ) )","v":""},{"$f":"IF(COUNTA(AE44:AE45)<2,\"\",SUM(AE44:AE45))","v":0},null,null,{"$f":"IF(TRIM(AG43)=\"\", \"\", IF(VLOOKUP(AG43,'Footnotes list'!$D$9:$E$107,2,FALSE)=0,\"\",VLOOKUP(AG43,'Footnotes list'!$D$9:$E$107,2,FALSE) ) )","v":""},{"$f":"IF(COUNTA(AI44:AI45)<2,\"\",SUM(AI44:AI45))","v":0},null,null,{"$f":"IF(TRIM(AK43)=\"\", \"\", IF(VLOOKUP(AK43,'Footnotes list'!$D$9:$E$107,2,FALSE)=0,\"\",VLOOKUP(AK43,'Footnotes list'!$D$9:$E$107,2,FALSE) ) )","v":""},{"$f":"IF(COUNTA(AM44:AM45)<2,\"\",SUM(AM44:AM45))","v":0},null,null,{"$f":"IF(TRIM(AO43)=\"\", \"\", IF(VLOOKUP(AO43,'Footnotes list'!$D$9:$E$107,2,FALSE)=0,\"\",VLOOKUP(AO43,'Footnotes list'!$D$9:$E$107,2,FALSE) ) )","v":""},{"$f":"IF(COUNTA(AQ44:AQ45)<2,\"\",SUM(AQ44:AQ45))","v":0},null,null,{"$f":"IF(TRIM(AS43)=\"\", \"\", IF(VLOOKUP(AS43,'Footnotes list'!$D$9:$E$107,2,FALSE)=0,\"\",VLOOKUP(AS43,'Footnotes list'!$D$9:$E$107,2,FALSE) ) )","v":""},{"$f":"IF(COUNTA(AU44:AU45)<2,\"\",SUM(AU44:AU45))","v":0},null,null,{"$f":"IF(TRIM(AW43)=\"\", \"\", IF(VLOOKUP(AW43,'Footnotes list'!$D$9:$E$107,2,FALSE)=0,\"\",VLOOKUP(AW43,'Footnotes list'!$D$9:$E$107,2,FALSE) ) )","v":""},{"$f":"IF(COUNTA(AY44:AY45)<2,\"\",SUM(AY44:AY45))","v":0},null,null,{"$f":"IF(TRIM(BA43)=\"\", \"\", IF(VLOOKUP(BA43,'Footnotes list'!$D$9:$E$107,2,FALSE)=0,\"\",VLOOKUP(BA43,'Footnotes list'!$D$9:$E$107,2,FALSE) ) )","v":""},{"$f":"IF(COUNTA(G43,K43,O43,S43,W43,AA43,AE43,AI43,AM43,AQ43,AU43,AY43)<10,\"\",SUM(G43,K43,O43,S43,W43,AA43,AE43,AI43,AM43,AQ43,AU43,AY43))","v":0},null,null,{"$f":"IF(TRIM(BE43)=\"\", \"\", IF(VLOOKUP(BE43,'Footnotes list'!$D$9:$E$107,2,FALSE)=0,\"\",VLOOKUP(BE43,'Footnotes list'!$D$9:$E$107,2,FALSE) ) )","v":""}]
[null,{"$f":"CODES!G44","v":"PROV_POLN_MF1221"},"THS_T",null,"MF.1.2.2.1   Fodder crops (including biomass harvest from grassland)","1000 tonnes",0,null,null,{"$f":"IF(TRIM(I44)=\"\", \"\", IF(VLOOKUP(I44,'Footnotes list'!$D$9:$E$107,2,FALSE)=0,\"\",VLOOKUP(I44,'Footnotes list'!$D$9:$E$107,2,FALSE) ) )","v":""},0,null,null,{"$f":"IF(TRIM(M44)=\"\", \"\", IF(VLOOKUP(M44,'Footnotes list'!$D$9:$E$107,2,FALSE)=0,\"\",VLOOKUP(M44,'Footnotes list'!$D$9:$E$107,2,FALSE) ) )","v":""},0,null,null,{"$f":"IF(TRIM(Q44)=\"\", \"\", IF(VLOOKUP(Q44,'Footnotes list'!$D$9:$E$107,2,FALSE)=0,\"\",VLOOKUP(Q44,'Footnotes list'!$D$9:$E$107,2,FALSE) ) )","v":""},0,null,null,{"$f":"IF(TRIM(U44)=\"\", \"\", IF(VLOOKUP(U44,'Footnotes list'!$D$9:$E$107,2,FALSE)=0,\"\",VLOOKUP(U44,'Footnotes list'!$D$9:$E$107,2,FALSE) ) )","v":""},0,null,null,{"$f":"IF(TRIM(Y44)=\"\", \"\", IF(VLOOKUP(Y44,'Footnotes list'!$D$9:$E$107,2,FALSE)=0,\"\",VLOOKUP(Y44,'Footnotes list'!$D$9:$E$107,2,FALSE) ) )","v":""},0,null,null,{"$f":"IF(TRIM(AC44)=\"\", \"\", IF(VLOOKUP(AC44,'Footnotes list'!$D$9:$E$107,2,FALSE)=0,\"\",VLOOKUP(AC44,'Footnotes list'!$D$9:$E$107,2,FALSE) ) )","v":""},0,null,null,{"$f":"IF(TRIM(AG44)=\"\", \"\", IF(VLOOKUP(AG44,'Footnotes list'!$D$9:$E$107,2,FALSE)=0,\"\",VLOOKUP(AG44,'Footnotes list'!$D$9:$E$107,2,FALSE) ) )","v":""},0,null,null,{"$f":"IF(TRIM(AK44)=\"\", \"\", IF(VLOOKUP(AK44,'Footnotes list'!$D$9:$E$107,2,FALSE)=0,\"\",VLOOKUP(AK44,'Footnotes list'!$D$9:$E$107,2,FALSE) ) )","v":""},0,null,null,{"$f":"IF(TRIM(AO44)=\"\", \"\", IF(VLOOKUP(AO44,'Footnotes list'!$D$9:$E$107,2,FALSE)=0,\"\",VLOOKUP(AO44,'Footnotes list'!$D$9:$E$107,2,FALSE) ) )","v":""},0,null,null,{"$f":"IF(TRIM(AS44)=\"\", \"\", IF(VLOOKUP(AS44,'Footnotes list'!$D$9:$E$107,2,FALSE)=0,\"\",VLOOKUP(AS44,'Footnotes list'!$D$9:$E$107,2,FALSE) ) )","v":""},0,null,null,{"$f":"IF(TRIM(AW44)=\"\", \"\", IF(VLOOKUP(AW44,'Footnotes list'!$D$9:$E$107,2,FALSE)=0,\"\",VLOOKUP(AW44,'Footnotes list'!$D$9:$E$107,2,FALSE) ) )","v":""},0,null,null,{"$f":"IF(TRIM(BA44)=\"\", \"\", IF(VLOOKUP(BA44,'Footnotes list'!$D$9:$E$107,2,FALSE)=0,\"\",VLOOKUP(BA44,'Footnotes list'!$D$9:$E$107,2,FALSE) ) )","v":""},0,null,null,{"$f":"IF(TRIM(BE44)=\"\", \"\", IF(VLOOKUP(BE44,'Footnotes list'!$D$9:$E$107,2,FALSE)=0,\"\",VLOOKUP(BE44,'Footnotes list'!$D$9:$E$107,2,FALSE) ) )","v":""}]
[null,{"$f":"CODES!G45","v":"PROV_POLN_MF1222"},"THS_T",null,"MF.1.2.2.2   Grazed biomass","1000 tonnes",0,null,null,{"$f":"IF(TRIM(I45)=\"\", \"\", IF(VLOOKUP(I45,'Footnotes list'!$D$9:$E$107,2,FALSE)=0,\"\",VLOOKUP(I45,'Footnotes list'!$D$9:$E$107,2,FALSE) ) )","v":""},0,null,null,{"$f":"IF(TRIM(M45)=\"\", \"\", IF(VLOOKUP(M45,'Footnotes list'!$D$9:$E$107,2,FALSE)=0,\"\",VLOOKUP(M45,'Footnotes list'!$D$9:$E$107,2,FALSE) ) )","v":""},0,null,null,{"$f":"IF(TRIM(Q45)=\"\", \"\", IF(VLOOKUP(Q45,'Footnotes list'!$D$9:$E$107,2,FALSE)=0,\"\",VLOOKUP(Q45,'Footnotes list'!$D$9:$E$107,2,FALSE) ) )","v":""},0,null,null,{"$f":"IF(TRIM(U45)=\"\", \"\", IF(VLOOKUP(U45,'Footnotes list'!$D$9:$E$107,2,FALSE)=0,\"\",VLOOKUP(U45,'Footnotes list'!$D$9:$E$107,2,FALSE) ) )","v":""},0,null,null,{"$f":"IF(TRIM(Y45)=\"\", \"\", IF(VLOOKUP(Y45,'Footnotes list'!$D$9:$E$107,2,FALSE)=0,\"\",VLOOKUP(Y45,'Footnotes list'!$D$9:$E$107,2,FALSE) ) )","v":""},0,null,null,{"$f":"IF(TRIM(AC45)=\"\", \"\", IF(VLOOKUP(AC45,'Footnotes list'!$D$9:$E$107,2,FALSE)=0,\"\",VLOOKUP(AC45,'Footnotes list'!$D$9:$E$107,2,FALSE) ) )","v":""},0,null,null,{"$f":"IF(TRIM(AG45)=\"\", \"\", IF(VLOOKUP(AG45,'Footnotes list'!$D$9:$E$107,2,FALSE)=0,\"\",VLOOKUP(AG45,'Footnotes list'!$D$9:$E$107,2,FALSE) ) )","v":""},0,null,null,{"$f":"IF(TRIM(AK45)=\"\", \"\", IF(VLOOKUP(AK45,'Footnotes list'!$D$9:$E$107,2,FALSE)=0,\"\",VLOOKUP(AK45,'Footnotes list'!$D$9:$E$107,2,FALSE) ) )","v":""},0,null,null,{"$f":"IF(TRIM(AO45)=\"\", \"\", IF(VLOOKUP(AO45,'Footnotes list'!$D$9:$E$107,2,FALSE)=0,\"\",VLOOKUP(AO45,'Footnotes list'!$D$9:$E$107,2,FALSE) ) )","v":""},0,null,null,{"$f":"IF(TRIM(AS45)=\"\", \"\", IF(VLOOKUP(AS45,'Footnotes list'!$D$9:$E$107,2,FALSE)=0,\"\",VLOOKUP(AS45,'Footnotes list'!$D$9:$E$107,2,FALSE) ) )","v":""},0,null,null,{"$f":"IF(TRIM(AW45)=\"\", \"\", IF(VLOOKUP(AW45,'Footnotes list'!$D$9:$E$107,2,FALSE)=0,\"\",VLOOKUP(AW45,'Footnotes list'!$D$9:$E$107,2,FALSE) ) )","v":""},0,null,null,{"$f":"IF(TRIM(BA45)=\"\", \"\", IF(VLOOKUP(BA45,'Footnotes list'!$D$9:$E$107,2,FALSE)=0,\"\",VLOOKUP(BA45,'Footnotes list'!$D$9:$E$107,2,FALSE) ) )","v":""},0,null,null,{"$f":"IF(TRIM(BE45)=\"\", \"\", IF(VLOOKUP(BE45,'Footnotes list'!$D$9:$E$107,2,FALSE)=0,\"\",VLOOKUP(BE45,'Footnotes list'!$D$9:$E$107,2,FALSE) ) )","v":""}]
[null,{"$f":"CODES!G46","v":"PROV_WD_MF13MEMO"},"THS_M3",null,"Wood provision (increment cultivated)","1000 m3",null,null,null,{"$f":"IF(TRIM(I46)=\"\", \"\", IF(VLOOKUP(I46,'Footnotes list'!$D$9:$E$107,2,FALSE)=0,\"\",VLOOKUP(I46,'Footnotes list'!$D$9:$E$107,2,FALSE) ) )","v":""},null,null,null,{"$f":"IF(TRIM(M46)=\"\", \"\", IF(VLOOKUP(M46,'Footnotes list'!$D$9:$E$107,2,FALSE)=0,\"\",VLOOKUP(M46,'Footnotes list'!$D$9:$E$107,2,FALSE) ) )","v":""},null,null,null,{"$f":"IF(TRIM(Q46)=\"\", \"\", IF(VLOOKUP(Q46,'Footnotes list'!$D$9:$E$107,2,FALSE)=0,\"\",VLOOKUP(Q46,'Footnotes list'!$D$9:$E$107,2,FALSE) ) )","v":""},null,null,null,{"$f":"IF(TRIM(U46)=\"\", \"\", IF(VLOOKUP(U46,'Footnotes list'!$D$9:$E$107,2,FALSE)=0,\"\",VLOOKUP(U46,'Footnotes list'!$D$9:$E$107,2,FALSE) ) )","v":""},null,null,null,{"$f":"IF(TRIM(Y46)=\"\", \"\", IF(VLOOKUP(Y46,'Footnotes list'!$D$9:$E$107,2,FALSE)=0,\"\",VLOOKUP(Y46,'Footnotes list'!$D$9:$E$107,2,FALSE) ) )","v":""},null,null,null,{"$f":"IF(TRIM(AC46)=\"\", \"\", IF(VLOOKUP(AC46,'Footnotes list'!$D$9:$E$107,2,FALSE)=0,\"\",VLOOKUP(AC46,'Footnotes list'!$D$9:$E$107,2,FALSE) ) )","v":""},null,null,null,{"$f":"IF(TRIM(AG46)=\"\", \"\", IF(VLOOKUP(AG46,'Footnotes list'!$D$9:$E$107,2,FALSE)=0,\"\",VLOOKUP(AG46,'Footnotes list'!$D$9:$E$107,2,FALSE) ) )","v":""},null,null,null,{"$f":"IF(TRIM(AK46)=\"\", \"\", IF(VLOOKUP(AK46,'Footnotes list'!$D$9:$E$107,2,FALSE)=0,\"\",VLOOKUP(AK46,'Footnotes list'!$D$9:$E$107,2,FALSE) ) )","v":""},null,null,null,{"$f":"IF(TRIM(AO46)=\"\", \"\", IF(VLOOKUP(AO46,'Footnotes list'!$D$9:$E$107,2,FALSE)=0,\"\",VLOOKUP(AO46,'Footnotes list'!$D$9:$E$107,2,FALSE) ) )","v":""},0,null,null,{"$f":"IF(TRIM(AS46)=\"\", \"\", IF(VLOOKUP(AS46,'Footnotes list'!$D$9:$E$107,2,FALSE)=0,\"\",VLOOKUP(AS46,'Footnotes list'!$D$9:$E$107,2,FALSE) ) )","v":""},null,null,null,{"$f":"IF(TRIM(AW46)=\"\", \"\", IF(VLOOKUP(AW46,'Footnotes list'!$D$9:$E$107,2,FALSE)=0,\"\",VLOOKUP(AW46,'Footnotes list'!$D$9:$E$107,2,FALSE) ) )","v":""},0,null,null,{"$f":"IF(TRIM(BA46)=\"\", \"\", IF(VLOOKUP(BA46,'Footnotes list'!$D$9:$E$107,2,FALSE)=0,\"\",VLOOKUP(BA46,'Footnotes list'!$D$9:$E$107,2,FALSE) ) )","v":""},"",null,null,{"$f":"IF(TRIM(BE46)=\"\", \"\", IF(VLOOKUP(BE46,'Footnotes list'!$D$9:$E$107,2,FALSE)=0,\"\",VLOOKUP(BE46,'Footnotes list'!$D$9:$E$107,2,FALSE) ) )","v":""}]
[null,{"$f":"CODES!G47","v":"PROV_WD_MF13"},"THS_M3",null,"Wood provision (removals non cultivated)","1000 m3",null,null,null,{"$f":"IF(TRIM(I47)=\"\", \"\", IF(VLOOKUP(I47,'Footnotes list'!$D$9:$E$107,2,FALSE)=0,\"\",VLOOKUP(I47,'Footnotes list'!$D$9:$E$107,2,FALSE) ) )","v":""},null,null,null,{"$f":"IF(TRIM(M47)=\"\", \"\", IF(VLOOKUP(M47,'Footnotes list'!$D$9:$E$107,2,FALSE)=0,\"\",VLOOKUP(M47,'Footnotes list'!$D$9:$E$107,2,FALSE) ) )","v":""},null,null,null,{"$f":"IF(TRIM(Q47)=\"\", \"\", IF(VLOOKUP(Q47,'Footnotes list'!$D$9:$E$107,2,FALSE)=0,\"\",VLOOKUP(Q47,'Footnotes list'!$D$9:$E$107,2,FALSE) ) )","v":""},null,null,null,{"$f":"IF(TRIM(U47)=\"\", \"\", IF(VLOOKUP(U47,'Footnotes list'!$D$9:$E$107,2,FALSE)=0,\"\",VLOOKUP(U47,'Footnotes list'!$D$9:$E$107,2,FALSE) ) )","v":""},null,null,null,{"$f":"IF(TRIM(Y47)=\"\", \"\", IF(VLOOKUP(Y47,'Footnotes list'!$D$9:$E$107,2,FALSE)=0,\"\",VLOOKUP(Y47,'Footnotes list'!$D$9:$E$107,2,FALSE) ) )","v":""},null,null,null,{"$f":"IF(TRIM(AC47)=\"\", \"\", IF(VLOOKUP(AC47,'Footnotes list'!$D$9:$E$107,2,FALSE)=0,\"\",VLOOKUP(AC47,'Footnotes list'!$D$9:$E$107,2,FALSE) ) )","v":""},null,null,null,{"$f":"IF(TRIM(AG47)=\"\", \"\", IF(VLOOKUP(AG47,'Footnotes list'!$D$9:$E$107,2,FALSE)=0,\"\",VLOOKUP(AG47,'Footnotes list'!$D$9:$E$107,2,FALSE) ) )","v":""},null,null,null,{"$f":"IF(TRIM(AK47)=\"\", \"\", IF(VLOOKUP(AK47,'Footnotes list'!$D$9:$E$107,2,FALSE)=0,\"\",VLOOKUP(AK47,'Footnotes list'!$D$9:$E$107,2,FALSE) ) )","v":""},null,null,null,{"$f":"IF(TRIM(AO47)=\"\", \"\", IF(VLOOKUP(AO47,'Footnotes list'!$D$9:$E$107,2,FALSE)=0,\"\",VLOOKUP(AO47,'Footnotes list'!$D$9:$E$107,2,FALSE) ) )","v":""},0,null,null,{"$f":"IF(TRIM(AS47)=\"\", \"\", IF(VLOOKUP(AS47,'Footnotes list'!$D$9:$E$107,2,FALSE)=0,\"\",VLOOKUP(AS47,'Footnotes list'!$D$9:$E$107,2,FALSE) ) )","v":""},null,null,null,{"$f":"IF(TRIM(AW47)=\"\", \"\", IF(VLOOKUP(AW47,'Footnotes list'!$D$9:$E$107,2,FALSE)=0,\"\",VLOOKUP(AW47,'Footnotes list'!$D$9:$E$107,2,FALSE) ) )","v":""},0,null,null,{"$f":"IF(TRIM(BA47)=\"\", \"\", IF(VLOOKUP(BA47,'Footnotes list'!$D$9:$E$107,2,FALSE)=0,\"\",VLOOKUP(BA47,'Footnotes list'!$D$9:$E$107,2,FALSE) ) )","v":""},"",null,null,{"$f":"IF(TRIM(BE47)=\"\", \"\", IF(VLOOKUP(BE47,'Footnotes list'!$D$9:$E$107,2,FALSE)=0,\"\",VLOOKUP(BE47,'Footnotes list'!$D$9:$E$107,2,FALSE) ) )","v":""}]
[null,{"$f":"CODES!G55","v":"REG_AIR_FL_PM10"},"T",null,"Air filtration of PM10","tonnes",null,null,null,{"$f":"IF(TRIM(I48)=\"\", \"\", IF(VLOOKUP(I48,'Footnotes list'!$D$9:$E$107,2,FALSE)=0,\"\",VLOOKUP(I48,'Footnotes list'!$D$9:$E$107,2,FALSE) ) )","v":""},null,null,null,{"$f":"IF(TRIM(M48)=\"\", \"\", IF(VLOOKUP(M48,'Footnotes list'!$D$9:$E$107,2,FALSE)=0,\"\",VLOOKUP(M48,'Footnotes list'!$D$9:$E$107,2,FALSE) ) )","v":""},null,null,null,{"$f":"IF(TRIM(Q48)=\"\", \"\", IF(VLOOKUP(Q48,'Footnotes list'!$D$9:$E$107,2,FALSE)=0,\"\",VLOOKUP(Q48,'Footnotes list'!$D$9:$E$107,2,FALSE) ) )","v":""},null,null,null,{"$f":"IF(TRIM(U48)=\"\", \"\", IF(VLOOKUP(U48,'Footnotes list'!$D$9:$E$107,2,FALSE)=0,\"\",VLOOKUP(U48,'Footnotes list'!$D$9:$E$107,2,FALSE) ) )","v":""},null,null,null,{"$f":"IF(TRIM(Y48)=\"\", \"\", IF(VLOOKUP(Y48,'Footnotes list'!$D$9:$E$107,2,FALSE)=0,\"\",VLOOKUP(Y48,'Footnotes list'!$D$9:$E$107,2,FALSE) ) )","v":""},null,null,null,{"$f":"IF(TRIM(AC48)=\"\", \"\", IF(VLOOKUP(AC48,'Footnotes list'!$D$9:$E$107,2,FALSE)=0,\"\",VLOOKUP(AC48,'Footnotes list'!$D$9:$E$107,2,FALSE) ) )","v":""},null,null,null,{"$f":"IF(TRIM(AG48)=\"\", \"\", IF(VLOOKUP(AG48,'Footnotes list'!$D$9:$E$107,2,FALSE)=0,\"\",VLOOKUP(AG48,'Footnotes list'!$D$9:$E$107,2,FALSE) ) )","v":""},null,null,null,{"$f":"IF(TRIM(AK48)=\"\", \"\", IF(VLOOKUP(AK48,'Footnotes list'!$D$9:$E$107,2,FALSE)=0,\"\",VLOOKUP(AK48,'Footnotes list'!$D$9:$E$107,2,FALSE) ) )","v":""},null,null,null,{"$f":"IF(TRIM(AO48)=\"\", \"\", IF(VLOOKUP(AO48,'Footnotes list'!$D$9:$E$107,2,FALSE)=0,\"\",VLOOKUP(AO48,'Footnotes list'!$D$9:$E$107,2,FALSE) ) )","v":""},0,null,null,{"$f":"IF(TRIM(AS48)=\"\", \"\", IF(VLOOKUP(AS48,'Footnotes list'!$D$9:$E$107,2,FALSE)=0,\"\",VLOOKUP(AS48,'Footnotes list'!$D$9:$E$107,2,FALSE) ) )","v":""},null,null,null,{"$f":"IF(TRIM(AW48)=\"\", \"\", IF(VLOOKUP(AW48,'Footnotes list'!$D$9:$E$107,2,FALSE)=0,\"\",VLOOKUP(AW48,'Footnotes list'!$D$9:$E$107,2,FALSE) ) )","v":""},0,null,null,{"$f":"IF(TRIM(BA48)=\"\", \"\", IF(VLOOKUP(BA48,'Footnotes list'!$D$9:$E$107,2,FALSE)=0,\"\",VLOOKUP(BA48,'Footnotes list'!$D$9:$E$107,2,FALSE) ) )","v":""},"",null,null,{"$f":"IF(TRIM(BE48)=\"\", \"\", IF(VLOOKUP(BE48,'Footnotes list'!$D$9:$E$107,2,FALSE)=0,\"\",VLOOKUP(BE48,'Footnotes list'!$D$9:$E$107,2,FALSE) ) )","v":""}]
[null,{"$f":"CODES!G56","v":"REG_AIR_FL_PM2P5"},"T",null,"Air filtration of PM2.5","tonnes",null,null,null,{"$f":"IF(TRIM(I49)=\"\", \"\", IF(VLOOKUP(I49,'Footnotes list'!$D$9:$E$107,2,FALSE)=0,\"\",VLOOKUP(I49,'Footnotes list'!$D$9:$E$107,2,FALSE) ) )","v":""},null,null,null,{"$f":"IF(TRIM(M49)=\"\", \"\", IF(VLOOKUP(M49,'Footnotes list'!$D$9:$E$107,2,FALSE)=0,\"\",VLOOKUP(M49,'Footnotes list'!$D$9:$E$107,2,FALSE) ) )","v":""},null,null,null,{"$f":"IF(TRIM(Q49)=\"\", \"\", IF(VLOOKUP(Q49,'Footnotes list'!$D$9:$E$107,2,FALSE)=0,\"\",VLOOKUP(Q49,'Footnotes list'!$D$9:$E$107,2,FALSE) ) )","v":""},null,null,null,{"$f":"IF(TRIM(U49)=\"\", \"\", IF(VLOOKUP(U49,'Footnotes list'!$D$9:$E$107,2,FALSE)=0,\"\",VLOOKUP(U49,'Footnotes list'!$D$9:$E$107,2,FALSE) ) )","v":""},null,null,null,{"$f":"IF(TRIM(Y49)=\"\", \"\", IF(VLOOKUP(Y49,'Footnotes list'!$D$9:$E$107,2,FALSE)=0,\"\",VLOOKUP(Y49,'Footnotes list'!$D$9:$E$107,2,FALSE) ) )","v":""},null,null,null,{"$f":"IF(TRIM(AC49)=\"\", \"\", IF(VLOOKUP(AC49,'Footnotes list'!$D$9:$E$107,2,FALSE)=0,\"\",VLOOKUP(AC49,'Footnotes list'!$D$9:$E$107,2,FALSE) ) )","v":""},null,null,null,{"$f":"IF(TRIM(AG49)=\"\", \"\", IF(VLOOKUP(AG49,'Footnotes list'!$D$9:$E$107,2,FALSE)=0,\"\",VLOOKUP(AG49,'Footnotes list'!$D$9:$E$107,2,FALSE) ) )","v":""},null,null,null,{"$f":"IF(TRIM(AK49)=\"\", \"\", IF(VLOOKUP(AK49,'Footnotes list'!$D$9:$E$107,2,FALSE)=0,\"\",VLOOKUP(AK49,'Footnotes list'!$D$9:$E$107,2,FALSE) ) )","v":""},null,null,null,{"$f":"IF(TRIM(AO49)=\"\", \"\", IF(VLOOKUP(AO49,'Footnotes list'!$D$9:$E$107,2,FALSE)=0,\"\",VLOOKUP(AO49,'Footnotes list'!$D$9:$E$107,2,FALSE) ) )","v":""},0,null,null,{"$f":"IF(TRIM(AS49)=\"\", \"\", IF(VLOOKUP(AS49,'Footnotes list'!$D$9:$E$107,2,FALSE)=0,\"\",VLOOKUP(AS49,'Footnotes list'!$D$9:$E$107,2,FALSE) ) )","v":""},null,null,null,{"$f":"IF(TRIM(AW49)=\"\", \"\", IF(VLOOKUP(AW49,'Footnotes list'!$D$9:$E$107,2,FALSE)=0,\"\",VLOOKUP(AW49,'Footnotes list'!$D$9:$E$107,2,FALSE) ) )","v":""},0,null,null,{"$f":"IF(TRIM(BA49)=\"\", \"\", IF(VLOOKUP(BA49,'Footnotes list'!$D$9:$E$107,2,FALSE)=0,\"\",VLOOKUP(BA49,'Footnotes list'!$D$9:$E$107,2,FALSE) ) )","v":""},"",null,null,{"$f":"IF(TRIM(BE49)=\"\", \"\", IF(VLOOKUP(BE49,'Footnotes list'!$D$9:$E$107,2,FALSE)=0,\"\",VLOOKUP(BE49,'Footnotes list'!$D$9:$E$107,2,FALSE) ) )","v":""}]
[null,{"$f":"CODES!G51","v":"REG_CO2_SEQ_NET"},"T",null,"Global climate regulation - net sequestration (indicator)","tonnes",null,null,null,{"$f":"IF(TRIM(I50)=\"\", \"\", IF(VLOOKUP(I50,'Footnotes list'!$D$9:$E$107,2,FALSE)=0,\"\",VLOOKUP(I50,'Footnotes list'!$D$9:$E$107,2,FALSE) ) )","v":""},null,null,null,{"$f":"IF(TRIM(M50)=\"\", \"\", IF(VLOOKUP(M50,'Footnotes list'!$D$9:$E$107,2,FALSE)=0,\"\",VLOOKUP(M50,'Footnotes list'!$D$9:$E$107,2,FALSE) ) )","v":""},null,null,null,{"$f":"IF(TRIM(Q50)=\"\", \"\", IF(VLOOKUP(Q50,'Footnotes list'!$D$9:$E$107,2,FALSE)=0,\"\",VLOOKUP(Q50,'Footnotes list'!$D$9:$E$107,2,FALSE) ) )","v":""},null,null,null,{"$f":"IF(TRIM(U50)=\"\", \"\", IF(VLOOKUP(U50,'Footnotes list'!$D$9:$E$107,2,FALSE)=0,\"\",VLOOKUP(U50,'Footnotes list'!$D$9:$E$107,2,FALSE) ) )","v":""},null,null,null,{"$f":"IF(TRIM(Y50)=\"\", \"\", IF(VLOOKUP(Y50,'Footnotes list'!$D$9:$E$107,2,FALSE)=0,\"\",VLOOKUP(Y50,'Footnotes list'!$D$9:$E$107,2,FALSE) ) )","v":""},null,null,null,{"$f":"IF(TRIM(AC50)=\"\", \"\", IF(VLOOKUP(AC50,'Footnotes list'!$D$9:$E$107,2,FALSE)=0,\"\",VLOOKUP(AC50,'Footnotes list'!$D$9:$E$107,2,FALSE) ) )","v":""},null,null,null,{"$f":"IF(TRIM(AG50)=\"\", \"\", IF(VLOOKUP(AG50,'Footnotes list'!$D$9:$E$107,2,FALSE)=0,\"\",VLOOKUP(AG50,'Footnotes list'!$D$9:$E$107,2,FALSE) ) )","v":""},null,null,null,{"$f":"IF(TRIM(AK50)=\"\", \"\", IF(VLOOKUP(AK50,'Footnotes list'!$D$9:$E$107,2,FALSE)=0,\"\",VLOOKUP(AK50,'Footnotes list'!$D$9:$E$107,2,FALSE) ) )","v":""},null,null,null,{"$f":"IF(TRIM(AO50)=\"\", \"\", IF(VLOOKUP(AO50,'Footnotes list'!$D$9:$E$107,2,FALSE)=0,\"\",VLOOKUP(AO50,'Footnotes list'!$D$9:$E$107,2,FALSE) ) )","v":""},null,null,null,{"$f":"IF(TRIM(AS50)=\"\", \"\", IF(VLOOKUP(AS50,'Footnotes list'!$D$9:$E$107,2,FALSE)=0,\"\",VLOOKUP(AS50,'Footnotes list'!$D$9:$E$107,2,FALSE) ) )","v":""},null,null,null,{"$f":"IF(TRIM(AW50)=\"\", \"\", IF(VLOOKUP(AW50,'Footnotes list'!$D$9:$E$107,2,FALSE)=0,\"\",VLOOKUP(AW50,'Footnotes list'!$D$9:$E$107,2,FALSE) ) )","v":""},null,null,null,{"$f":"IF(TRIM(BA50)=\"\", \"\", IF(VLOOKUP(BA50,'Footnotes list'!$D$9:$E$107,2,FALSE)=0,\"\",VLOOKUP(BA50,'Footnotes list'!$D$9:$E$107,2,FALSE) ) )","v":""},"",null,null,{"$f":"IF(TRIM(BE50)=\"\", \"\", IF(VLOOKUP(BE50,'Footnotes list'!$D$9:$E$107,2,FALSE)=0,\"\",VLOOKUP(BE50,'Footnotes list'!$D$9:$E$107,2,FALSE) ) )","v":""}]
[null,{"$f":"CODES!G52","v":"REG_CO2_SEQ_NET_PRIM"},"T",null,"Global climate sequestration  - primary net sequestration (ecosystem service)","tonnes",null,null,null,{"$f":"IF(TRIM(I51)=\"\", \"\", IF(VLOOKUP(I51,'Footnotes list'!$D$9:$E$107,2,FALSE)=0,\"\",VLOOKUP(I51,'Footnotes list'!$D$9:$E$107,2,FALSE) ) )","v":""},null,null,null,{"$f":"IF(TRIM(M51)=\"\", \"\", IF(VLOOKUP(M51,'Footnotes list'!$D$9:$E$107,2,FALSE)=0,\"\",VLOOKUP(M51,'Footnotes list'!$D$9:$E$107,2,FALSE) ) )","v":""},null,null,null,{"$f":"IF(TRIM(Q51)=\"\", \"\", IF(VLOOKUP(Q51,'Footnotes list'!$D$9:$E$107,2,FALSE)=0,\"\",VLOOKUP(Q51,'Footnotes list'!$D$9:$E$107,2,FALSE) ) )","v":""},null,null,null,{"$f":"IF(TRIM(U51)=\"\", \"\", IF(VLOOKUP(U51,'Footnotes list'!$D$9:$E$107,2,FALSE)=0,\"\",VLOOKUP(U51,'Footnotes list'!$D$9:$E$107,2,FALSE) ) )","v":""},null,null,null,{"$f":"IF(TRIM(Y51)=\"\", \"\", IF(VLOOKUP(Y51,'Footnotes list'!$D$9:$E$107,2,FALSE)=0,\"\",VLOOKUP(Y51,'Footnotes list'!$D$9:$E$107,2,FALSE) ) )","v":""},null,null,null,{"$f":"IF(TRIM(AC51)=\"\", \"\", IF(VLOOKUP(AC51,'Footnotes list'!$D$9:$E$107,2,FALSE)=0,\"\",VLOOKUP(AC51,'Footnotes list'!$D$9:$E$107,2,FALSE) ) )","v":""},null,null,null,{"$f":"IF(TRIM(AG51)=\"\", \"\", IF(VLOOKUP(AG51,'Footnotes list'!$D$9:$E$107,2,FALSE)=0,\"\",VLOOKUP(AG51,'Footnotes list'!$D$9:$E$107,2,FALSE) ) )","v":""},null,null,null,{"$f":"IF(TRIM(AK51)=\"\", \"\", IF(VLOOKUP(AK51,'Footnotes list'!$D$9:$E$107,2,FALSE)=0,\"\",VLOOKUP(AK51,'Footnotes list'!$D$9:$E$107,2,FALSE) ) )","v":""},null,null,null,{"$f":"IF(TRIM(AO51)=\"\", \"\", IF(VLOOKUP(AO51,'Footnotes list'!$D$9:$E$107,2,FALSE)=0,\"\",VLOOKUP(AO51,'Footnotes list'!$D$9:$E$107,2,FALSE) ) )","v":""},null,null,null,{"$f":"IF(TRIM(AS51)=\"\", \"\", IF(VLOOKUP(AS51,'Footnotes list'!$D$9:$E$107,2,FALSE)=0,\"\",VLOOKUP(AS51,'Footnotes list'!$D$9:$E$107,2,FALSE) ) )","v":""},null,null,null,{"$f":"IF(TRIM(AW51)=\"\", \"\", IF(VLOOKUP(AW51,'Footnotes list'!$D$9:$E$107,2,FALSE)=0,\"\",VLOOKUP(AW51,'Footnotes list'!$D$9:$E$107,2,FALSE) ) )","v":""},null,null,null,{"$f":"IF(TRIM(BA51)=\"\", \"\", IF(VLOOKUP(BA51,'Footnotes list'!$D$9:$E$107,2,FALSE)=0,\"\",VLOOKUP(BA51,'Footnotes list'!$D$9:$E$107,2,FALSE) ) )","v":""},"",null,null,{"$f":"IF(TRIM(BE51)=\"\", \"\", IF(VLOOKUP(BE51,'Footnotes list'!$D$9:$E$107,2,FALSE)=0,\"\",VLOOKUP(BE51,'Footnotes list'!$D$9:$E$107,2,FALSE) ) )","v":""}]
[null,{"$f":"CODES!G48","v":"REG_CO2_STO_CM30"},"T",null,"Global climate regulation - storage 30cm","tonnes",null,null,null,{"$f":"IF(TRIM(I52)=\"\", \"\", IF(VLOOKUP(I52,'Footnotes list'!$D$9:$E$107,2,FALSE)=0,\"\",VLOOKUP(I52,'Footnotes list'!$D$9:$E$107,2,FALSE) ) )","v":""},null,null,null,{"$f":"IF(TRIM(M52)=\"\", \"\", IF(VLOOKUP(M52,'Footnotes list'!$D$9:$E$107,2,FALSE)=0,\"\",VLOOKUP(M52,'Footnotes list'!$D$9:$E$107,2,FALSE) ) )","v":""},null,null,null,{"$f":"IF(TRIM(Q52)=\"\", \"\", IF(VLOOKUP(Q52,'Footnotes list'!$D$9:$E$107,2,FALSE)=0,\"\",VLOOKUP(Q52,'Footnotes list'!$D$9:$E$107,2,FALSE) ) )","v":""},null,null,null,{"$f":"IF(TRIM(U52)=\"\", \"\", IF(VLOOKUP(U52,'Footnotes list'!$D$9:$E$107,2,FALSE)=0,\"\",VLOOKUP(U52,'Footnotes list'!$D$9:$E$107,2,FALSE) ) )","v":""},null,null,null,{"$f":"IF(TRIM(Y52)=\"\", \"\", IF(VLOOKUP(Y52,'Footnotes list'!$D$9:$E$107,2,FALSE)=0,\"\",VLOOKUP(Y52,'Footnotes list'!$D$9:$E$107,2,FALSE) ) )","v":""},null,null,null,{"$f":"IF(TRIM(AC52)=\"\", \"\", IF(VLOOKUP(AC52,'Footnotes list'!$D$9:$E$107,2,FALSE)=0,\"\",VLOOKUP(AC52,'Footnotes list'!$D$9:$E$107,2,FALSE) ) )","v":""},null,null,null,{"$f":"IF(TRIM(AG52)=\"\", \"\", IF(VLOOKUP(AG52,'Footnotes list'!$D$9:$E$107,2,FALSE)=0,\"\",VLOOKUP(AG52,'Footnotes list'!$D$9:$E$107,2,FALSE) ) )","v":""},null,null,null,{"$f":"IF(TRIM(AK52)=\"\", \"\", IF(VLOOKUP(AK52,'Footnotes list'!$D$9:$E$107,2,FALSE)=0,\"\",VLOOKUP(AK52,'Footnotes list'!$D$9:$E$107,2,FALSE) ) )","v":""},null,null,null,{"$f":"IF(TRIM(AO52)=\"\", \"\", IF(VLOOKUP(AO52,'Footnotes list'!$D$9:$E$107,2,FALSE)=0,\"\",VLOOKUP(AO52,'Footnotes list'!$D$9:$E$107,2,FALSE) ) )","v":""},null,null,null,{"$f":"IF(TRIM(AS52)=\"\", \"\", IF(VLOOKUP(AS52,'Footnotes list'!$D$9:$E$107,2,FALSE)=0,\"\",VLOOKUP(AS52,'Footnotes list'!$D$9:$E$107,2,FALSE) ) )","v":""},null,null,null,{"$f":"IF(TRIM(AW52)=\"\", \"\", IF(VLOOKUP(AW52,'Footnotes list'!$D$9:$E$107,2,FALSE)=0,\"\",VLOOKUP(AW52,'Footnotes list'!$D$9:$E$107,2,FALSE) ) )","v":""},null,null,null,{"$f":"IF(TRIM(BA52)=\"\", \"\", IF(VLOOKUP(BA52,'Footnotes list'!$D$9:$E$107,2,FALSE)=0,\"\",VLOOKUP(BA52,'Footnotes list'!$D$9:$E$107,2,FALSE) ) )","v":""},"",null,null,{"$f":"IF(TRIM(BE52)=\"\", \"\", IF(VLOOKUP(BE52,'Footnotes list'!$D$9:$E$107,2,FALSE)=0,\"\",VLOOKUP(BE52,'Footnotes list'!$D$9:$E$107,2,FALSE) ) )","v":""}]
[null,{"$f":"CODES!G49","v":"REG_CO2_STO_CM100"},"T",null,"Global climate regulation - storage 100cm","tonnes",null,null,null,{"$f":"IF(TRIM(I53)=\"\", \"\", IF(VLOOKUP(I53,'Footnotes list'!$D$9:$E$107,2,FALSE)=0,\"\",VLOOKUP(I53,'Footnotes list'!$D$9:$E$107,2,FALSE) ) )","v":""},null,null,null,{"$f":"IF(TRIM(M53)=\"\", \"\", IF(VLOOKUP(M53,'Footnotes list'!$D$9:$E$107,2,FALSE)=0,\"\",VLOOKUP(M53,'Footnotes list'!$D$9:$E$107,2,FALSE) ) )","v":""},null,null,null,{"$f":"IF(TRIM(Q53)=\"\", \"\", IF(VLOOKUP(Q53,'Footnotes list'!$D$9:$E$107,2,FALSE)=0,\"\",VLOOKUP(Q53,'Footnotes list'!$D$9:$E$107,2,FALSE) ) )","v":""},null,null,null,{"$f":"IF(TRIM(U53)=\"\", \"\", IF(VLOOKUP(U53,'Footnotes list'!$D$9:$E$107,2,FALSE)=0,\"\",VLOOKUP(U53,'Footnotes list'!$D$9:$E$107,2,FALSE) ) )","v":""},null,null,null,{"$f":"IF(TRIM(Y53)=\"\", \"\", IF(VLOOKUP(Y53,'Footnotes list'!$D$9:$E$107,2,FALSE)=0,\"\",VLOOKUP(Y53,'Footnotes list'!$D$9:$E$107,2,FALSE) ) )","v":""},null,null,null,{"$f":"IF(TRIM(AC53)=\"\", \"\", IF(VLOOKUP(AC53,'Footnotes list'!$D$9:$E$107,2,FALSE)=0,\"\",VLOOKUP(AC53,'Footnotes list'!$D$9:$E$107,2,FALSE) ) )","v":""},null,null,null,{"$f":"IF(TRIM(AG53)=\"\", \"\", IF(VLOOKUP(AG53,'Footnotes list'!$D$9:$E$107,2,FALSE)=0,\"\",VLOOKUP(AG53,'Footnotes list'!$D$9:$E$107,2,FALSE) ) )","v":""},null,null,null,{"$f":"IF(TRIM(AK53)=\"\", \"\", IF(VLOOKUP(AK53,'Footnotes list'!$D$9:$E$107,2,FALSE)=0,\"\",VLOOKUP(AK53,'Footnotes list'!$D$9:$E$107,2,FALSE) ) )","v":""},null,null,null,{"$f":"IF(TRIM(AO53)=\"\", \"\", IF(VLOOKUP(AO53,'Footnotes list'!$D$9:$E$107,2,FALSE)=0,\"\",VLOOKUP(AO53,'Footnotes list'!$D$9:$E$107,2,FALSE) ) )","v":""},null,null,null,{"$f":"IF(TRIM(AS53)=\"\", \"\", IF(VLOOKUP(AS53,'Footnotes list'!$D$9:$E$107,2,FALSE)=0,\"\",VLOOKUP(AS53,'Footnotes list'!$D$9:$E$107,2,FALSE) ) )","v":""},null,null,null,{"$f":"IF(TRIM(AW53)=\"\", \"\", IF(VLOOKUP(AW53,'Footnotes list'!$D$9:$E$107,2,FALSE)=0,\"\",VLOOKUP(AW53,'Footnotes list'!$D$9:$E$107,2,FALSE) ) )","v":""},null,null,null,{"$f":"IF(TRIM(BA53)=\"\", \"\", IF(VLOOKUP(BA53,'Footnotes list'!$D$9:$E$107,2,FALSE)=0,\"\",VLOOKUP(BA53,'Footnotes list'!$D$9:$E$107,2,FALSE) ) )","v":""},"",null,null,{"$f":"IF(TRIM(BE53)=\"\", \"\", IF(VLOOKUP(BE53,'Footnotes list'!$D$9:$E$107,2,FALSE)=0,\"\",VLOOKUP(BE53,'Footnotes list'!$D$9:$E$107,2,FALSE) ) )","v":""}]
[null,{"$f":"CODES!G50","v":"REG_CO2_STO_WHL"},"T",null,"Global climate regulation - storage whole depth","tonnes",null,null,null,{"$f":"IF(TRIM(I54)=\"\", \"\", IF(VLOOKUP(I54,'Footnotes list'!$D$9:$E$107,2,FALSE)=0,\"\",VLOOKUP(I54,'Footnotes list'!$D$9:$E$107,2,FALSE) ) )","v":""},null,null,null,{"$f":"IF(TRIM(M54)=\"\", \"\", IF(VLOOKUP(M54,'Footnotes list'!$D$9:$E$107,2,FALSE)=0,\"\",VLOOKUP(M54,'Footnotes list'!$D$9:$E$107,2,FALSE) ) )","v":""},null,null,null,{"$f":"IF(TRIM(Q54)=\"\", \"\", IF(VLOOKUP(Q54,'Footnotes list'!$D$9:$E$107,2,FALSE)=0,\"\",VLOOKUP(Q54,'Footnotes list'!$D$9:$E$107,2,FALSE) ) )","v":""},null,null,null,{"$f":"IF(TRIM(U54)=\"\", \"\", IF(VLOOKUP(U54,'Footnotes list'!$D$9:$E$107,2,FALSE)=0,\"\",VLOOKUP(U54,'Footnotes list'!$D$9:$E$107,2,FALSE) ) )","v":""},null,null,null,{"$f":"IF(TRIM(Y54)=\"\", \"\", IF(VLOOKUP(Y54,'Footnotes list'!$D$9:$E$107,2,FALSE)=0,\"\",VLOOKUP(Y54,'Footnotes list'!$D$9:$E$107,2,FALSE) ) )","v":""},null,null,null,{"$f":"IF(TRIM(AC54)=\"\", \"\", IF(VLOOKUP(AC54,'Footnotes list'!$D$9:$E$107,2,FALSE)=0,\"\",VLOOKUP(AC54,'Footnotes list'!$D$9:$E$107,2,FALSE) ) )","v":""},null,null,null,{"$f":"IF(TRIM(AG54)=\"\", \"\", IF(VLOOKUP(AG54,'Footnotes list'!$D$9:$E$107,2,FALSE)=0,\"\",VLOOKUP(AG54,'Footnotes list'!$D$9:$E$107,2,FALSE) ) )","v":""},null,null,null,{"$f":"IF(TRIM(AK54)=\"\", \"\", IF(VLOOKUP(AK54,'Footnotes list'!$D$9:$E$107,2,FALSE)=0,\"\",VLOOKUP(AK54,'Footnotes list'!$D$9:$E$107,2,FALSE) ) )","v":""},null,null,null,{"$f":"IF(TRIM(AO54)=\"\", \"\", IF(VLOOKUP(AO54,'Footnotes list'!$D$9:$E$107,2,FALSE)=0,\"\",VLOOKUP(AO54,'Footnotes list'!$D$9:$E$107,2,FALSE) ) )","v":""},null,null,null,{"$f":"IF(TRIM(AS54)=\"\", \"\", IF(VLOOKUP(AS54,'Footnotes list'!$D$9:$E$107,2,FALSE)=0,\"\",VLOOKUP(AS54,'Footnotes list'!$D$9:$E$107,2,FALSE) ) )","v":""},null,null,null,{"$f":"IF(TRIM(AW54)=\"\", \"\", IF(VLOOKUP(AW54,'Footnotes list'!$D$9:$E$107,2,FALSE)=0,\"\",VLOOKUP(AW54,'Footnotes list'!$D$9:$E$107,2,FALSE) ) )","v":""},null,null,null,{"$f":"IF(TRIM(BA54)=\"\", \"\", IF(VLOOKUP(BA54,'Footnotes list'!$D$9:$E$107,2,FALSE)=0,\"\",VLOOKUP(BA54,'Footnotes list'!$D$9:$E$107,2,FALSE) ) )","v":""},"",null,null,{"$f":"IF(TRIM(BE54)=\"\", \"\", IF(VLOOKUP(BE54,'Footnotes list'!$D$9:$E$107,2,FALSE)=0,\"\",VLOOKUP(BE54,'Footnotes list'!$D$9:$E$107,2,FALSE) ) )","v":""}]
[null,{"$f":"CODES!G53","v":"REG_CL_RED_DEGC_GT25"},"DEGC",null,"Local climate regulation","degrees C",null,null,null,{"$f":"IF(TRIM(I55)=\"\", \"\", IF(VLOOKUP(I55,'Footnotes list'!$D$9:$E$107,2,FALSE)=0,\"\",VLOOKUP(I55,'Footnotes list'!$D$9:$E$107,2,FALSE) ) )","v":""},null,null,null,{"$f":"IF(TRIM(M55)=\"\", \"\", IF(VLOOKUP(M55,'Footnotes list'!$D$9:$E$107,2,FALSE)=0,\"\",VLOOKUP(M55,'Footnotes list'!$D$9:$E$107,2,FALSE) ) )","v":""},null,null,null,{"$f":"IF(TRIM(Q55)=\"\", \"\", IF(VLOOKUP(Q55,'Footnotes list'!$D$9:$E$107,2,FALSE)=0,\"\",VLOOKUP(Q55,'Footnotes list'!$D$9:$E$107,2,FALSE) ) )","v":""},null,null,null,{"$f":"IF(TRIM(U55)=\"\", \"\", IF(VLOOKUP(U55,'Footnotes list'!$D$9:$E$107,2,FALSE)=0,\"\",VLOOKUP(U55,'Footnotes list'!$D$9:$E$107,2,FALSE) ) )","v":""},null,null,null,{"$f":"IF(TRIM(Y55)=\"\", \"\", IF(VLOOKUP(Y55,'Footnotes list'!$D$9:$E$107,2,FALSE)=0,\"\",VLOOKUP(Y55,'Footnotes list'!$D$9:$E$107,2,FALSE) ) )","v":""},null,null,null,{"$f":"IF(TRIM(AC55)=\"\", \"\", IF(VLOOKUP(AC55,'Footnotes list'!$D$9:$E$107,2,FALSE)=0,\"\",VLOOKUP(AC55,'Footnotes list'!$D$9:$E$107,2,FALSE) ) )","v":""},null,null,null,{"$f":"IF(TRIM(AG55)=\"\", \"\", IF(VLOOKUP(AG55,'Footnotes list'!$D$9:$E$107,2,FALSE)=0,\"\",VLOOKUP(AG55,'Footnotes list'!$D$9:$E$107,2,FALSE) ) )","v":""},null,null,null,{"$f":"IF(TRIM(AK55)=\"\", \"\", IF(VLOOKUP(AK55,'Footnotes list'!$D$9:$E$107,2,FALSE)=0,\"\",VLOOKUP(AK55,'Footnotes list'!$D$9:$E$107,2,FALSE) ) )","v":""},null,null,null,{"$f":"IF(TRIM(AO55)=\"\", \"\", IF(VLOOKUP(AO55,'Footnotes list'!$D$9:$E$107,2,FALSE)=0,\"\",VLOOKUP(AO55,'Footnotes list'!$D$9:$E$107,2,FALSE) ) )","v":""},null,null,null,{"$f":"IF(TRIM(AS55)=\"\", \"\", IF(VLOOKUP(AS55,'Footnotes list'!$D$9:$E$107,2,FALSE)=0,\"\",VLOOKUP(AS55,'Footnotes list'!$D$9:$E$107,2,FALSE) ) )","v":""},null,null,null,{"$f":"IF(TRIM(AW55)=\"\", \"\", IF(VLOOKUP(AW55,'Footnotes list'!$D$9:$E$107,2,FALSE)=0,\"\",VLOOKUP(AW55,'Footnotes list'!$D$9:$E$107,2,FALSE) ) )","v":""},0,null,null,{"$f":"IF(TRIM(BA55)=\"\", \"\", IF(VLOOKUP(BA55,'Footnotes list'!$D$9:$E$107,2,FALSE)=0,\"\",VLOOKUP(BA55,'Footnotes list'!$D$9:$E$107,2,FALSE) ) )","v":""},"",null,null,{"$f":"IF(TRIM(BE55)=\"\", \"\", IF(VLOOKUP(BE55,'Footnotes list'!$D$9:$E$107,2,FALSE)=0,\"\",VLOOKUP(BE55,'Footnotes list'!$D$9:$E$107,2,FALSE) ) )","v":""}]
[null,{"$f":"CODES!G58","v":"CLT_TOUR_NGT_SP"},"NR",null,"Nature-based tourism","overnight stays",null,null,null,{"$f":"IF(TRIM(I56)=\"\", \"\", IF(VLOOKUP(I56,'Footnotes list'!$D$9:$E$107,2,FALSE)=0,\"\",VLOOKUP(I56,'Footnotes list'!$D$9:$E$107,2,FALSE) ) )","v":""},null,null,null,{"$f":"IF(TRIM(M56)=\"\", \"\", IF(VLOOKUP(M56,'Footnotes list'!$D$9:$E$107,2,FALSE)=0,\"\",VLOOKUP(M56,'Footnotes list'!$D$9:$E$107,2,FALSE) ) )","v":""},null,null,null,{"$f":"IF(TRIM(Q56)=\"\", \"\", IF(VLOOKUP(Q56,'Footnotes list'!$D$9:$E$107,2,FALSE)=0,\"\",VLOOKUP(Q56,'Footnotes list'!$D$9:$E$107,2,FALSE) ) )","v":""},null,null,null,{"$f":"IF(TRIM(U56)=\"\", \"\", IF(VLOOKUP(U56,'Footnotes list'!$D$9:$E$107,2,FALSE)=0,\"\",VLOOKUP(U56,'Footnotes list'!$D$9:$E$107,2,FALSE) ) )","v":""},null,null,null,{"$f":"IF(TRIM(Y56)=\"\", \"\", IF(VLOOKUP(Y56,'Footnotes list'!$D$9:$E$107,2,FALSE)=0,\"\",VLOOKUP(Y56,'Footnotes list'!$D$9:$E$107,2,FALSE) ) )","v":""},null,null,null,{"$f":"IF(TRIM(AC56)=\"\", \"\", IF(VLOOKUP(AC56,'Footnotes list'!$D$9:$E$107,2,FALSE)=0,\"\",VLOOKUP(AC56,'Footnotes list'!$D$9:$E$107,2,FALSE) ) )","v":""},null,null,null,{"$f":"IF(TRIM(AG56)=\"\", \"\", IF(VLOOKUP(AG56,'Footnotes list'!$D$9:$E$107,2,FALSE)=0,\"\",VLOOKUP(AG56,'Footnotes list'!$D$9:$E$107,2,FALSE) ) )","v":""},null,null,null,{"$f":"IF(TRIM(AK56)=\"\", \"\", IF(VLOOKUP(AK56,'Footnotes list'!$D$9:$E$107,2,FALSE)=0,\"\",VLOOKUP(AK56,'Footnotes list'!$D$9:$E$107,2,FALSE) ) )","v":""},null,null,null,{"$f":"IF(TRIM(AO56)=\"\", \"\", IF(VLOOKUP(AO56,'Footnotes list'!$D$9:$E$107,2,FALSE)=0,\"\",VLOOKUP(AO56,'Footnotes list'!$D$9:$E$107,2,FALSE) ) )","v":""},null,null,null,{"$f":"IF(TRIM(AS56)=\"\", \"\", IF(VLOOKUP(AS56,'Footnotes list'!$D$9:$E$107,2,FALSE)=0,\"\",VLOOKUP(AS56,'Footnotes list'!$D$9:$E$107,2,FALSE) ) )","v":""},null,null,null,{"$f":"IF(TRIM(AW56)=\"\", \"\", IF(VLOOKUP(AW56,'Footnotes list'!$D$9:$E$107,2,FALSE)=0,\"\",VLOOKUP(AW56,'Footnotes list'!$D$9:$E$107,2,FALSE) ) )","v":""},null,null,null,{"$f":"IF(TRIM(BA56)=\"\", \"\", IF(VLOOKUP(BA56,'Footnotes list'!$D$9:$E$107,2,FALSE)=0,\"\",VLOOKUP(BA56,'Footnotes list'!$D$9:$E$107,2,FALSE) ) )","v":""},"",null,null,{"$f":"IF(TRIM(BE56)=\"\", \"\", IF(VLOOKUP(BE56,'Footnotes list'!$D$9:$E$107,2,FALSE)=0,\"\",VLOOKUP(BE56,'Footnotes list'!$D$9:$E$107,2,FALSE) ) )","v":""}]
[null,{"$f":"CODES!G59","v":"CLT_REC_VIS"},"NR",null,"Nature-based recreation","visits",null,null,null,{"$f":"IF(TRIM(I57)=\"\", \"\", IF(VLOOKUP(I57,'Footnotes list'!$D$9:$E$107,2,FALSE)=0,\"\",VLOOKUP(I57,'Footnotes list'!$D$9:$E$107,2,FALSE) ) )","v":""},null,null,null,{"$f":"IF(TRIM(M57)=\"\", \"\", IF(VLOOKUP(M57,'Footnotes list'!$D$9:$E$107,2,FALSE)=0,\"\",VLOOKUP(M57,'Footnotes list'!$D$9:$E$107,2,FALSE) ) )","v":""},null,null,null,{"$f":"IF(TRIM(Q57)=\"\", \"\", IF(VLOOKUP(Q57,'Footnotes list'!$D$9:$E$107,2,FALSE)=0,\"\",VLOOKUP(Q57,'Footnotes list'!$D$9:$E$107,2,FALSE) ) )","v":""},null,null,null,{"$f":"IF(TRIM(U57)=\"\", \"\", IF(VLOOKUP(U57,'Footnotes list'!$D$9:$E$107,2,FALSE)=0,\"\",VLOOKUP(U57,'Footnotes list'!$D$9:$E$107,2,FALSE) ) )","v":""},null,null,null,{"$f":"IF(TRIM(Y57)=\"\", \"\", IF(VLOOKUP(Y57,'Footnotes list'!$D$9:$E$107,2,FALSE)=0,\"\",VLOOKUP(Y57,'Footnotes list'!$D$9:$E$107,2,FALSE) ) )","v":""},null,null,null,{"$f":"IF(TRIM(AC57)=\"\", \"\", IF(VLOOKUP(AC57,'Footnotes list'!$D$9:$E$107,2,FALSE)=0,\"\",VLOOKUP(AC57,'Footnotes list'!$D$9:$E$107,2,FALSE) ) )","v":""},null,null,null,{"$f":"IF(TRIM(AG57)=\"\", \"\", IF(VLOOKUP(AG57,'Footnotes list'!$D$9:$E$107,2,FALSE)=0,\"\",VLOOKUP(AG57,'Footnotes list'!$D$9:$E$107,2,FALSE) ) )","v":""},null,null,null,{"$f":"IF(TRIM(AK57)=\"\", \"\", IF(VLOOKUP(AK57,'Footnotes list'!$D$9:$E$107,2,FALSE)=0,\"\",VLOOKUP(AK57,'Footnotes list'!$D$9:$E$107,2,FALSE) ) )","v":""},null,null,null,{"$f":"IF(TRIM(AO57)=\"\", \"\", IF(VLOOKUP(AO57,'Footnotes list'!$D$9:$E$107,2,FALSE)=0,\"\",VLOOKUP(AO57,'Footnotes list'!$D$9:$E$107,2,FALSE) ) )","v":""},null,null,null,{"$f":"IF(TRIM(AS57)=\"\", \"\", IF(VLOOKUP(AS57,'Footnotes list'!$D$9:$E$107,2,FALSE)=0,\"\",VLOOKUP(AS57,'Footnotes list'!$D$9:$E$107,2,FALSE) ) )","v":""},null,null,null,{"$f":"IF(TRIM(AW57)=\"\", \"\", IF(VLOOKUP(AW57,'Footnotes list'!$D$9:$E$107,2,FALSE)=0,\"\",VLOOKUP(AW57,'Footnotes list'!$D$9:$E$107,2,FALSE) ) )","v":""},null,null,null,{"$f":"IF(TRIM(BA57)=\"\", \"\", IF(VLOOKUP(BA57,'Footnotes list'!$D$9:$E$107,2,FALSE)=0,\"\",VLOOKUP(BA57,'Footnotes list'!$D$9:$E$107,2,FALSE) ) )","v":""},"",null,null,{"$f":"IF(TRIM(BE57)=\"\", \"\", IF(VLOOKUP(BE57,'Footnotes list'!$D$9:$E$107,2,FALSE)=0,\"\",VLOOKUP(BE57,'Footnotes list'!$D$9:$E$107,2,FALSE) ) )","v":""}]
[]
[null,null,null,null,"ECOSYST",null,"ECO01",null,null,null,"ECO02",null,null,null,"ECO03",null,null,null,"ECO04",null,null,null,"ECO05",null,null,null,"ECO06",null,null,null,"ECO07",null,null,null,"ECO08",null,null,null,"ECO09",null,null,null,"ECO10",null,null,null,"ECO11",null,null,null,"ECO12",null,null,null,"TOTAL"]
[]
[]
[]
[null,null,null,null,"Cell shading:"]
[null,null,null,null,"Light blue (cyan): Lower priority data."]
[null,null,null,null,"White: Priority data. Need to be entered (no calculation)."]
[null,null,null,null,"Light grey: Priority data. The calculation of data is automatic when lower order data are provided. These cells can be edited after unlocking the cell with the button \"Unlock formulas\"."]
[null,null,null,null,"Light orange: footnotes (only to be filled in when relevant)"]

{"sheet":"Table 2 - Use","index":8,"n_rows":59,"n_cols":30,"rows_kept":59,"cut":false,"hidden":false,"merged":[[6,28,6,29],[1,5,1,26],[6,8,6,9],[6,12,6,13],[6,16,6,17],[6,20,6,21],[6,24,6,25]]}
[]
[null,"GEO =>",{"$f":"IF('GETTING STARTED'!G9=\"\",\"\",'GETTING STARTED'!G9)","v":""},null,null,"Table 2 - Ecosystem services use table"]
[null,"TIME=>",{"$f":"IF('GETTING STARTED'!E10=\"\",\"\",'GETTING STARTED'!E10)","v":""},null,"Country:",{"$f":"IF('GETTING STARTED'!$E$9=\"\",\"\",'GETTING STARTED'!$E$9)","v":""},{"$f":"IF('GETTING STARTED'!$G$9=\"\",\"\",'GETTING STARTED'!$G$9)","v":""}]
[null,"ECOSYST","TOTAL",null,"Reference year:",{"$f":"IF('GETTING STARTED'!$E$10=\"\",\"\",'GETTING STARTED'!$E$10)","v":""}]
[]
[]
[null,"ECOSERV (new)","UNIT",null,"USE","UNIT","Intermediate consumption by industries","Standard footnotes","Explanatory\nfootnote",null,"Government final consumption","Standard footnotes","Explanatory\nfootnote",null,"Households final consumption","Standard footnotes","Explanatory\nfootnote",null,"Gross capital formation","Standard footnotes","Explanatory\nfootnote",null,"Export","Standard footnotes","Explanatory\nfootnote",null,"TOTAL USE","Standard footnotes","Explanatory\nfootnote"]
[null,{"$f":"CODES!G8","v":"PROV_CR_MF11_12"},"THS_T",null,"Crop provision","1000 tonnes",{"$f":"IF(COUNTA(G9:G20)<2,\"\",SUM(G9,G20))","v":0},null,null,{"$f":"IF(TRIM(I8)=\"\", \"\", IF(VLOOKUP(I8,'Footnotes list'!$D$9:$E$107,2,FALSE)=0,\"\",VLOOKUP(I8,'Footnotes list'!$D$9:$E$107,2,FALSE) ) )","v":""},{"$f":"IF(COUNTA(K9:K20)<2,\"\",SUM(K9,K20))","v":0},null,null,{"$f":"IF(TRIM(M8)=\"\", \"\", IF(VLOOKUP(M8,'Footnotes list'!$D$9:$E$107,2,FALSE)=0,\"\",VLOOKUP(M8,'Footnotes list'!$D$9:$E$107,2,FALSE) ) )","v":""},{"$f":"IF(COUNTA(O9:O20)<2,\"\",SUM(O9,O20))","v":0},null,null,{"$f":"IF(TRIM(Q8)=\"\", \"\", IF(VLOOKUP(Q8,'Footnotes list'!$D$9:$E$107,2,FALSE)=0,\"\",VLOOKUP(Q8,'Footnotes list'!$D$9:$E$107,2,FALSE) ) )","v":""},{"$f":"IF(COUNTA(S9:S20)<2,\"\",SUM(S9,S20))","v":0},null,null,{"$f":"IF(TRIM(U8)=\"\", \"\", IF(VLOOKUP(U8,'Footnotes list'!$D$9:$E$107,2,FALSE)=0,\"\",VLOOKUP(U8,'Footnotes list'!$D$9:$E$107,2,FALSE) ) )","v":""},{"$f":"IF(COUNTA(W9:W20)<2,\"\",SUM(W9,W20))","v":0},null,null,{"$f":"IF(TRIM(Y8)=\"\", \"\", IF(VLOOKUP(Y8,'Footnotes list'!$D$9:$E$107,2,FALSE)=0,\"\",VLOOKUP(Y8,'Footnotes list'!$D$9:$E$107,2,FALSE) ) )","v":""},{"$f":"IF(COUNTA(G8,K8,O8,S8,W8)<5,\"\",SUM(G8,K8,O8,S8,W8))","v":0},null,null,{"$f":"IF(TRIM(AC8)=\"\", \"\", IF(VLOOKUP(AC8,'Footnotes list'!$D$9:$E$107,2,FALSE)=0,\"\",VLOOKUP(AC8,'Footnotes list'!$D$9:$E$107,2,FALSE) ) )","v":""}]
[null,{"$f":"CODES!G9","v":"PROV_CR_MF11"},"THS_T",null,"MF.1.1   Crops (excluding fodder crops)","1000 tonnes",{"$f":"IF(COUNTA(G10:G19)<10,\"\",SUM(G10:G19))","v":""},null,null,{"$f":"IF(TRIM(I9)=\"\", \"\", IF(VLOOKUP(I9,'Footnotes list'!$D$9:$E$107,2,FALSE)=0,\"\",VLOOKUP(I9,'Footnotes list'!$D$9:$E$107,2,FALSE) ) )","v":""},{"$f":"IF(COUNTA(K10:K19)<10,\"\",SUM(K10:K19))","v":0},null,null,{"$f":"IF(TRIM(M9)=\"\", \"\", IF(VLOOKUP(M9,'Footnotes list'!$D$9:$E$107,2,FALSE)=0,\"\",VLOOKUP(M9,'Footnotes list'!$D$9:$E$107,2,FALSE) ) )","v":""},{"$f":"IF(COUNTA(O10:O19)<10,\"\",SUM(O10:O19))","v":""},null,null,{"$f":"IF(TRIM(Q9)=\"\", \"\", IF(VLOOKUP(Q9,'Footnotes list'!$D$9:$E$107,2,FALSE)=0,\"\",VLOOKUP(Q9,'Footnotes list'!$D$9:$E$107,2,FALSE) ) )","v":""},{"$f":"IF(COUNTA(S10:S19)<10,\"\",SUM(S10:S19))","v":0},null,null,{"$f":"IF(TRIM(U9)=\"\", \"\", IF(VLOOKUP(U9,'Footnotes list'!$D$9:$E$107,2,FALSE)=0,\"\",VLOOKUP(U9,'Footnotes list'!$D$9:$E$107,2,FALSE) ) )","v":""},{"$f":"IF(COUNTA(W10:W19)<10,\"\",SUM(W10:W19))","v":0},null,null,{"$f":"IF(TRIM(Y9)=\"\", \"\", IF(VLOOKUP(Y9,'Footnotes list'!$D$9:$E$107,2,FALSE)=0,\"\",VLOOKUP(Y9,'Footnotes list'!$D$9:$E$107,2,FALSE) ) )","v":""},{"$f":"IF(COUNTA(G9,K9,O9,S9,W9)<5,\"\",SUM(G9,K9,O9,S9,W9))","v":0},null,null,{"$f":"IF(TRIM(AC9)=\"\", \"\", IF(VLOOKUP(AC9,'Footnotes list'!$D$9:$E$107,2,FALSE)=0,\"\",VLOOKUP(AC9,'Footnotes list'!$D$9:$E$107,2,FALSE) ) )","v":""}]
[null,{"$f":"CODES!G10","v":"PROV_CR_MF111"},"THS_T",null,"MF.1.1.1   Cereals ","1000 tonnes",null,null,null,{"$f":"IF(TRIM(I10)=\"\", \"\", IF(VLOOKUP(I10,'Footnotes list'!$D$9:$E$107,2,FALSE)=0,\"\",VLOOKUP(I10,'Footnotes list'!$D$9:$E$107,2,FALSE) ) )","v":""},0,null,null,{"$f":"IF(TRIM(M10)=\"\", \"\", IF(VLOOKUP(M10,'Footnotes list'!$D$9:$E$107,2,FALSE)=0,\"\",VLOOKUP(M10,'Footnotes list'!$D$9:$E$107,2,FALSE) ) )","v":""},null,null,null,{"$f":"IF(TRIM(Q10)=\"\", \"\", IF(VLOOKUP(Q10,'Footnotes list'!$D$9:$E$107,2,FALSE)=0,\"\",VLOOKUP(Q10,'Footnotes list'!$D$9:$E$107,2,FALSE) ) )","v":""},0,null,null,{"$f":"IF(TRIM(U10)=\"\", \"\", IF(VLOOKUP(U10,'Footnotes list'!$D$9:$E$107,2,FALSE)=0,\"\",VLOOKUP(U10,'Footnotes list'!$D$9:$E$107,2,FALSE) ) )","v":""},0,null,null,{"$f":"IF(TRIM(Y10)=\"\", \"\", IF(VLOOKUP(Y10,'Footnotes list'!$D$9:$E$107,2,FALSE)=0,\"\",VLOOKUP(Y10,'Footnotes list'!$D$9:$E$107,2,FALSE) ) )","v":""},"",null,null,{"$f":"IF(TRIM(AC10)=\"\", \"\", IF(VLOOKUP(AC10,'Footnotes list'!$D$9:$E$107,2,FALSE)=0,\"\",VLOOKUP(AC10,'Footnotes list'!$D$9:$E$107,2,FALSE) ) )","v":""}]
[null,{"$f":"CODES!G11","v":"PROV_CR_MF112"},"THS_T",null,"MF.1.1.2   Roots, tubers","1000 tonnes",null,null,null,{"$f":"IF(TRIM(I11)=\"\", \"\", IF(VLOOKUP(I11,'Footnotes list'!$D$9:$E$107,2,FALSE)=0,\"\",VLOOKUP(I11,'Footnotes list'!$D$9:$E$107,2,FALSE) ) )","v":""},0,null,null,{"$f":"IF(TRIM(M11)=\"\", \"\", IF(VLOOKUP(M11,'Footnotes list'!$D$9:$E$107,2,FALSE)=0,\"\",VLOOKUP(M11,'Footnotes list'!$D$9:$E$107,2,FALSE) ) )","v":""},null,null,null,{"$f":"IF(TRIM(Q11)=\"\", \"\", IF(VLOOKUP(Q11,'Footnotes list'!$D$9:$E$107,2,FALSE)=0,\"\",VLOOKUP(Q11,'Footnotes list'!$D$9:$E$107,2,FALSE) ) )","v":""},0,null,null,{"$f":"IF(TRIM(U11)=\"\", \"\", IF(VLOOKUP(U11,'Footnotes list'!$D$9:$E$107,2,FALSE)=0,\"\",VLOOKUP(U11,'Footnotes list'!$D$9:$E$107,2,FALSE) ) )","v":""},0,null,null,{"$f":"IF(TRIM(Y11)=\"\", \"\", IF(VLOOKUP(Y11,'Footnotes list'!$D$9:$E$107,2,FALSE)=0,\"\",VLOOKUP(Y11,'Footnotes list'!$D$9:$E$107,2,FALSE) ) )","v":""},"",null,null,{"$f":"IF(TRIM(AC11)=\"\", \"\", IF(VLOOKUP(AC11,'Footnotes list'!$D$9:$E$107,2,FALSE)=0,\"\",VLOOKUP(AC11,'Footnotes list'!$D$9:$E$107,2,FALSE) ) )","v":""}]
[null,{"$f":"CODES!G12","v":"PROV_CR_MF113"},"THS_T",null,"MF.1.1.3   Sugar crops ","1000 tonnes",null,null,null,{"$f":"IF(TRIM(I12)=\"\", \"\", IF(VLOOKUP(I12,'Footnotes list'!$D$9:$E$107,2,FALSE)=0,\"\",VLOOKUP(I12,'Footnotes list'!$D$9:$E$107,2,FALSE) ) )","v":""},0,null,null,{"$f":"IF(TRIM(M12)=\"\", \"\", IF(VLOOKUP(M12,'Footnotes list'!$D$9:$E$107,2,FALSE)=0,\"\",VLOOKUP(M12,'Footnotes list'!$D$9:$E$107,2,FALSE) ) )","v":""},null,null,null,{"$f":"IF(TRIM(Q12)=\"\", \"\", IF(VLOOKUP(Q12,'Footnotes list'!$D$9:$E$107,2,FALSE)=0,\"\",VLOOKUP(Q12,'Footnotes list'!$D$9:$E$107,2,FALSE) ) )","v":""},0,null,null,{"$f":"IF(TRIM(U12)=\"\", \"\", IF(VLOOKUP(U12,'Footnotes list'!$D$9:$E$107,2,FALSE)=0,\"\",VLOOKUP(U12,'Footnotes list'!$D$9:$E$107,2,FALSE) ) )","v":""},0,null,null,{"$f":"IF(TRIM(Y12)=\"\", \"\", IF(VLOOKUP(Y12,'Footnotes list'!$D$9:$E$107,2,FALSE)=0,\"\",VLOOKUP(Y12,'Footnotes list'!$D$9:$E$107,2,FALSE) ) )","v":""},"",null,null,{"$f":"IF(TRIM(AC12)=\"\", \"\", IF(VLOOKUP(AC12,'Footnotes list'!$D$9:$E$107,2,FALSE)=0,\"\",VLOOKUP(AC12,'Footnotes list'!$D$9:$E$107,2,FALSE) ) )","v":""}]
[null,{"$f":"CODES!G13","v":"PROV_CR_MF114"},"THS_T",null,"MF.1.1.4   Pulses","1000 tonnes",null,null,null,{"$f":"IF(TRIM(I13)=\"\", \"\", IF(VLOOKUP(I13,'Footnotes list'!$D$9:$E$107,2,FALSE)=0,\"\",VLOOKUP(I13,'Footnotes list'!$D$9:$E$107,2,FALSE) ) )","v":""},0,null,null,{"$f":"IF(TRIM(M13)=\"\", \"\", IF(VLOOKUP(M13,'Footnotes list'!$D$9:$E$107,2,FALSE)=0,\"\",VLOOKUP(M13,'Footnotes list'!$D$9:$E$107,2,FALSE) ) )","v":""},null,null,null,{"$f":"IF(TRIM(Q13)=\"\", \"\", IF(VLOOKUP(Q13,'Footnotes list'!$D$9:$E$107,2,FALSE)=0,\"\",VLOOKUP(Q13,'Footnotes list'!$D$9:$E$107,2,FALSE) ) )","v":""},0,null,null,{"$f":"IF(TRIM(U13)=\"\", \"\", IF(VLOOKUP(U13,'Footnotes list'!$D$9:$E$107,2,FALSE)=0,\"\",VLOOKUP(U13,'Footnotes list'!$D$9:$E$107,2,FALSE) ) )","v":""},0,null,null,{"$f":"IF(TRIM(Y13)=\"\", \"\", IF(VLOOKUP(Y13,'Footnotes list'!$D$9:$E$107,2,FALSE)=0,\"\",VLOOKUP(Y13,'Footnotes list'!$D$9:$E$107,2,FALSE) ) )","v":""},"",null,null,{"$f":"IF(TRIM(AC13)=\"\", \"\", IF(VLOOKUP(AC13,'Footnotes list'!$D$9:$E$107,2,FALSE)=0,\"\",VLOOKUP(AC13,'Footnotes list'!$D$9:$E$107,2,FALSE) ) )","v":""}]
[null,{"$f":"CODES!G14","v":"PROV_CR_MF115"},"THS_T",null,"MF.1.1.5   Nuts ","1000 tonnes",null,null,null,{"$f":"IF(TRIM(I14)=\"\", \"\", IF(VLOOKUP(I14,'Footnotes list'!$D$9:$E$107,2,FALSE)=0,\"\",VLOOKUP(I14,'Footnotes list'!$D$9:$E$107,2,FALSE) ) )","v":""},0,null,null,{"$f":"IF(TRIM(M14)=\"\", \"\", IF(VLOOKUP(M14,'Footnotes list'!$D$9:$E$107,2,FALSE)=0,\"\",VLOOKUP(M14,'Footnotes list'!$D$9:$E$107,2,FALSE) ) )","v":""},null,null,null,{"$f":"IF(TRIM(Q14)=\"\", \"\", IF(VLOOKUP(Q14,'Footnotes list'!$D$9:$E$107,2,FALSE)=0,\"\",VLOOKUP(Q14,'Footnotes list'!$D$9:$E$107,2,FALSE) ) )","v":""},0,null,null,{"$f":"IF(TRIM(U14)=\"\", \"\", IF(VLOOKUP(U14,'Footnotes list'!$D$9:$E$107,2,FALSE)=0,\"\",VLOOKUP(U14,'Footnotes list'!$D$9:$E$107,2,FALSE) ) )","v":""},0,null,null,{"$f":"IF(TRIM(Y14)=\"\", \"\", IF(VLOOKUP(Y14,'Footnotes list'!$D$9:$E$107,2,FALSE)=0,\"\",VLOOKUP(Y14,'Footnotes list'!$D$9:$E$107,2,FALSE) ) )","v":""},"",null,null,{"$f":"IF(TRIM(AC14)=\"\", \"\", IF(VLOOKUP(AC14,'Footnotes list'!$D$9:$E$107,2,FALSE)=0,\"\",VLOOKUP(AC14,'Footnotes list'!$D$9:$E$107,2,FALSE) ) )","v":""}]
[null,{"$f":"CODES!G15","v":"PROV_CR_MF116"},"THS_T",null,"MF.1.1.6   Oil-bearing crops ","1000 tonnes",null,null,null,{"$f":"IF(TRIM(I15)=\"\", \"\", IF(VLOOKUP(I15,'Footnotes list'!$D$9:$E$107,2,FALSE)=0,\"\",VLOOKUP(I15,'Footnotes list'!$D$9:$E$107,2,FALSE) ) )","v":""},0,null,null,{"$f":"IF(TRIM(M15)=\"\", \"\", IF(VLOOKUP(M15,'Footnotes list'!$D$9:$E$107,2,FALSE)=0,\"\",VLOOKUP(M15,'Footnotes list'!$D$9:$E$107,2,FALSE) ) )","v":""},null,null,null,{"$f":"IF(TRIM(Q15)=\"\", \"\", IF(VLOOKUP(Q15,'Footnotes list'!$D$9:$E$107,2,FALSE)=0,\"\",VLOOKUP(Q15,'Footnotes list'!$D$9:$E$107,2,FALSE) ) )","v":""},0,null,null,{"$f":"IF(TRIM(U15)=\"\", \"\", IF(VLOOKUP(U15,'Footnotes list'!$D$9:$E$107,2,FALSE)=0,\"\",VLOOKUP(U15,'Footnotes list'!$D$9:$E$107,2,FALSE) ) )","v":""},0,null,null,{"$f":"IF(TRIM(Y15)=\"\", \"\", IF(VLOOKUP(Y15,'Footnotes list'!$D$9:$E$107,2,FALSE)=0,\"\",VLOOKUP(Y15,'Footnotes list'!$D$9:$E$107,2,FALSE) ) )","v":""},"",null,null,{"$f":"IF(TRIM(AC15)=\"\", \"\", IF(VLOOKUP(AC15,'Footnotes list'!$D$9:$E$107,2,FALSE)=0,\"\",VLOOKUP(AC15,'Footnotes list'!$D$9:$E$107,2,FALSE) ) )","v":""}]
[null,{"$f":"CODES!G16","v":"PROV_CR_MF117"},"THS_T",null,"MF.1.1.7   Vegetables ","1000 tonnes",null,null,null,{"$f":"IF(TRIM(I16)=\"\", \"\", IF(VLOOKUP(I16,'Footnotes list'!$D$9:$E$107,2,FALSE)=0,\"\",VLOOKUP(I16,'Footnotes list'!$D$9:$E$107,2,FALSE) ) )","v":""},0,null,null,{"$f":"IF(TRIM(M16)=\"\", \"\", IF(VLOOKUP(M16,'Footnotes list'!$D$9:$E$107,2,FALSE)=0,\"\",VLOOKUP(M16,'Footnotes list'!$D$9:$E$107,2,FALSE) ) )","v":""},null,null,null,{"$f":"IF(TRIM(Q16)=\"\", \"\", IF(VLOOKUP(Q16,'Footnotes list'!$D$9:$E$107,2,FALSE)=0,\"\",VLOOKUP(Q16,'Footnotes list'!$D$9:$E$107,2,FALSE) ) )","v":""},0,null,null,{"$f":"IF(TRIM(U16)=\"\", \"\", IF(VLOOKUP(U16,'Footnotes list'!$D$9:$E$107,2,FALSE)=0,\"\",VLOOKUP(U16,'Footnotes list'!$D$9:$E$107,2,FALSE) ) )","v":""},0,null,null,{"$f":"IF(TRIM(Y16)=\"\", \"\", IF(VLOOKUP(Y16,'Footnotes list'!$D$9:$E$107,2,FALSE)=0,\"\",VLOOKUP(Y16,'Footnotes list'!$D$9:$E$107,2,FALSE) ) )","v":""},"",null,null,{"$f":"IF(TRIM(AC16)=\"\", \"\", IF(VLOOKUP(AC16,'Footnotes list'!$D$9:$E$107,2,FALSE)=0,\"\",VLOOKUP(AC16,'Footnotes list'!$D$9:$E$107,2,FALSE) ) )","v":""}]
[null,{"$f":"CODES!G17","v":"PROV_CR_MF118"},"THS_T",null,"MF.1.1.8   Fruits ","1000 tonnes",null,null,null,{"$f":"IF(TRIM(I17)=\"\", \"\", IF(VLOOKUP(I17,'Footnotes list'!$D$9:$E$107,2,FALSE)=0,\"\",VLOOKUP(I17,'Footnotes list'!$D$9:$E$107,2,FALSE) ) )","v":""},0,null,null,{"$f":"IF(TRIM(M17)=\"\", \"\", IF(VLOOKUP(M17,'Footnotes list'!$D$9:$E$107,2,FALSE)=0,\"\",VLOOKUP(M17,'Footnotes list'!$D$9:$E$107,2,FALSE) ) )","v":""},null,null,null,{"$f":"IF(TRIM(Q17)=\"\", \"\", IF(VLOOKUP(Q17,'Footnotes list'!$D$9:$E$107,2,FALSE)=0,\"\",VLOOKUP(Q17,'Footnotes list'!$D$9:$E$107,2,FALSE) ) )","v":""},0,null,null,{"$f":"IF(TRIM(U17)=\"\", \"\", IF(VLOOKUP(U17,'Footnotes list'!$D$9:$E$107,2,FALSE)=0,\"\",VLOOKUP(U17,'Footnotes list'!$D$9:$E$107,2,FALSE) ) )","v":""},0,null,null,{"$f":"IF(TRIM(Y17)=\"\", \"\", IF(VLOOKUP(Y17,'Footnotes list'!$D$9:$E$107,2,FALSE)=0,\"\",VLOOKUP(Y17,'Footnotes list'!$D$9:$E$107,2,FALSE) ) )","v":""},"",null,null,{"$f":"IF(TRIM(AC17)=\"\", \"\", IF(VLOOKUP(AC17,'Footnotes list'!$D$9:$E$107,2,FALSE)=0,\"\",VLOOKUP(AC17,'Footnotes list'!$D$9:$E$107,2,FALSE) ) )","v":""}]
[null,{"$f":"CODES!G18","v":"PROV_CR_MF119"},"THS_T",null,"MF.1.1.9   Fibres ","1000 tonnes",null,null,null,{"$f":"IF(TRIM(I18)=\"\", \"\", IF(VLOOKUP(I18,'Footnotes list'!$D$9:$E$107,2,FALSE)=0,\"\",VLOOKUP(I18,'Footnotes list'!$D$9:$E$107,2,FALSE) ) )","v":""},0,null,null,{"$f":"IF(TRIM(M18)=\"\", \"\", IF(VLOOKUP(M18,'Footnotes list'!$D$9:$E$107,2,FALSE)=0,\"\",VLOOKUP(M18,'Footnotes list'!$D$9:$E$107,2,FALSE) ) )","v":""},null,null,null,{"$f":"IF(TRIM(Q18)=\"\", \"\", IF(VLOOKUP(Q18,'Footnotes list'!$D$9:$E$107,2,FALSE)=0,\"\",VLOOKUP(Q18,'Footnotes list'!$D$9:$E$107,2,FALSE) ) )","v":""},0,null,null,{"$f":"IF(TRIM(U18)=\"\", \"\", IF(VLOOKUP(U18,'Footnotes list'!$D$9:$E$107,2,FALSE)=0,\"\",VLOOKUP(U18,'Footnotes list'!$D$9:$E$107,2,FALSE) ) )","v":""},0,null,null,{"$f":"IF(TRIM(Y18)=\"\", \"\", IF(VLOOKUP(Y18,'Footnotes list'!$D$9:$E$107,2,FALSE)=0,\"\",VLOOKUP(Y18,'Footnotes list'!$D$9:$E$107,2,FALSE) ) )","v":""},"",null,null,{"$f":"IF(TRIM(AC18)=\"\", \"\", IF(VLOOKUP(AC18,'Footnotes list'!$D$9:$E$107,2,FALSE)=0,\"\",VLOOKUP(AC18,'Footnotes list'!$D$9:$E$107,2,FALSE) ) )","v":""}]
[null,{"$f":"CODES!G19","v":"PROV_CR_MF11A"},"THS_T",null,"MF.1.1.A   Other crops (excluding fodder crops) n.e.c.","1000 tonnes",null,null,null,{"$f":"IF(TRIM(I19)=\"\", \"\", IF(VLOOKUP(I19,'Footnotes list'!$D$9:$E$107,2,FALSE)=0,\"\",VLOOKUP(I19,'Footnotes list'!$D$9:$E$107,2,FALSE) ) )","v":""},0,null,null,{"$f":"IF(TRIM(M19)=\"\", \"\", IF(VLOOKUP(M19,'Footnotes list'!$D$9:$E$107,2,FALSE)=0,\"\",VLOOKUP(M19,'Footnotes list'!$D$9:$E$107,2,FALSE) ) )","v":""},null,null,null,{"$f":"IF(TRIM(Q19)=\"\", \"\", IF(VLOOKUP(Q19,'Footnotes list'!$D$9:$E$107,2,FALSE)=0,\"\",VLOOKUP(Q19,'Footnotes list'!$D$9:$E$107,2,FALSE) ) )","v":""},0,null,null,{"$f":"IF(TRIM(U19)=\"\", \"\", IF(VLOOKUP(U19,'Footnotes list'!$D$9:$E$107,2,FALSE)=0,\"\",VLOOKUP(U19,'Footnotes list'!$D$9:$E$107,2,FALSE) ) )","v":""},0,null,null,{"$f":"IF(TRIM(Y19)=\"\", \"\", IF(VLOOKUP(Y19,'Footnotes list'!$D$9:$E$107,2,FALSE)=0,\"\",VLOOKUP(Y19,'Footnotes list'!$D$9:$E$107,2,FALSE) ) )","v":""},"",null,null,{"$f":"IF(TRIM(AC19)=\"\", \"\", IF(VLOOKUP(AC19,'Footnotes list'!$D$9:$E$107,2,FALSE)=0,\"\",VLOOKUP(AC19,'Footnotes list'!$D$9:$E$107,2,FALSE) ) )","v":""}]
[null,{"$f":"CODES!G20","v":"PROV_CR_MF12"},"THS_T",null,"MF.1.2   Crop residues (used), fodder crops and grazed biomass","1000 tonnes",{"$f":"IF(COUNTA(G21:G24)<4,\"\",SUM(G21,G24))","v":""},null,null,{"$f":"IF(TRIM(I20)=\"\", \"\", IF(VLOOKUP(I20,'Footnotes list'!$D$9:$E$107,2,FALSE)=0,\"\",VLOOKUP(I20,'Footnotes list'!$D$9:$E$107,2,FALSE) ) )","v":""},{"$f":"IF(COUNTA(K21:K24)<4,\"\",SUM(K21,K24))","v":0},null,null,{"$f":"IF(TRIM(M20)=\"\", \"\", IF(VLOOKUP(M20,'Footnotes list'!$D$9:$E$107,2,FALSE)=0,\"\",VLOOKUP(M20,'Footnotes list'!$D$9:$E$107,2,FALSE) ) )","v":""},{"$f":"IF(COUNTA(O21:O24)<4,\"\",SUM(O21,O24))","v":""},null,null,{"$f":"IF(TRIM(Q20)=\"\", \"\", IF(VLOOKUP(Q20,'Footnotes list'!$D$9:$E$107,2,FALSE)=0,\"\",VLOOKUP(Q20,'Footnotes list'!$D$9:$E$107,2,FALSE) ) )","v":""},{"$f":"IF(COUNTA(S21:S24)<4,\"\",SUM(S21,S24))","v":0},null,null,{"$f":"IF(TRIM(U20)=\"\", \"\", IF(VLOOKUP(U20,'Footnotes list'!$D$9:$E$107,2,FALSE)=0,\"\",VLOOKUP(U20,'Footnotes list'!$D$9:$E$107,2,FALSE) ) )","v":""},{"$f":"IF(COUNTA(W21:W24)<4,\"\",SUM(W21,W24))","v":0},null,null,{"$f":"IF(TRIM(Y20)=\"\", \"\", IF(VLOOKUP(Y20,'Footnotes list'!$D$9:$E$107,2,FALSE)=0,\"\",VLOOKUP(Y20,'Footnotes list'!$D$9:$E$107,2,FALSE) ) )","v":""},0,null,null,{"$f":"IF(TRIM(AC20)=\"\", \"\", IF(VLOOKUP(AC20,'Footnotes list'!$D$9:$E$107,2,FALSE)=0,\"\",VLOOKUP(AC20,'Footnotes list'!$D$9:$E$107,2,FALSE) ) )","v":""}]
[null,{"$f":"CODES!G21","v":"PROV_CR_MF121"},"THS_T",null,"MF.1.2.1   Crop residues (used)","1000 tonnes",{"$f":"IF(COUNTA(G22:G23)<2,\"\",SUM(G22:G23))","v":""},null,null,{"$f":"IF(TRIM(I21)=\"\", \"\", IF(VLOOKUP(I21,'Footnotes list'!$D$9:$E$107,2,FALSE)=0,\"\",VLOOKUP(I21,'Footnotes list'!$D$9:$E$107,2,FALSE) ) )","v":""},{"$f":"IF(COUNTA(K22:K23)<2,\"\",SUM(K22:K23))","v":0},null,null,{"$f":"IF(TRIM(M21)=\"\", \"\", IF(VLOOKUP(M21,'Footnotes list'!$D$9:$E$107,2,FALSE)=0,\"\",VLOOKUP(M21,'Footnotes list'!$D$9:$E$107,2,FALSE) ) )","v":""},{"$f":"IF(COUNTA(O22:O23)<2,\"\",SUM(O22:O23))","v":""},null,null,{"$f":"IF(TRIM(Q21)=\"\", \"\", IF(VLOOKUP(Q21,'Footnotes list'!$D$9:$E$107,2,FALSE)=0,\"\",VLOOKUP(Q21,'Footnotes list'!$D$9:$E$107,2,FALSE) ) )","v":""},{"$f":"IF(COUNTA(S22:S23)<2,\"\",SUM(S22:S23))","v":0},null,null,{"$f":"IF(TRIM(U21)=\"\", \"\", IF(VLOOKUP(U21,'Footnotes list'!$D$9:$E$107,2,FALSE)=0,\"\",VLOOKUP(U21,'Footnotes list'!$D$9:$E$107,2,FALSE) ) )","v":""},{"$f":"IF(COUNTA(W22:W23)<2,\"\",SUM(W22:W23))","v":0},null,null,{"$f":"IF(TRIM(Y21)=\"\", \"\", IF(VLOOKUP(Y21,'Footnotes list'!$D$9:$E$107,2,FALSE)=0,\"\",VLOOKUP(Y21,'Footnotes list'!$D$9:$E$107,2,FALSE) ) )","v":""},0,null,null,{"$f":"IF(TRIM(AC21)=\"\", \"\", IF(VLOOKUP(AC21,'Footnotes list'!$D$9:$E$107,2,FALSE)=0,\"\",VLOOKUP(AC21,'Footnotes list'!$D$9:$E$107,2,FALSE) ) )","v":""}]
[null,{"$f":"CODES!G22","v":"PROV_CR_MF1211"},"THS_T",null,"MF.1.2.1.1   Straw","1000 tonnes",null,null,null,{"$f":"IF(TRIM(I22)=\"\", \"\", IF(VLOOKUP(I22,'Footnotes list'!$D$9:$E$107,2,FALSE)=0,\"\",VLOOKUP(I22,'Footnotes list'!$D$9:$E$107,2,FALSE) ) )","v":""},0,null,null,{"$f":"IF(TRIM(M22)=\"\", \"\", IF(VLOOKUP(M22,'Footnotes list'!$D$9:$E$107,2,FALSE)=0,\"\",VLOOKUP(M22,'Footnotes list'!$D$9:$E$107,2,FALSE) ) )","v":""},null,null,null,{"$f":"IF(TRIM(Q22)=\"\", \"\", IF(VLOOKUP(Q22,'Footnotes list'!$D$9:$E$107,2,FALSE)=0,\"\",VLOOKUP(Q22,'Footnotes list'!$D$9:$E$107,2,FALSE) ) )","v":""},0,null,null,{"$f":"IF(TRIM(U22)=\"\", \"\", IF(VLOOKUP(U22,'Footnotes list'!$D$9:$E$107,2,FALSE)=0,\"\",VLOOKUP(U22,'Footnotes list'!$D$9:$E$107,2,FALSE) ) )","v":""},0,null,null,{"$f":"IF(TRIM(Y22)=\"\", \"\", IF(VLOOKUP(Y22,'Footnotes list'!$D$9:$E$107,2,FALSE)=0,\"\",VLOOKUP(Y22,'Footnotes list'!$D$9:$E$107,2,FALSE) ) )","v":""},"",null,null,{"$f":"IF(TRIM(AC22)=\"\", \"\", IF(VLOOKUP(AC22,'Footnotes list'!$D$9:$E$107,2,FALSE)=0,\"\",VLOOKUP(AC22,'Footnotes list'!$D$9:$E$107,2,FALSE) ) )","v":""}]
[null,{"$f":"CODES!G23","v":"PROV_CR_MF1212"},"THS_T",null,"MF.1.2.1.2   Other crop residues (sugar and fodder beet leaves, etc.)","1000 tonnes",null,null,null,{"$f":"IF(TRIM(I23)=\"\", \"\", IF(VLOOKUP(I23,'Footnotes list'!$D$9:$E$107,2,FALSE)=0,\"\",VLOOKUP(I23,'Footnotes list'!$D$9:$E$107,2,FALSE) ) )","v":""},0,null,null,{"$f":"IF(TRIM(M23)=\"\", \"\", IF(VLOOKUP(M23,'Footnotes list'!$D$9:$E$107,2,FALSE)=0,\"\",VLOOKUP(M23,'Footnotes list'!$D$9:$E$107,2,FALSE) ) )","v":""},null,null,null,{"$f":"IF(TRIM(Q23)=\"\", \"\", IF(VLOOKUP(Q23,'Footnotes list'!$D$9:$E$107,2,FALSE)=0,\"\",VLOOKUP(Q23,'Footnotes list'!$D$9:$E$107,2,FALSE) ) )","v":""},0,null,null,{"$f":"IF(TRIM(U23)=\"\", \"\", IF(VLOOKUP(U23,'Footnotes list'!$D$9:$E$107,2,FALSE)=0,\"\",VLOOKUP(U23,'Footnotes list'!$D$9:$E$107,2,FALSE) ) )","v":""},0,null,null,{"$f":"IF(TRIM(Y23)=\"\", \"\", IF(VLOOKUP(Y23,'Footnotes list'!$D$9:$E$107,2,FALSE)=0,\"\",VLOOKUP(Y23,'Footnotes list'!$D$9:$E$107,2,FALSE) ) )","v":""},"",null,null,{"$f":"IF(TRIM(AC23)=\"\", \"\", IF(VLOOKUP(AC23,'Footnotes list'!$D$9:$E$107,2,FALSE)=0,\"\",VLOOKUP(AC23,'Footnotes list'!$D$9:$E$107,2,FALSE) ) )","v":""}]
[null,{"$f":"CODES!G24","v":"PROV_CR_MF122"},"THS_T",null,"MF.1.2.2   Fodder crops and grazed biomass","1000 tonnes",{"$f":"IF(COUNTA(G25:G26)<2,\"\",SUM(G25:G26))","v":""},null,null,{"$f":"IF(TRIM(I24)=\"\", \"\", IF(VLOOKUP(I24,'Footnotes list'!$D$9:$E$107,2,FALSE)=0,\"\",VLOOKUP(I24,'Footnotes list'!$D$9:$E$107,2,FALSE) ) )","v":""},{"$f":"IF(COUNTA(K25:K26)<2,\"\",SUM(K25:K26))","v":0},null,null,{"$f":"IF(TRIM(M24)=\"\", \"\", IF(VLOOKUP(M24,'Footnotes list'!$D$9:$E$107,2,FALSE)=0,\"\",VLOOKUP(M24,'Footnotes list'!$D$9:$E$107,2,FALSE) ) )","v":""},{"$f":"IF(COUNTA(O25:O26)<2,\"\",SUM(O25:O26))","v":""},null,null,{"$f":"IF(TRIM(Q24)=\"\", \"\", IF(VLOOKUP(Q24,'Footnotes list'!$D$9:$E$107,2,FALSE)=0,\"\",VLOOKUP(Q24,'Footnotes list'!$D$9:$E$107,2,FALSE) ) )","v":""},{"$f":"IF(COUNTA(S25:S26)<2,\"\",SUM(S25:S26))","v":0},null,null,{"$f":"IF(TRIM(U24)=\"\", \"\", IF(VLOOKUP(U24,'Footnotes list'!$D$9:$E$107,2,FALSE)=0,\"\",VLOOKUP(U24,'Footnotes list'!$D$9:$E$107,2,FALSE) ) )","v":""},{"$f":"IF(COUNTA(W25:W26)<2,\"\",SUM(W25:W26))","v":0},null,null,{"$f":"IF(TRIM(Y24)=\"\", \"\", IF(VLOOKUP(Y24,'Footnotes list'!$D$9:$E$107,2,FALSE)=0,\"\",VLOOKUP(Y24,'Footnotes list'!$D$9:$E$107,2,FALSE) ) )","v":""},0,null,null,{"$f":"IF(TRIM(AC24)=\"\", \"\", IF(VLOOKUP(AC24,'Footnotes list'!$D$9:$E$107,2,FALSE)=0,\"\",VLOOKUP(AC24,'Footnotes list'!$D$9:$E$107,2,FALSE) ) )","v":""}]
[null,{"$f":"CODES!G25","v":"PROV_CR_MF1221"},"THS_T",null,"MF.1.2.2.1   Fodder crops (including biomass harvest from grassland)","1000 tonnes",null,null,null,{"$f":"IF(TRIM(I25)=\"\", \"\", IF(VLOOKUP(I25,'Footnotes list'!$D$9:$E$107,2,FALSE)=0,\"\",VLOOKUP(I25,'Footnotes list'!$D$9:$E$107,2,FALSE) ) )","v":""},0,null,null,{"$f":"IF(TRIM(M25)=\"\", \"\", IF(VLOOKUP(M25,'Footnotes list'!$D$9:$E$107,2,FALSE)=0,\"\",VLOOKUP(M25,'Footnotes list'!$D$9:$E$107,2,FALSE) ) )","v":""},null,null,null,{"$f":"IF(TRIM(Q25)=\"\", \"\", IF(VLOOKUP(Q25,'Footnotes list'!$D$9:$E$107,2,FALSE)=0,\"\",VLOOKUP(Q25,'Footnotes list'!$D$9:$E$107,2,FALSE) ) )","v":""},0,null,null,{"$f":"IF(TRIM(U25)=\"\", \"\", IF(VLOOKUP(U25,'Footnotes list'!$D$9:$E$107,2,FALSE)=0,\"\",VLOOKUP(U25,'Footnotes list'!$D$9:$E$107,2,FALSE) ) )","v":""},0,null,null,{"$f":"IF(TRIM(Y25)=\"\", \"\", IF(VLOOKUP(Y25,'Footnotes list'!$D$9:$E$107,2,FALSE)=0,\"\",VLOOKUP(Y25,'Footnotes list'!$D$9:$E$107,2,FALSE) ) )","v":""},"",null,null,{"$f":"IF(TRIM(AC25)=\"\", \"\", IF(VLOOKUP(AC25,'Footnotes list'!$D$9:$E$107,2,FALSE)=0,\"\",VLOOKUP(AC25,'Footnotes list'!$D$9:$E$107,2,FALSE) ) )","v":""}]
[null,{"$f":"CODES!G26","v":"PROV_CR_MF1222"},"THS_T",null,"MF.1.2.2.2   Grazed biomass","1000 tonnes",null,null,null,{"$f":"IF(TRIM(I26)=\"\", \"\", IF(VLOOKUP(I26,'Footnotes list'!$D$9:$E$107,2,FALSE)=0,\"\",VLOOKUP(I26,'Footnotes list'!$D$9:$E$107,2,FALSE) ) )","v":""},0,null,null,{"$f":"IF(TRIM(M26)=\"\", \"\", IF(VLOOKUP(M26,'Footnotes list'!$D$9:$E$107,2,FALSE)=0,\"\",VLOOKUP(M26,'Footnotes list'!$D$9:$E$107,2,FALSE) ) )","v":""},null,null,null,{"$f":"IF(TRIM(Q26)=\"\", \"\", IF(VLOOKUP(Q26,'Footnotes list'!$D$9:$E$107,2,FALSE)=0,\"\",VLOOKUP(Q26,'Footnotes list'!$D$9:$E$107,2,FALSE) ) )","v":""},0,null,null,{"$f":"IF(TRIM(U26)=\"\", \"\", IF(VLOOKUP(U26,'Footnotes list'!$D$9:$E$107,2,FALSE)=0,\"\",VLOOKUP(U26,'Footnotes list'!$D$9:$E$107,2,FALSE) ) )","v":""},0,null,null,{"$f":"IF(TRIM(Y26)=\"\", \"\", IF(VLOOKUP(Y26,'Footnotes list'!$D$9:$E$107,2,FALSE)=0,\"\",VLOOKUP(Y26,'Footnotes list'!$D$9:$E$107,2,FALSE) ) )","v":""},"",null,null,{"$f":"IF(TRIM(AC26)=\"\", \"\", IF(VLOOKUP(AC26,'Footnotes list'!$D$9:$E$107,2,FALSE)=0,\"\",VLOOKUP(AC26,'Footnotes list'!$D$9:$E$107,2,FALSE) ) )","v":""}]
[null,{"$f":"CODES!G27","v":"PROV_POLN_MF11_12"},"THS_T",null,"Crop pollination","1000 tonnes",{"$f":"IF(COUNTA(G28:G39)<2,\"\",SUM(G28,G39))","v":0},null,null,{"$f":"IF(TRIM(I27)=\"\", \"\", IF(VLOOKUP(I27,'Footnotes list'!$D$9:$E$107,2,FALSE)=0,\"\",VLOOKUP(I27,'Footnotes list'!$D$9:$E$107,2,FALSE) ) )","v":""},{"$f":"IF(COUNTA(K28:K39)<2,\"\",SUM(K28,K39))","v":0},null,null,{"$f":"IF(TRIM(M27)=\"\", \"\", IF(VLOOKUP(M27,'Footnotes list'!$D$9:$E$107,2,FALSE)=0,\"\",VLOOKUP(M27,'Footnotes list'!$D$9:$E$107,2,FALSE) ) )","v":""},{"$f":"IF(COUNTA(O28:O39)<2,\"\",SUM(O28,O39))","v":0},null,null,{"$f":"IF(TRIM(Q27)=\"\", \"\", IF(VLOOKUP(Q27,'Footnotes list'!$D$9:$E$107,2,FALSE)=0,\"\",VLOOKUP(Q27,'Footnotes list'!$D$9:$E$107,2,FALSE) ) )","v":""},{"$f":"IF(COUNTA(S28:S39)<2,\"\",SUM(S28,S39))","v":0},null,null,{"$f":"IF(TRIM(U27)=\"\", \"\", IF(VLOOKUP(U27,'Footnotes list'!$D$9:$E$107,2,FALSE)=0,\"\",VLOOKUP(U27,'Footnotes list'!$D$9:$E$107,2,FALSE) ) )","v":""},{"$f":"IF(COUNTA(W28:W39)<2,\"\",SUM(W28,W39))","v":0},null,null,{"$f":"IF(TRIM(Y27)=\"\", \"\", IF(VLOOKUP(Y27,'Footnotes list'!$D$9:$E$107,2,FALSE)=0,\"\",VLOOKUP(Y27,'Footnotes list'!$D$9:$E$107,2,FALSE) ) )","v":""},0,null,null,{"$f":"IF(TRIM(AC27)=\"\", \"\", IF(VLOOKUP(AC27,'Footnotes list'!$D$9:$E$107,2,FALSE)=0,\"\",VLOOKUP(AC27,'Footnotes list'!$D$9:$E$107,2,FALSE) ) )","v":""}]
[null,{"$f":"CODES!G28","v":"PROV_POLN_MF11"},"THS_T",null,"MF.1.1   Crops (excluding fodder crops)","1000 tonnes",{"$f":"IF(COUNTA(G29:G38)<10,\"\",SUM(G29:G38))","v":""},null,null,{"$f":"IF(TRIM(I28)=\"\", \"\", IF(VLOOKUP(I28,'Footnotes list'!$D$9:$E$107,2,FALSE)=0,\"\",VLOOKUP(I28,'Footnotes list'!$D$9:$E$107,2,FALSE) ) )","v":""},{"$f":"IF(COUNTA(K29:K38)<10,\"\",SUM(K29:K38))","v":0},null,null,{"$f":"IF(TRIM(M28)=\"\", \"\", IF(VLOOKUP(M28,'Footnotes list'!$D$9:$E$107,2,FALSE)=0,\"\",VLOOKUP(M28,'Footnotes list'!$D$9:$E$107,2,FALSE) ) )","v":""},{"$f":"IF(COUNTA(O29:O38)<10,\"\",SUM(O29:O38))","v":""},null,null,{"$f":"IF(TRIM(Q28)=\"\", \"\", IF(VLOOKUP(Q28,'Footnotes list'!$D$9:$E$107,2,FALSE)=0,\"\",VLOOKUP(Q28,'Footnotes list'!$D$9:$E$107,2,FALSE) ) )","v":""},{"$f":"IF(COUNTA(S29:S38)<10,\"\",SUM(S29:S38))","v":0},null,null,{"$f":"IF(TRIM(U28)=\"\", \"\", IF(VLOOKUP(U28,'Footnotes list'!$D$9:$E$107,2,FALSE)=0,\"\",VLOOKUP(U28,'Footnotes list'!$D$9:$E$107,2,FALSE) ) )","v":""},{"$f":"IF(COUNTA(W29:W38)<10,\"\",SUM(W29:W38))","v":0},null,null,{"$f":"IF(TRIM(Y28)=\"\", \"\", IF(VLOOKUP(Y28,'Footnotes list'!$D$9:$E$107,2,FALSE)=0,\"\",VLOOKUP(Y28,'Footnotes list'!$D$9:$E$107,2,FALSE) ) )","v":""},0,null,null,{"$f":"IF(TRIM(AC28)=\"\", \"\", IF(VLOOKUP(AC28,'Footnotes list'!$D$9:$E$107,2,FALSE)=0,\"\",VLOOKUP(AC28,'Footnotes list'!$D$9:$E$107,2,FALSE) ) )","v":""}]
[null,{"$f":"CODES!G29","v":"PROV_POLN_MF111"},"THS_T",null,"MF.1.1.1   Cereals ","1000 tonnes",null,null,null,{"$f":"IF(TRIM(I29)=\"\", \"\", IF(VLOOKUP(I29,'Footnotes list'!$D$9:$E$107,2,FALSE)=0,\"\",VLOOKUP(I29,'Footnotes list'!$D$9:$E$107,2,FALSE) ) )","v":""},0,null,null,{"$f":"IF(TRIM(M29)=\"\", \"\", IF(VLOOKUP(M29,'Footnotes list'!$D$9:$E$107,2,FALSE)=0,\"\",VLOOKUP(M29,'Footnotes list'!$D$9:$E$107,2,FALSE) ) )","v":""},null,null,null,{"$f":"IF(TRIM(Q29)=\"\", \"\", IF(VLOOKUP(Q29,'Footnotes list'!$D$9:$E$107,2,FALSE)=0,\"\",VLOOKUP(Q29,'Footnotes list'!$D$9:$E$107,2,FALSE) ) )","v":""},0,null,null,{"$f":"IF(TRIM(U29)=\"\", \"\", IF(VLOOKUP(U29,'Footnotes list'!$D$9:$E$107,2,FALSE)=0,\"\",VLOOKUP(U29,'Footnotes list'!$D$9:$E$107,2,FALSE) ) )","v":""},0,null,null,{"$f":"IF(TRIM(Y29)=\"\", \"\", IF(VLOOKUP(Y29,'Footnotes list'!$D$9:$E$107,2,FALSE)=0,\"\",VLOOKUP(Y29,'Footnotes list'!$D$9:$E$107,2,FALSE) ) )","v":""},"",null,null,{"$f":"IF(TRIM(AC29)=\"\", \"\", IF(VLOOKUP(AC29,'Footnotes list'!$D$9:$E$107,2,FALSE)=0,\"\",VLOOKUP(AC29,'Footnotes list'!$D$9:$E$107,2,FALSE) ) )","v":""}]
[null,{"$f":"CODES!G30","v":"PROV_POLN_MF112"},"THS_T",null,"MF.1.1.2   Roots, tubers","1000 tonnes",null,null,null,{"$f":"IF(TRIM(I30)=\"\", \"\", IF(VLOOKUP(I30,'Footnotes list'!$D$9:$E$107,2,FALSE)=0,\"\",VLOOKUP(I30,'Footnotes list'!$D$9:$E$107,2,FALSE) ) )","v":""},0,null,null,{"$f":"IF(TRIM(M30)=\"\", \"\", IF(VLOOKUP(M30,'Footnotes list'!$D$9:$E$107,2,FALSE)=0,\"\",VLOOKUP(M30,'Footnotes list'!$D$9:$E$107,2,FALSE) ) )","v":""},null,null,null,{"$f":"IF(TRIM(Q30)=\"\", \"\", IF(VLOOKUP(Q30,'Footnotes list'!$D$9:$E$107,2,FALSE)=0,\"\",VLOOKUP(Q30,'Footnotes list'!$D$9:$E$107,2,FALSE) ) )","v":""},0,null,null,{"$f":"IF(TRIM(U30)=\"\", \"\", IF(VLOOKUP(U30,'Footnotes list'!$D$9:$E$107,2,FALSE)=0,\"\",VLOOKUP(U30,'Footnotes list'!$D$9:$E$107,2,FALSE) ) )","v":""},0,null,null,{"$f":"IF(TRIM(Y30)=\"\", \"\", IF(VLOOKUP(Y30,'Footnotes list'!$D$9:$E$107,2,FALSE)=0,\"\",VLOOKUP(Y30,'Footnotes list'!$D$9:$E$107,2,FALSE) ) )","v":""},"",null,null,{"$f":"IF(TRIM(AC30)=\"\", \"\", IF(VLOOKUP(AC30,'Footnotes list'!$D$9:$E$107,2,FALSE)=0,\"\",VLOOKUP(AC30,'Footnotes list'!$D$9:$E$107,2,FALSE) ) )","v":""}]
[null,{"$f":"CODES!G31","v":"PROV_POLN_MF113"},"THS_T",null,"MF.1.1.3   Sugar crops ","1000 tonnes",null,null,null,{"$f":"IF(TRIM(I31)=\"\", \"\", IF(VLOOKUP(I31,'Footnotes list'!$D$9:$E$107,2,FALSE)=0,\"\",VLOOKUP(I31,'Footnotes list'!$D$9:$E$107,2,FALSE) ) )","v":""},0,null,null,{"$f":"IF(TRIM(M31)=\"\", \"\", IF(VLOOKUP(M31,'Footnotes list'!$D$9:$E$107,2,FALSE)=0,\"\",VLOOKUP(M31,'Footnotes list'!$D$9:$E$107,2,FALSE) ) )","v":""},null,null,null,{"$f":"IF(TRIM(Q31)=\"\", \"\", IF(VLOOKUP(Q31,'Footnotes list'!$D$9:$E$107,2,FALSE)=0,\"\",VLOOKUP(Q31,'Footnotes list'!$D$9:$E$107,2,FALSE) ) )","v":""},0,null,null,{"$f":"IF(TRIM(U31)=\"\", \"\", IF(VLOOKUP(U31,'Footnotes list'!$D$9:$E$107,2,FALSE)=0,\"\",VLOOKUP(U31,'Footnotes list'!$D$9:$E$107,2,FALSE) ) )","v":""},0,null,null,{"$f":"IF(TRIM(Y31)=\"\", \"\", IF(VLOOKUP(Y31,'Footnotes list'!$D$9:$E$107,2,FALSE)=0,\"\",VLOOKUP(Y31,'Footnotes list'!$D$9:$E$107,2,FALSE) ) )","v":""},"",null,null,{"$f":"IF(TRIM(AC31)=\"\", \"\", IF(VLOOKUP(AC31,'Footnotes list'!$D$9:$E$107,2,FALSE)=0,\"\",VLOOKUP(AC31,'Footnotes list'!$D$9:$E$107,2,FALSE) ) )","v":""}]
[null,{"$f":"CODES!G32","v":"PROV_POLN_MF114"},"THS_T",null,"MF.1.1.4   Pulses","1000 tonnes",null,null,null,{"$f":"IF(TRIM(I32)=\"\", \"\", IF(VLOOKUP(I32,'Footnotes list'!$D$9:$E$107,2,FALSE)=0,\"\",VLOOKUP(I32,'Footnotes list'!$D$9:$E$107,2,FALSE) ) )","v":""},0,null,null,{"$f":"IF(TRIM(M32)=\"\", \"\", IF(VLOOKUP(M32,'Footnotes list'!$D$9:$E$107,2,FALSE)=0,\"\",VLOOKUP(M32,'Footnotes list'!$D$9:$E$107,2,FALSE) ) )","v":""},null,null,null,{"$f":"IF(TRIM(Q32)=\"\", \"\", IF(VLOOKUP(Q32,'Footnotes list'!$D$9:$E$107,2,FALSE)=0,\"\",VLOOKUP(Q32,'Footnotes list'!$D$9:$E$107,2,FALSE) ) )","v":""},0,null,null,{"$f":"IF(TRIM(U32)=\"\", \"\", IF(VLOOKUP(U32,'Footnotes list'!$D$9:$E$107,2,FALSE)=0,\"\",VLOOKUP(U32,'Footnotes list'!$D$9:$E$107,2,FALSE) ) )","v":""},0,null,null,{"$f":"IF(TRIM(Y32)=\"\", \"\", IF(VLOOKUP(Y32,'Footnotes list'!$D$9:$E$107,2,FALSE)=0,\"\",VLOOKUP(Y32,'Footnotes list'!$D$9:$E$107,2,FALSE) ) )","v":""},"",null,null,{"$f":"IF(TRIM(AC32)=\"\", \"\", IF(VLOOKUP(AC32,'Footnotes list'!$D$9:$E$107,2,FALSE)=0,\"\",VLOOKUP(AC32,'Footnotes list'!$D$9:$E$107,2,FALSE) ) )","v":""}]
[null,{"$f":"CODES!G33","v":"PROV_POLN_MF115"},"THS_T",null,"MF.1.1.5   Nuts ","1000 tonnes",null,null,null,{"$f":"IF(TRIM(I33)=\"\", \"\", IF(VLOOKUP(I33,'Footnotes list'!$D$9:$E$107,2,FALSE)=0,\"\",VLOOKUP(I33,'Footnotes list'!$D$9:$E$107,2,FALSE) ) )","v":""},0,null,null,{"$f":"IF(TRIM(M33)=\"\", \"\", IF(VLOOKUP(M33,'Footnotes list'!$D$9:$E$107,2,FALSE)=0,\"\",VLOOKUP(M33,'Footnotes list'!$D$9:$E$107,2,FALSE) ) )","v":""},null,null,null,{"$f":"IF(TRIM(Q33)=\"\", \"\", IF(VLOOKUP(Q33,'Footnotes list'!$D$9:$E$107,2,FALSE)=0,\"\",VLOOKUP(Q33,'Footnotes list'!$D$9:$E$107,2,FALSE) ) )","v":""},0,null,null,{"$f":"IF(TRIM(U33)=\"\", \"\", IF(VLOOKUP(U33,'Footnotes list'!$D$9:$E$107,2,FALSE)=0,\"\",VLOOKUP(U33,'Footnotes list'!$D$9:$E$107,2,FALSE) ) )","v":""},0,null,null,{"$f":"IF(TRIM(Y33)=\"\", \"\", IF(VLOOKUP(Y33,'Footnotes list'!$D$9:$E$107,2,FALSE)=0,\"\",VLOOKUP(Y33,'Footnotes list'!$D$9:$E$107,2,FALSE) ) )","v":""},"",null,null,{"$f":"IF(TRIM(AC33)=\"\", \"\", IF(VLOOKUP(AC33,'Footnotes list'!$D$9:$E$107,2,FALSE)=0,\"\",VLOOKUP(AC33,'Footnotes list'!$D$9:$E$107,2,FALSE) ) )","v":""}]
[null,{"$f":"CODES!G34","v":"PROV_POLN_MF116"},"THS_T",null,"MF.1.1.6   Oil-bearing crops ","1000 tonnes",null,null,null,{"$f":"IF(TRIM(I34)=\"\", \"\", IF(VLOOKUP(I34,'Footnotes list'!$D$9:$E$107,2,FALSE)=0,\"\",VLOOKUP(I34,'Footnotes list'!$D$9:$E$107,2,FALSE) ) )","v":""},0,null,null,{"$f":"IF(TRIM(M34)=\"\", \"\", IF(VLOOKUP(M34,'Footnotes list'!$D$9:$E$107,2,FALSE)=0,\"\",VLOOKUP(M34,'Footnotes list'!$D$9:$E$107,2,FALSE) ) )","v":""},null,null,null,{"$f":"IF(TRIM(Q34)=\"\", \"\", IF(VLOOKUP(Q34,'Footnotes list'!$D$9:$E$107,2,FALSE)=0,\"\",VLOOKUP(Q34,'Footnotes list'!$D$9:$E$107,2,FALSE) ) )","v":""},0,null,null,{"$f":"IF(TRIM(U34)=\"\", \"\", IF(VLOOKUP(U34,'Footnotes list'!$D$9:$E$107,2,FALSE)=0,\"\",VLOOKUP(U34,'Footnotes list'!$D$9:$E$107,2,FALSE) ) )","v":""},0,null,null,{"$f":"IF(TRIM(Y34)=\"\", \"\", IF(VLOOKUP(Y34,'Footnotes list'!$D$9:$E$107,2,FALSE)=0,\"\",VLOOKUP(Y34,'Footnotes list'!$D$9:$E$107,2,FALSE) ) )","v":""},"",null,null,{"$f":"IF(TRIM(AC34)=\"\", \"\", IF(VLOOKUP(AC34,'Footnotes list'!$D$9:$E$107,2,FALSE)=0,\"\",VLOOKUP(AC34,'Footnotes list'!$D$9:$E$107,2,FALSE) ) )","v":""}]
[null,{"$f":"CODES!G35","v":"PROV_POLN_MF117"},"THS_T",null,"MF.1.1.7   Vegetables ","1000 tonnes",null,null,null,{"$f":"IF(TRIM(I35)=\"\", \"\", IF(VLOOKUP(I35,'Footnotes list'!$D$9:$E$107,2,FALSE)=0,\"\",VLOOKUP(I35,'Footnotes list'!$D$9:$E$107,2,FALSE) ) )","v":""},0,null,null,{"$f":"IF(TRIM(M35)=\"\", \"\", IF(VLOOKUP(M35,'Footnotes list'!$D$9:$E$107,2,FALSE)=0,\"\",VLOOKUP(M35,'Footnotes list'!$D$9:$E$107,2,FALSE) ) )","v":""},null,null,null,{"$f":"IF(TRIM(Q35)=\"\", \"\", IF(VLOOKUP(Q35,'Footnotes list'!$D$9:$E$107,2,FALSE)=0,\"\",VLOOKUP(Q35,'Footnotes list'!$D$9:$E$107,2,FALSE) ) )","v":""},0,null,null,{"$f":"IF(TRIM(U35)=\"\", \"\", IF(VLOOKUP(U35,'Footnotes list'!$D$9:$E$107,2,FALSE)=0,\"\",VLOOKUP(U35,'Footnotes list'!$D$9:$E$107,2,FALSE) ) )","v":""},0,null,null,{"$f":"IF(TRIM(Y35)=\"\", \"\", IF(VLOOKUP(Y35,'Footnotes list'!$D$9:$E$107,2,FALSE)=0,\"\",VLOOKUP(Y35,'Footnotes list'!$D$9:$E$107,2,FALSE) ) )","v":""},"",null,null,{"$f":"IF(TRIM(AC35)=\"\", \"\", IF(VLOOKUP(AC35,'Footnotes list'!$D$9:$E$107,2,FALSE)=0,\"\",VLOOKUP(AC35,'Footnotes list'!$D$9:$E$107,2,FALSE) ) )","v":""}]
[null,{"$f":"CODES!G36","v":"PROV_POLN_MF118"},"THS_T",null,"MF.1.1.8   Fruits ","1000 tonnes",null,null,null,{"$f":"IF(TRIM(I36)=\"\", \"\", IF(VLOOKUP(I36,'Footnotes list'!$D$9:$E$107,2,FALSE)=0,\"\",VLOOKUP(I36,'Footnotes list'!$D$9:$E$107,2,FALSE) ) )","v":""},0,null,null,{"$f":"IF(TRIM(M36)=\"\", \"\", IF(VLOOKUP(M36,'Footnotes list'!$D$9:$E$107,2,FALSE)=0,\"\",VLOOKUP(M36,'Footnotes list'!$D$9:$E$107,2,FALSE) ) )","v":""},null,null,null,{"$f":"IF(TRIM(Q36)=\"\", \"\", IF(VLOOKUP(Q36,'Footnotes list'!$D$9:$E$107,2,FALSE)=0,\"\",VLOOKUP(Q36,'Footnotes list'!$D$9:$E$107,2,FALSE) ) )","v":""},0,null,null,{"$f":"IF(TRIM(U36)=\"\", \"\", IF(VLOOKUP(U36,'Footnotes list'!$D$9:$E$107,2,FALSE)=0,\"\",VLOOKUP(U36,'Footnotes list'!$D$9:$E$107,2,FALSE) ) )","v":""},0,null,null,{"$f":"IF(TRIM(Y36)=\"\", \"\", IF(VLOOKUP(Y36,'Footnotes list'!$D$9:$E$107,2,FALSE)=0,\"\",VLOOKUP(Y36,'Footnotes list'!$D$9:$E$107,2,FALSE) ) )","v":""},"",null,null,{"$f":"IF(TRIM(AC36)=\"\", \"\", IF(VLOOKUP(AC36,'Footnotes list'!$D$9:$E$107,2,FALSE)=0,\"\",VLOOKUP(AC36,'Footnotes list'!$D$9:$E$107,2,FALSE) ) )","v":""}]
[null,{"$f":"CODES!G37","v":"PROV_POLN_MF119"},"THS_T",null,"MF.1.1.9   Fibres ","1000 tonnes",null,null,null,{"$f":"IF(TRIM(I37)=\"\", \"\", IF(VLOOKUP(I37,'Footnotes list'!$D$9:$E$107,2,FALSE)=0,\"\",VLOOKUP(I37,'Footnotes list'!$D$9:$E$107,2,FALSE) ) )","v":""},0,null,null,{"$f":"IF(TRIM(M37)=\"\", \"\", IF(VLOOKUP(M37,'Footnotes list'!$D$9:$E$107,2,FALSE)=0,\"\",VLOOKUP(M37,'Footnotes list'!$D$9:$E$107,2,FALSE) ) )","v":""},null,null,null,{"$f":"IF(TRIM(Q37)=\"\", \"\", IF(VLOOKUP(Q37,'Footnotes list'!$D$9:$E$107,2,FALSE)=0,\"\",VLOOKUP(Q37,'Footnotes list'!$D$9:$E$107,2,FALSE) ) )","v":""},0,null,null,{"$f":"IF(TRIM(U37)=\"\", \"\", IF(VLOOKUP(U37,'Footnotes list'!$D$9:$E$107,2,FALSE)=0,\"\",VLOOKUP(U37,'Footnotes list'!$D$9:$E$107,2,FALSE) ) )","v":""},0,null,null,{"$f":"IF(TRIM(Y37)=\"\", \"\", IF(VLOOKUP(Y37,'Footnotes list'!$D$9:$E$107,2,FALSE)=0,\"\",VLOOKUP(Y37,'Footnotes list'!$D$9:$E$107,2,FALSE) ) )","v":""},"",null,null,{"$f":"IF(TRIM(AC37)=\"\", \"\", IF(VLOOKUP(AC37,'Footnotes list'!$D$9:$E$107,2,FALSE)=0,\"\",VLOOKUP(AC37,'Footnotes list'!$D$9:$E$107,2,FALSE) ) )","v":""}]
[null,{"$f":"CODES!G38","v":"PROV_POLN_MF11A"},"THS_T",null,"MF.1.1.A   Other crops (excluding fodder crops) n.e.c.","1000 tonnes",null,null,null,{"$f":"IF(TRIM(I38)=\"\", \"\", IF(VLOOKUP(I38,'Footnotes list'!$D$9:$E$107,2,FALSE)=0,\"\",VLOOKUP(I38,'Footnotes list'!$D$9:$E$107,2,FALSE) ) )","v":""},0,null,null,{"$f":"IF(TRIM(M38)=\"\", \"\", IF(VLOOKUP(M38,'Footnotes list'!$D$9:$E$107,2,FALSE)=0,\"\",VLOOKUP(M38,'Footnotes list'!$D$9:$E$107,2,FALSE) ) )","v":""},null,null,null,{"$f":"IF(TRIM(Q38)=\"\", \"\", IF(VLOOKUP(Q38,'Footnotes list'!$D$9:$E$107,2,FALSE)=0,\"\",VLOOKUP(Q38,'Footnotes list'!$D$9:$E$107,2,FALSE) ) )","v":""},0,null,null,{"$f":"IF(TRIM(U38)=\"\", \"\", IF(VLOOKUP(U38,'Footnotes list'!$D$9:$E$107,2,FALSE)=0,\"\",VLOOKUP(U38,'Footnotes list'!$D$9:$E$107,2,FALSE) ) )","v":""},0,null,null,{"$f":"IF(TRIM(Y38)=\"\", \"\", IF(VLOOKUP(Y38,'Footnotes list'!$D$9:$E$107,2,FALSE)=0,\"\",VLOOKUP(Y38,'Footnotes list'!$D$9:$E$107,2,FALSE) ) )","v":""},"",null,null,{"$f":"IF(TRIM(AC38)=\"\", \"\", IF(VLOOKUP(AC38,'Footnotes list'!$D$9:$E$107,2,FALSE)=0,\"\",VLOOKUP(AC38,'Footnotes list'!$D$9:$E$107,2,FALSE) ) )","v":""}]
[null,{"$f":"CODES!G39","v":"PROV_POLN_MF12"},"THS_T",null,"MF.1.2   Crop residues (used), fodder crops and grazed biomass","1000 tonnes",{"$f":"IF(COUNTA(G40:G43)<4,\"\",SUM(G40,G43))","v":0},null,null,{"$f":"IF(TRIM(I39)=\"\", \"\", IF(VLOOKUP(I39,'Footnotes list'!$D$9:$E$107,2,FALSE)=0,\"\",VLOOKUP(I39,'Footnotes list'!$D$9:$E$107,2,FALSE) ) )","v":""},{"$f":"IF(COUNTA(K40:K43)<4,\"\",SUM(K40,K43))","v":0},null,null,{"$f":"IF(TRIM(M39)=\"\", \"\", IF(VLOOKUP(M39,'Footnotes list'!$D$9:$E$107,2,FALSE)=0,\"\",VLOOKUP(M39,'Footnotes list'!$D$9:$E$107,2,FALSE) ) )","v":""},{"$f":"IF(COUNTA(O40:O43)<4,\"\",SUM(O40,O43))","v":0},null,null,{"$f":"IF(TRIM(Q39)=\"\", \"\", IF(VLOOKUP(Q39,'Footnotes list'!$D$9:$E$107,2,FALSE)=0,\"\",VLOOKUP(Q39,'Footnotes list'!$D$9:$E$107,2,FALSE) ) )","v":""},{"$f":"IF(COUNTA(S40:S43)<4,\"\",SUM(S40,S43))","v":0},null,null,{"$f":"IF(TRIM(U39)=\"\", \"\", IF(VLOOKUP(U39,'Footnotes list'!$D$9:$E$107,2,FALSE)=0,\"\",VLOOKUP(U39,'Footnotes list'!$D$9:$E$107,2,FALSE) ) )","v":""},{"$f":"IF(COUNTA(W40:W43)<4,\"\",SUM(W40,W43))","v":0},null,null,{"$f":"IF(TRIM(Y39)=\"\", \"\", IF(VLOOKUP(Y39,'Footnotes list'!$D$9:$E$107,2,FALSE)=0,\"\",VLOOKUP(Y39,'Footnotes list'!$D$9:$E$107,2,FALSE) ) )","v":""},0,null,null,{"$f":"IF(TRIM(AC39)=\"\", \"\", IF(VLOOKUP(AC39,'Footnotes list'!$D$9:$E$107,2,FALSE)=0,\"\",VLOOKUP(AC39,'Footnotes list'!$D$9:$E$107,2,FALSE) ) )","v":""}]
[null,{"$f":"CODES!G40","v":"PROV_POLN_MF121"},"THS_T",null,"MF.1.2.1   Crop residues (used)","1000 tonnes",{"$f":"IF(COUNTA(G41:G42)<2,\"\",SUM(G41:G42))","v":0},null,null,{"$f":"IF(TRIM(I40)=\"\", \"\", IF(VLOOKUP(I40,'Footnotes list'!$D$9:$E$107,2,FALSE)=0,\"\",VLOOKUP(I40,'Footnotes list'!$D$9:$E$107,2,FALSE) ) )","v":""},{"$f":"IF(COUNTA(K41:K42)<2,\"\",SUM(K41:K42))","v":0},null,null,{"$f":"IF(TRIM(M40)=\"\", \"\", IF(VLOOKUP(M40,'Footnotes list'!$D$9:$E$107,2,FALSE)=0,\"\",VLOOKUP(M40,'Footnotes list'!$D$9:$E$107,2,FALSE) ) )","v":""},{"$f":"IF(COUNTA(O41:O42)<2,\"\",SUM(O41:O42))","v":0},null,null,{"$f":"IF(TRIM(Q40)=\"\", \"\", IF(VLOOKUP(Q40,'Footnotes list'!$D$9:$E$107,2,FALSE)=0,\"\",VLOOKUP(Q40,'Footnotes list'!$D$9:$E$107,2,FALSE) ) )","v":""},{"$f":"IF(COUNTA(S41:S42)<2,\"\",SUM(S41:S42))","v":0},null,null,{"$f":"IF(TRIM(U40)=\"\", \"\", IF(VLOOKUP(U40,'Footnotes list'!$D$9:$E$107,2,FALSE)=0,\"\",VLOOKUP(U40,'Footnotes list'!$D$9:$E$107,2,FALSE) ) )","v":""},{"$f":"IF(COUNTA(W41:W42)<2,\"\",SUM(W41:W42))","v":0},null,null,{"$f":"IF(TRIM(Y40)=\"\", \"\", IF(VLOOKUP(Y40,'Footnotes list'!$D$9:$E$107,2,FALSE)=0,\"\",VLOOKUP(Y40,'Footnotes list'!$D$9:$E$107,2,FALSE) ) )","v":""},0,null,null,{"$f":"IF(TRIM(AC40)=\"\", \"\", IF(VLOOKUP(AC40,'Footnotes list'!$D$9:$E$107,2,FALSE)=0,\"\",VLOOKUP(AC40,'Footnotes list'!$D$9:$E$107,2,FALSE) ) )","v":""}]
[null,{"$f":"CODES!G41","v":"PROV_POLN_MF1211"},"THS_T",null,"MF.1.2.1.1   Straw","1000 tonnes",0,null,null,{"$f":"IF(TRIM(I41)=\"\", \"\", IF(VLOOKUP(I41,'Footnotes list'!$D$9:$E$107,2,FALSE)=0,\"\",VLOOKUP(I41,'Footnotes list'!$D$9:$E$107,2,FALSE) ) )","v":""},0,null,null,{"$f":"IF(TRIM(M41)=\"\", \"\", IF(VLOOKUP(M41,'Footnotes list'!$D$9:$E$107,2,FALSE)=0,\"\",VLOOKUP(M41,'Footnotes list'!$D$9:$E$107,2,FALSE) ) )","v":""},0,null,null,{"$f":"IF(TRIM(Q41)=\"\", \"\", IF(VLOOKUP(Q41,'Footnotes list'!$D$9:$E$107,2,FALSE)=0,\"\",VLOOKUP(Q41,'Footnotes list'!$D$9:$E$107,2,FALSE) ) )","v":""},0,null,null,{"$f":"IF(TRIM(U41)=\"\", \"\", IF(VLOOKUP(U41,'Footnotes list'!$D$9:$E$107,2,FALSE)=0,\"\",VLOOKUP(U41,'Footnotes list'!$D$9:$E$107,2,FALSE) ) )","v":""},0,null,null,{"$f":"IF(TRIM(Y41)=\"\", \"\", IF(VLOOKUP(Y41,'Footnotes list'!$D$9:$E$107,2,FALSE)=0,\"\",VLOOKUP(Y41,'Footnotes list'!$D$9:$E$107,2,FALSE) ) )","v":""},0,null,null,{"$f":"IF(TRIM(AC41)=\"\", \"\", IF(VLOOKUP(AC41,'Footnotes list'!$D$9:$E$107,2,FALSE)=0,\"\",VLOOKUP(AC41,'Footnotes list'!$D$9:$E$107,2,FALSE) ) )","v":""}]
[null,{"$f":"CODES!G42","v":"PROV_POLN_MF1212"},"THS_T",null,"MF.1.2.1.2   Other crop residues (sugar and fodder beet leaves, etc.)","1000 tonnes",0,null,null,{"$f":"IF(TRIM(I42)=\"\", \"\", IF(VLOOKUP(I42,'Footnotes list'!$D$9:$E$107,2,FALSE)=0,\"\",VLOOKUP(I42,'Footnotes list'!$D$9:$E$107,2,FALSE) ) )","v":""},0,null,null,{"$f":"IF(TRIM(M42)=\"\", \"\", IF(VLOOKUP(M42,'Footnotes list'!$D$9:$E$107,2,FALSE)=0,\"\",VLOOKUP(M42,'Footnotes list'!$D$9:$E$107,2,FALSE) ) )","v":""},0,null,null,{"$f":"IF(TRIM(Q42)=\"\", \"\", IF(VLOOKUP(Q42,'Footnotes list'!$D$9:$E$107,2,FALSE)=0,\"\",VLOOKUP(Q42,'Footnotes list'!$D$9:$E$107,2,FALSE) ) )","v":""},0,null,null,{"$f":"IF(TRIM(U42)=\"\", \"\", IF(VLOOKUP(U42,'Footnotes list'!$D$9:$E$107,2,FALSE)=0,\"\",VLOOKUP(U42,'Footnotes list'!$D$9:$E$107,2,FALSE) ) )","v":""},0,null,null,{"$f":"IF(TRIM(Y42)=\"\", \"\", IF(VLOOKUP(Y42,'Footnotes list'!$D$9:$E$107,2,FALSE)=0,\"\",VLOOKUP(Y42,'Footnotes list'!$D$9:$E$107,2,FALSE) ) )","v":""},0,null,null,{"$f":"IF(TRIM(AC42)=\"\", \"\", IF(VLOOKUP(AC42,'Footnotes list'!$D$9:$E$107,2,FALSE)=0,\"\",VLOOKUP(AC42,'Footnotes list'!$D$9:$E$107,2,FALSE) ) )","v":""}]
[null,{"$f":"CODES!G43","v":"PROV_POLN_MF122"},"THS_T",null,"MF.1.2.2   Fodder crops and grazed biomass","1000 tonnes",{"$f":"IF(COUNTA(G44:G45)<2,\"\",SUM(G44:G45))","v":0},null,null,{"$f":"IF(TRIM(I43)=\"\", \"\", IF(VLOOKUP(I43,'Footnotes list'!$D$9:$E$107,2,FALSE)=0,\"\",VLOOKUP(I43,'Footnotes list'!$D$9:$E$107,2,FALSE) ) )","v":""},{"$f":"IF(COUNTA(K44:K45)<2,\"\",SUM(K44:K45))","v":0},null,null,{"$f":"IF(TRIM(M43)=\"\", \"\", IF(VLOOKUP(M43,'Footnotes list'!$D$9:$E$107,2,FALSE)=0,\"\",VLOOKUP(M43,'Footnotes list'!$D$9:$E$107,2,FALSE) ) )","v":""},{"$f":"IF(COUNTA(O44:O45)<2,\"\",SUM(O44:O45))","v":0},null,null,{"$f":"IF(TRIM(Q43)=\"\", \"\", IF(VLOOKUP(Q43,'Footnotes list'!$D$9:$E$107,2,FALSE)=0,\"\",VLOOKUP(Q43,'Footnotes list'!$D$9:$E$107,2,FALSE) ) )","v":""},{"$f":"IF(COUNTA(S44:S45)<2,\"\",SUM(S44:S45))","v":0},null,null,{"$f":"IF(TRIM(U43)=\"\", \"\", IF(VLOOKUP(U43,'Footnotes list'!$D$9:$E$107,2,FALSE)=0,\"\",VLOOKUP(U43,'Footnotes list'!$D$9:$E$107,2,FALSE) ) )","v":""},{"$f":"IF(COUNTA(W44:W45)<2,\"\",SUM(W44:W45))","v":0},null,null,{"$f":"IF(TRIM(Y43)=\"\", \"\", IF(VLOOKUP(Y43,'Footnotes list'!$D$9:$E$107,2,FALSE)=0,\"\",VLOOKUP(Y43,'Footnotes list'!$D$9:$E$107,2,FALSE) ) )","v":""},0,null,null,{"$f":"IF(TRIM(AC43)=\"\", \"\", IF(VLOOKUP(AC43,'Footnotes list'!$D$9:$E$107,2,FALSE)=0,\"\",VLOOKUP(AC43,'Footnotes list'!$D$9:$E$107,2,FALSE) ) )","v":""}]
[null,{"$f":"CODES!G44","v":"PROV_POLN_MF1221"},"THS_T",null,"MF.1.2.2.1   Fodder crops (including biomass harvest from grassland)","1000 tonnes",0,null,null,{"$f":"IF(TRIM(I44)=\"\", \"\", IF(VLOOKUP(I44,'Footnotes list'!$D$9:$E$107,2,FALSE)=0,\"\",VLOOKUP(I44,'Footnotes list'!$D$9:$E$107,2,FALSE) ) )","v":""},0,null,null,{"$f":"IF(TRIM(M44)=\"\", \"\", IF(VLOOKUP(M44,'Footnotes list'!$D$9:$E$107,2,FALSE)=0,\"\",VLOOKUP(M44,'Footnotes list'!$D$9:$E$107,2,FALSE) ) )","v":""},0,null,null,{"$f":"IF(TRIM(Q44)=\"\", \"\", IF(VLOOKUP(Q44,'Footnotes list'!$D$9:$E$107,2,FALSE)=0,\"\",VLOOKUP(Q44,'Footnotes list'!$D$9:$E$107,2,FALSE) ) )","v":""},0,null,null,{"$f":"IF(TRIM(U44)=\"\", \"\", IF(VLOOKUP(U44,'Footnotes list'!$D$9:$E$107,2,FALSE)=0,\"\",VLOOKUP(U44,'Footnotes list'!$D$9:$E$107,2,FALSE) ) )","v":""},0,null,null,{"$f":"IF(TRIM(Y44)=\"\", \"\", IF(VLOOKUP(Y44,'Footnotes list'!$D$9:$E$107,2,FALSE)=0,\"\",VLOOKUP(Y44,'Footnotes list'!$D$9:$E$107,2,FALSE) ) )","v":""},0,null,null,{"$f":"IF(TRIM(AC44)=\"\", \"\", IF(VLOOKUP(AC44,'Footnotes list'!$D$9:$E$107,2,FALSE)=0,\"\",VLOOKUP(AC44,'Footnotes list'!$D$9:$E$107,2,FALSE) ) )","v":""}]
[null,{"$f":"CODES!G45","v":"PROV_POLN_MF1222"},"THS_T",null,"MF.1.2.2.2   Grazed biomass","1000 tonnes",0,null,null,{"$f":"IF(TRIM(I45)=\"\", \"\", IF(VLOOKUP(I45,'Footnotes list'!$D$9:$E$107,2,FALSE)=0,\"\",VLOOKUP(I45,'Footnotes list'!$D$9:$E$107,2,FALSE) ) )","v":""},0,null,null,{"$f":"IF(TRIM(M45)=\"\", \"\", IF(VLOOKUP(M45,'Footnotes list'!$D$9:$E$107,2,FALSE)=0,\"\",VLOOKUP(M45,'Footnotes list'!$D$9:$E$107,2,FALSE) ) )","v":""},0,null,null,{"$f":"IF(TRIM(Q45)=\"\", \"\", IF(VLOOKUP(Q45,'Footnotes list'!$D$9:$E$107,2,FALSE)=0,\"\",VLOOKUP(Q45,'Footnotes list'!$D$9:$E$107,2,FALSE) ) )","v":""},0,null,null,{"$f":"IF(TRIM(U45)=\"\", \"\", IF(VLOOKUP(U45,'Footnotes list'!$D$9:$E$107,2,FALSE)=0,\"\",VLOOKUP(U45,'Footnotes list'!$D$9:$E$107,2,FALSE) ) )","v":""},0,null,null,{"$f":"IF(TRIM(Y45)=\"\", \"\", IF(VLOOKUP(Y45,'Footnotes list'!$D$9:$E$107,2,FALSE)=0,\"\",VLOOKUP(Y45,'Footnotes list'!$D$9:$E$107,2,FALSE) ) )","v":""},0,null,null,{"$f":"IF(TRIM(AC45)=\"\", \"\", IF(VLOOKUP(AC45,'Footnotes list'!$D$9:$E$107,2,FALSE)=0,\"\",VLOOKUP(AC45,'Footnotes list'!$D$9:$E$107,2,FALSE) ) )","v":""}]
[null,{"$f":"CODES!G46","v":"PROV_WD_MF13MEMO"},"THS_M3",null,"Wood provision (increment cultivated)","1000 m3",null,null,null,{"$f":"IF(TRIM(I46)=\"\", \"\", IF(VLOOKUP(I46,'Footnotes list'!$D$9:$E$107,2,FALSE)=0,\"\",VLOOKUP(I46,'Footnotes list'!$D$9:$E$107,2,FALSE) ) )","v":""},null,null,null,{"$f":"IF(TRIM(M46)=\"\", \"\", IF(VLOOKUP(M46,'Footnotes list'!$D$9:$E$107,2,FALSE)=0,\"\",VLOOKUP(M46,'Footnotes list'!$D$9:$E$107,2,FALSE) ) )","v":""},null,null,null,{"$f":"IF(TRIM(Q46)=\"\", \"\", IF(VLOOKUP(Q46,'Footnotes list'!$D$9:$E$107,2,FALSE)=0,\"\",VLOOKUP(Q46,'Footnotes list'!$D$9:$E$107,2,FALSE) ) )","v":""},0,null,null,{"$f":"IF(TRIM(U46)=\"\", \"\", IF(VLOOKUP(U46,'Footnotes list'!$D$9:$E$107,2,FALSE)=0,\"\",VLOOKUP(U46,'Footnotes list'!$D$9:$E$107,2,FALSE) ) )","v":""},0,null,null,{"$f":"IF(TRIM(Y46)=\"\", \"\", IF(VLOOKUP(Y46,'Footnotes list'!$D$9:$E$107,2,FALSE)=0,\"\",VLOOKUP(Y46,'Footnotes list'!$D$9:$E$107,2,FALSE) ) )","v":""},"",null,null,{"$f":"IF(TRIM(AC46)=\"\", \"\", IF(VLOOKUP(AC46,'Footnotes list'!$D$9:$E$107,2,FALSE)=0,\"\",VLOOKUP(AC46,'Footnotes list'!$D$9:$E$107,2,FALSE) ) )","v":""}]
[null,{"$f":"CODES!G47","v":"PROV_WD_MF13"},"THS_M3",null,"Wood provision (removals non cultivated)","1000 m3",null,null,null,{"$f":"IF(TRIM(I47)=\"\", \"\", IF(VLOOKUP(I47,'Footnotes list'!$D$9:$E$107,2,FALSE)=0,\"\",VLOOKUP(I47,'Footnotes list'!$D$9:$E$107,2,FALSE) ) )","v":""},null,null,null,{"$f":"IF(TRIM(M47)=\"\", \"\", IF(VLOOKUP(M47,'Footnotes list'!$D$9:$E$107,2,FALSE)=0,\"\",VLOOKUP(M47,'Footnotes list'!$D$9:$E$107,2,FALSE) ) )","v":""},null,null,null,{"$f":"IF(TRIM(Q47)=\"\", \"\", IF(VLOOKUP(Q47,'Footnotes list'!$D$9:$E$107,2,FALSE)=0,\"\",VLOOKUP(Q47,'Footnotes list'!$D$9:$E$107,2,FALSE) ) )","v":""},0,null,null,{"$f":"IF(TRIM(U47)=\"\", \"\", IF(VLOOKUP(U47,'Footnotes list'!$D$9:$E$107,2,FALSE)=0,\"\",VLOOKUP(U47,'Footnotes list'!$D$9:$E$107,2,FALSE) ) )","v":""},0,null,null,{"$f":"IF(TRIM(Y47)=\"\", \"\", IF(VLOOKUP(Y47,'Footnotes list'!$D$9:$E$107,2,FALSE)=0,\"\",VLOOKUP(Y47,'Footnotes list'!$D$9:$E$107,2,FALSE) ) )","v":""},"",null,null,{"$f":"IF(TRIM(AC47)=\"\", \"\", IF(VLOOKUP(AC47,'Footnotes list'!$D$9:$E$107,2,FALSE)=0,\"\",VLOOKUP(AC47,'Footnotes list'!$D$9:$E$107,2,FALSE) ) )","v":""}]
[null,{"$f":"CODES!G55","v":"REG_AIR_FL_PM10"},"T",null,"Air filtration of PM10","tonnes",null,null,null,{"$f":"IF(TRIM(I48)=\"\", \"\", IF(VLOOKUP(I48,'Footnotes list'!$D$9:$E$107,2,FALSE)=0,\"\",VLOOKUP(I48,'Footnotes list'!$D$9:$E$107,2,FALSE) ) )","v":""},null,null,null,{"$f":"IF(TRIM(M48)=\"\", \"\", IF(VLOOKUP(M48,'Footnotes list'!$D$9:$E$107,2,FALSE)=0,\"\",VLOOKUP(M48,'Footnotes list'!$D$9:$E$107,2,FALSE) ) )","v":""},0,null,null,{"$f":"IF(TRIM(Q48)=\"\", \"\", IF(VLOOKUP(Q48,'Footnotes list'!$D$9:$E$107,2,FALSE)=0,\"\",VLOOKUP(Q48,'Footnotes list'!$D$9:$E$107,2,FALSE) ) )","v":""},0,null,null,{"$f":"IF(TRIM(U48)=\"\", \"\", IF(VLOOKUP(U48,'Footnotes list'!$D$9:$E$107,2,FALSE)=0,\"\",VLOOKUP(U48,'Footnotes list'!$D$9:$E$107,2,FALSE) ) )","v":""},0,null,null,{"$f":"IF(TRIM(Y48)=\"\", \"\", IF(VLOOKUP(Y48,'Footnotes list'!$D$9:$E$107,2,FALSE)=0,\"\",VLOOKUP(Y48,'Footnotes list'!$D$9:$E$107,2,FALSE) ) )","v":""},"",null,null,{"$f":"IF(TRIM(AC48)=\"\", \"\", IF(VLOOKUP(AC48,'Footnotes list'!$D$9:$E$107,2,FALSE)=0,\"\",VLOOKUP(AC48,'Footnotes list'!$D$9:$E$107,2,FALSE) ) )","v":""}]
[null,{"$f":"CODES!G56","v":"REG_AIR_FL_PM2P5"},"T",null,"Air filtration of PM2.5","tonnes",null,null,null,{"$f":"IF(TRIM(I49)=\"\", \"\", IF(VLOOKUP(I49,'Footnotes list'!$D$9:$E$107,2,FALSE)=0,\"\",VLOOKUP(I49,'Footnotes list'!$D$9:$E$107,2,FALSE) ) )","v":""},null,null,null,{"$f":"IF(TRIM(M49)=\"\", \"\", IF(VLOOKUP(M49,'Footnotes list'!$D$9:$E$107,2,FALSE)=0,\"\",VLOOKUP(M49,'Footnotes list'!$D$9:$E$107,2,FALSE) ) )","v":""},0,null,null,{"$f":"IF(TRIM(Q49)=\"\", \"\", IF(VLOOKUP(Q49,'Footnotes list'!$D$9:$E$107,2,FALSE)=0,\"\",VLOOKUP(Q49,'Footnotes list'!$D$9:$E$107,2,FALSE) ) )","v":""},0,null,null,{"$f":"IF(TRIM(U49)=\"\", \"\", IF(VLOOKUP(U49,'Footnotes list'!$D$9:$E$107,2,FALSE)=0,\"\",VLOOKUP(U49,'Footnotes list'!$D$9:$E$107,2,FALSE) ) )","v":""},0,null,null,{"$f":"IF(TRIM(Y49)=\"\", \"\", IF(VLOOKUP(Y49,'Footnotes list'!$D$9:$E$107,2,FALSE)=0,\"\",VLOOKUP(Y49,'Footnotes list'!$D$9:$E$107,2,FALSE) ) )","v":""},"",null,null,{"$f":"IF(TRIM(AC49)=\"\", \"\", IF(VLOOKUP(AC49,'Footnotes list'!$D$9:$E$107,2,FALSE)=0,\"\",VLOOKUP(AC49,'Footnotes list'!$D$9:$E$107,2,FALSE) ) )","v":""}]
[null,{"$f":"CODES!G51","v":"REG_CO2_SEQ_NET"},"T",null,"Global climate regulation - net sequestration (indicator)","tonnes",null,null,null,{"$f":"IF(TRIM(I50)=\"\", \"\", IF(VLOOKUP(I50,'Footnotes list'!$D$9:$E$107,2,FALSE)=0,\"\",VLOOKUP(I50,'Footnotes list'!$D$9:$E$107,2,FALSE) ) )","v":""},null,null,null,{"$f":"IF(TRIM(M50)=\"\", \"\", IF(VLOOKUP(M50,'Footnotes list'!$D$9:$E$107,2,FALSE)=0,\"\",VLOOKUP(M50,'Footnotes list'!$D$9:$E$107,2,FALSE) ) )","v":""},0,null,null,{"$f":"IF(TRIM(Q50)=\"\", \"\", IF(VLOOKUP(Q50,'Footnotes list'!$D$9:$E$107,2,FALSE)=0,\"\",VLOOKUP(Q50,'Footnotes list'!$D$9:$E$107,2,FALSE) ) )","v":""},0,null,null,{"$f":"IF(TRIM(U50)=\"\", \"\", IF(VLOOKUP(U50,'Footnotes list'!$D$9:$E$107,2,FALSE)=0,\"\",VLOOKUP(U50,'Footnotes list'!$D$9:$E$107,2,FALSE) ) )","v":""},0,null,null,{"$f":"IF(TRIM(Y50)=\"\", \"\", IF(VLOOKUP(Y50,'Footnotes list'!$D$9:$E$107,2,FALSE)=0,\"\",VLOOKUP(Y50,'Footnotes list'!$D$9:$E$107,2,FALSE) ) )","v":""},"",null,null,{"$f":"IF(TRIM(AC50)=\"\", \"\", IF(VLOOKUP(AC50,'Footnotes list'!$D$9:$E$107,2,FALSE)=0,\"\",VLOOKUP(AC50,'Footnotes list'!$D$9:$E$107,2,FALSE) ) )","v":""}]
[null,{"$f":"CODES!G52","v":"REG_CO2_SEQ_NET_PRIM"},"T",null,"Global climate sequestration  - primary net sequestration (ecosystem service)","tonnes",null,null,null,{"$f":"IF(TRIM(I51)=\"\", \"\", IF(VLOOKUP(I51,'Footnotes list'!$D$9:$E$107,2,FALSE)=0,\"\",VLOOKUP(I51,'Footnotes list'!$D$9:$E$107,2,FALSE) ) )","v":""},null,null,null,{"$f":"IF(TRIM(M51)=\"\", \"\", IF(VLOOKUP(M51,'Footnotes list'!$D$9:$E$107,2,FALSE)=0,\"\",VLOOKUP(M51,'Footnotes list'!$D$9:$E$107,2,FALSE) ) )","v":""},0,null,null,{"$f":"IF(TRIM(Q51)=\"\", \"\", IF(VLOOKUP(Q51,'Footnotes list'!$D$9:$E$107,2,FALSE)=0,\"\",VLOOKUP(Q51,'Footnotes list'!$D$9:$E$107,2,FALSE) ) )","v":""},0,null,null,{"$f":"IF(TRIM(U51)=\"\", \"\", IF(VLOOKUP(U51,'Footnotes list'!$D$9:$E$107,2,FALSE)=0,\"\",VLOOKUP(U51,'Footnotes list'!$D$9:$E$107,2,FALSE) ) )","v":""},0,null,null,{"$f":"IF(TRIM(Y51)=\"\", \"\", IF(VLOOKUP(Y51,'Footnotes list'!$D$9:$E$107,2,FALSE)=0,\"\",VLOOKUP(Y51,'Footnotes list'!$D$9:$E$107,2,FALSE) ) )","v":""},"",null,null,{"$f":"IF(TRIM(AC51)=\"\", \"\", IF(VLOOKUP(AC51,'Footnotes list'!$D$9:$E$107,2,FALSE)=0,\"\",VLOOKUP(AC51,'Footnotes list'!$D$9:$E$107,2,FALSE) ) )","v":""}]
[null,{"$f":"CODES!G48","v":"REG_CO2_STO_CM30"},"T",null,"Global climate regulation - storage 30cm","tonnes",null,null,null,{"$f":"IF(TRIM(I52)=\"\", \"\", IF(VLOOKUP(I52,'Footnotes list'!$D$9:$E$107,2,FALSE)=0,\"\",VLOOKUP(I52,'Footnotes list'!$D$9:$E$107,2,FALSE) ) )","v":""},null,null,null,{"$f":"IF(TRIM(M52)=\"\", \"\", IF(VLOOKUP(M52,'Footnotes list'!$D$9:$E$107,2,FALSE)=0,\"\",VLOOKUP(M52,'Footnotes list'!$D$9:$E$107,2,FALSE) ) )","v":""},0,null,null,{"$f":"IF(TRIM(Q52)=\"\", \"\", IF(VLOOKUP(Q52,'Footnotes list'!$D$9:$E$107,2,FALSE)=0,\"\",VLOOKUP(Q52,'Footnotes list'!$D$9:$E$107,2,FALSE) ) )","v":""},0,null,null,{"$f":"IF(TRIM(U52)=\"\", \"\", IF(VLOOKUP(U52,'Footnotes list'!$D$9:$E$107,2,FALSE)=0,\"\",VLOOKUP(U52,'Footnotes list'!$D$9:$E$107,2,FALSE) ) )","v":""},0,null,null,{"$f":"IF(TRIM(Y52)=\"\", \"\", IF(VLOOKUP(Y52,'Footnotes list'!$D$9:$E$107,2,FALSE)=0,\"\",VLOOKUP(Y52,'Footnotes list'!$D$9:$E$107,2,FALSE) ) )","v":""},"",null,null,{"$f":"IF(TRIM(AC52)=\"\", \"\", IF(VLOOKUP(AC52,'Footnotes list'!$D$9:$E$107,2,FALSE)=0,\"\",VLOOKUP(AC52,'Footnotes list'!$D$9:$E$107,2,FALSE) ) )","v":""}]
[null,{"$f":"CODES!G49","v":"REG_CO2_STO_CM100"},"T",null,"Global climate regulation - storage 100cm","tonnes",null,null,null,{"$f":"IF(TRIM(I53)=\"\", \"\", IF(VLOOKUP(I53,'Footnotes list'!$D$9:$E$107,2,FALSE)=0,\"\",VLOOKUP(I53,'Footnotes list'!$D$9:$E$107,2,FALSE) ) )","v":""},null,null,null,{"$f":"IF(TRIM(M53)=\"\", \"\", IF(VLOOKUP(M53,'Footnotes list'!$D$9:$E$107,2,FALSE)=0,\"\",VLOOKUP(M53,'Footnotes list'!$D$9:$E$107,2,FALSE) ) )","v":""},0,null,null,{"$f":"IF(TRIM(Q53)=\"\", \"\", IF(VLOOKUP(Q53,'Footnotes list'!$D$9:$E$107,2,FALSE)=0,\"\",VLOOKUP(Q53,'Footnotes list'!$D$9:$E$107,2,FALSE) ) )","v":""},0,null,null,{"$f":"IF(TRIM(U53)=\"\", \"\", IF(VLOOKUP(U53,'Footnotes list'!$D$9:$E$107,2,FALSE)=0,\"\",VLOOKUP(U53,'Footnotes list'!$D$9:$E$107,2,FALSE) ) )","v":""},0,null,null,{"$f":"IF(TRIM(Y53)=\"\", \"\", IF(VLOOKUP(Y53,'Footnotes list'!$D$9:$E$107,2,FALSE)=0,\"\",VLOOKUP(Y53,'Footnotes list'!$D$9:$E$107,2,FALSE) ) )","v":""},"",null,null,{"$f":"IF(TRIM(AC53)=\"\", \"\", IF(VLOOKUP(AC53,'Footnotes list'!$D$9:$E$107,2,FALSE)=0,\"\",VLOOKUP(AC53,'Footnotes list'!$D$9:$E$107,2,FALSE) ) )","v":""}]
[null,{"$f":"CODES!G50","v":"REG_CO2_STO_WHL"},"T",null,"Global climate regulation - storage whole depth","tonnes",null,null,null,{"$f":"IF(TRIM(I54)=\"\", \"\", IF(VLOOKUP(I54,'Footnotes list'!$D$9:$E$107,2,FALSE)=0,\"\",VLOOKUP(I54,'Footnotes list'!$D$9:$E$107,2,FALSE) ) )","v":""},null,null,null,{"$f":"IF(TRIM(M54)=\"\", \"\", IF(VLOOKUP(M54,'Footnotes list'!$D$9:$E$107,2,FALSE)=0,\"\",VLOOKUP(M54,'Footnotes list'!$D$9:$E$107,2,FALSE) ) )","v":""},0,null,null,{"$f":"IF(TRIM(Q54)=\"\", \"\", IF(VLOOKUP(Q54,'Footnotes list'!$D$9:$E$107,2,FALSE)=0,\"\",VLOOKUP(Q54,'Footnotes list'!$D$9:$E$107,2,FALSE) ) )","v":""},0,null,null,{"$f":"IF(TRIM(U54)=\"\", \"\", IF(VLOOKUP(U54,'Footnotes list'!$D$9:$E$107,2,FALSE)=0,\"\",VLOOKUP(U54,'Footnotes list'!$D$9:$E$107,2,FALSE) ) )","v":""},0,null,null,{"$f":"IF(TRIM(Y54)=\"\", \"\", IF(VLOOKUP(Y54,'Footnotes list'!$D$9:$E$107,2,FALSE)=0,\"\",VLOOKUP(Y54,'Footnotes list'!$D$9:$E$107,2,FALSE) ) )","v":""},"",null,null,{"$f":"IF(TRIM(AC54)=\"\", \"\", IF(VLOOKUP(AC54,'Footnotes list'!$D$9:$E$107,2,FALSE)=0,\"\",VLOOKUP(AC54,'Footnotes list'!$D$9:$E$107,2,FALSE) ) )","v":""}]
[null,{"$f":"CODES!G53","v":"REG_CL_RED_DEGC_GT25"},"DEGC",null,"Local climate regulation","degrees C",null,null,null,{"$f":"IF(TRIM(I55)=\"\", \"\", IF(VLOOKUP(I55,'Footnotes list'!$D$9:$E$107,2,FALSE)=0,\"\",VLOOKUP(I55,'Footnotes list'!$D$9:$E$107,2,FALSE) ) )","v":""},null,null,null,{"$f":"IF(TRIM(M55)=\"\", \"\", IF(VLOOKUP(M55,'Footnotes list'!$D$9:$E$107,2,FALSE)=0,\"\",VLOOKUP(M55,'Footnotes list'!$D$9:$E$107,2,FALSE) ) )","v":""},null,null,null,{"$f":"IF(TRIM(Q55)=\"\", \"\", IF(VLOOKUP(Q55,'Footnotes list'!$D$9:$E$107,2,FALSE)=0,\"\",VLOOKUP(Q55,'Footnotes list'!$D$9:$E$107,2,FALSE) ) )","v":""},0,null,null,{"$f":"IF(TRIM(U55)=\"\", \"\", IF(VLOOKUP(U55,'Footnotes list'!$D$9:$E$107,2,FALSE)=0,\"\",VLOOKUP(U55,'Footnotes list'!$D$9:$E$107,2,FALSE) ) )","v":""},0,null,null,{"$f":"IF(TRIM(Y55)=\"\", \"\", IF(VLOOKUP(Y55,'Footnotes list'!$D$9:$E$107,2,FALSE)=0,\"\",VLOOKUP(Y55,'Footnotes list'!$D$9:$E$107,2,FALSE) ) )","v":""},"",null,null,{"$f":"IF(TRIM(AC55)=\"\", \"\", IF(VLOOKUP(AC55,'Footnotes list'!$D$9:$E$107,2,FALSE)=0,\"\",VLOOKUP(AC55,'Footnotes list'!$D$9:$E$107,2,FALSE) ) )","v":""}]
[null,{"$f":"CODES!G58","v":"CLT_TOUR_NGT_SP"},"NR",null,"Nature-based tourism","overnight stays",null,null,null,{"$f":"IF(TRIM(I56)=\"\", \"\", IF(VLOOKUP(I56,'Footnotes list'!$D$9:$E$107,2,FALSE)=0,\"\",VLOOKUP(I56,'Footnotes list'!$D$9:$E$107,2,FALSE) ) )","v":""},null,null,null,{"$f":"IF(TRIM(M56)=\"\", \"\", IF(VLOOKUP(M56,'Footnotes list'!$D$9:$E$107,2,FALSE)=0,\"\",VLOOKUP(M56,'Footnotes list'!$D$9:$E$107,2,FALSE) ) )","v":""},null,null,null,{"$f":"IF(TRIM(Q56)=\"\", \"\", IF(VLOOKUP(Q56,'Footnotes list'!$D$9:$E$107,2,FALSE)=0,\"\",VLOOKUP(Q56,'Footnotes list'!$D$9:$E$107,2,FALSE) ) )","v":""},0,null,null,{"$f":"IF(TRIM(U56)=\"\", \"\", IF(VLOOKUP(U56,'Footnotes list'!$D$9:$E$107,2,FALSE)=0,\"\",VLOOKUP(U56,'Footnotes list'!$D$9:$E$107,2,FALSE) ) )","v":""},null,null,null,{"$f":"IF(TRIM(Y56)=\"\", \"\", IF(VLOOKUP(Y56,'Footnotes list'!$D$9:$E$107,2,FALSE)=0,\"\",VLOOKUP(Y56,'Footnotes list'!$D$9:$E$107,2,FALSE) ) )","v":""},"",null,null,{"$f":"IF(TRIM(AC56)=\"\", \"\", IF(VLOOKUP(AC56,'Footnotes list'!$D$9:$E$107,2,FALSE)=0,\"\",VLOOKUP(AC56,'Footnotes list'!$D$9:$E$107,2,FALSE) ) )","v":""}]
[null,{"$f":"CODES!G59","v":"CLT_REC_VIS"},"NR",null,"Nature-based recreation","visits",null,null,null,{"$f":"IF(TRIM(I57)=\"\", \"\", IF(VLOOKUP(I57,'Footnotes list'!$D$9:$E$107,2,FALSE)=0,\"\",VLOOKUP(I57,'Footnotes list'!$D$9:$E$107,2,FALSE) ) )","v":""},null,null,null,{"$f":"IF(TRIM(M57)=\"\", \"\", IF(VLOOKUP(M57,'Footnotes list'!$D$9:$E$107,2,FALSE)=0,\"\",VLOOKUP(M57,'Footnotes list'!$D$9:$E$107,2,FALSE) ) )","v":""},null,null,null,{"$f":"IF(TRIM(Q57)=\"\", \"\", IF(VLOOKUP(Q57,'Footnotes list'!$D$9:$E$107,2,FALSE)=0,\"\",VLOOKUP(Q57,'Footnotes list'!$D$9:$E$107,2,FALSE) ) )","v":""},0,null,null,{"$f":"IF(TRIM(U57)=\"\", \"\", IF(VLOOKUP(U57,'Footnotes list'!$D$9:$E$107,2,FALSE)=0,\"\",VLOOKUP(U57,'Footnotes list'!$D$9:$E$107,2,FALSE) ) )","v":""},null,null,null,{"$f":"IF(TRIM(Y57)=\"\", \"\", IF(VLOOKUP(Y57,'Footnotes list'!$D$9:$E$107,2,FALSE)=0,\"\",VLOOKUP(Y57,'Footnotes list'!$D$9:$E$107,2,FALSE) ) )","v":""},"",null,null,{"$f":"IF(TRIM(AC57)=\"\", \"\", IF(VLOOKUP(AC57,'Footnotes list'!$D$9:$E$107,2,FALSE)=0,\"\",VLOOKUP(AC57,'Footnotes list'!$D$9:$E$107,2,FALSE) ) )","v":""}]
[]
[null,null,null,null,"IND_ACCT",null,"P2",null,null,null,"P3_S13",null,null,null,"P3_S14",null,null,null,"P5",null,null,null,"P6",null,null,null,"TU"]

{"sheet":"Table 3 - Complementary","index":9,"n_rows":16,"n_cols":7,"rows_kept":16,"cut":false,"hidden":false,"merged":[[1,4,1,6]]}
[]
[null,"GEO =>",{"$f":"IF('GETTING STARTED'!G9=\"\",\"\",'GETTING STARTED'!G9)","v":""},null,"Table 3 - Complementary data"]
[null,"TIME=>",{"$f":"IF('GETTING STARTED'!E10=\"\",\"\",'GETTING STARTED'!E10)","v":""},null,"Country:",{"$f":"IF('GETTING STARTED'!$E$9=\"\",\"\",'GETTING STARTED'!$E$9)","v":""},{"$f":"IF('GETTING STARTED'!$G$9=\"\",\"\",'GETTING STARTED'!$G$9)","v":""}]
[null,"IND_ACCT","TU",null,"Reference year:",{"$f":"IF('GETTING STARTED'!$E$10=\"\",\"\",'GETTING STARTED'!$E$10)","v":""}]
[]
[]
[null,"ECOSERV (new)","UNIT","ECOSYST","Ecosystem service","Complementary variable"]
[null,{"$f":"CODES!G62","v":"REG_CL_DEGC_GT25"},"NR","ECO01","Local climate regulation","Days with maximum temperature exceeding 25°C"]
[null,{"$f":"CODES!G63","v":"REG_CL_DEGC_GT30"},"NR","ECO01","Local climate regulation","Days with maximum temperature exceeding 30°C "]
[null,{"$f":"CODES!G64","v":"REG_CL_DEGC_GT35"},"NR","ECO01","Local climate regulation","Days with maximum temperature exceeding 35°C"]
[null,{"$f":"CODES!G65","v":"REG_CL_URB_DEGC_GT25"},"THS_HA","ECO01","Local climate regulation","Urban area with an observed daily maximum temperature exceeding 25°C during the summer"]
[null,{"$f":"CODES!G66","v":"REG_CL_URB_DEGC_GT30"},"THS_HA","ECO01","Local climate regulation","Urban area  with an observed daily maximum temperature exceeding 30°C during the summer"]
[null,{"$f":"CODES!G67","v":"REG_CL_URB_DEGC_GT35"},"THS_HA","ECO01","Local climate regulation","Urban area with an observed daily maximum temperature exceeding 35°C during the summer"]
[null,{"$f":"CODES!G54","v":"REG_CL_BEN_PER"},"NR","ECO01","Local climate regulation","Benefitting people (persons)"]
[null,{"$f":"CODES!G57","v":"REG_AIR_FL_BEN_PER"},"NR","ECO01","Air filtration","Benefitting people (persons)"]
[null,"REG_CO2_EMIS","T","TOTAL","Global climate regulation","CO2 emissions from ecosystems"]

{"sheet":"Table 4 - Carbon seq_stor","index":10,"n_rows":22,"n_cols":19,"rows_kept":22,"cut":false,"hidden":true,"merged":[[1,5,1,18]]}
[]
[null,null,null,null,null,"Table 4 - Carbon stock account by ecosystem type"]
[null,"GEO =>",{"$f":"IF('GETTING STARTED'!E10=\"\",\"\",'GETTING STARTED'!E10)","v":""},null,null,"Country:",{"$f":"IF('GETTING STARTED'!$E$9=\"\",\"\",'GETTING STARTED'!$E$9)","v":""}]
[null,"TIME=>",{"$f":"IF('GETTING STARTED'!E10=\"\",\"\",'GETTING STARTED'!E10)","v":""},null,null,"Reference year:",{"$f":"IF('GETTING STARTED'!$E$10=\"\",\"\",'GETTING STARTED'!$E$10)","v":""}]
[null,"IND_ACCT =>","TU"]
[null,null,null,null,null,null,1,2,3,4,5,6,7,8,9,10,11,12]
["TIME","ECOSERV (new)","UNIT",null,null,null,"Settlements and other artificial areas","Cropland","Grassland ","Forest and woodland","Heathland and shrub","Sparsely vegetated ecosystems","Inland wetlands","Rivers and canals","Lakes and reservoirs","Marine inlets and transitional waters","Coastal beaches, dunes and wetlands","Marine ecosystems ","TOTAL"]
["t-1","(REG_CO2_STO_30CM)","T",null,null,"Carbon storage in the ecosystem at the beginning of the reference year (opening stock; up to 0.3 m soil depth) ",null,null,null,null,null,null,null,null,null,null,null,null,{"$f":"IF('Table 1 - Supply'!BC46=\"\", \"\", 'Table 1 - Supply'!BC46)","v":""}]
[{"$f":"C$4","v":""},"REG_CO2_SEQ_GPP","T",null,null,"Photosynthesis (i.e. Gross Primary Production)",null,null,null,null,null,null,null,null,null,null,null,null,{"$f":"IF('Table 1 - Supply'!BC47=\"\", \"\", 'Table 1 - Supply'!BC47)","v":""}]
[{"$f":"C$4","v":""},"REG_CO2_SEQ_RESP","T",null,null,"Plant respiration ",null,null,null,null,null,null,null,null,null,null,null,null,{"$f":"IF('Table 1 - Supply'!BC48=\"\", \"\", 'Table 1 - Supply'!BC48)","v":""}]
["","REG_CO2_SEQ_NPP","T",null,null,"Net Primary Production",null,null,null,null,null,null,null,null,null,null,null,null,{"$f":"IF('Table 1 - Supply'!BC49=\"\", \"\", 'Table 1 - Supply'!BC49)","v":""}]
["","REG_CO2_SEQ_DCOM","T",null,null,"Decomposition (i.e. Heterotrophic respiration)",null,null,null,null,null,null,null,null,null,null,null,null,{"$f":"IF('Table 1 - Supply'!BC50=\"\", \"\", 'Table 1 - Supply'!BC50)","v":""}]
["","(REG_CO2_SEQ_PRIM)","T",null,null,"Primary net sequestration (ecosystem service)",null,null,null,null,null,null,null,null,null,null,null,null,{"$f":"IF('Table 1 - Supply'!BC51=\"\", \"\", 'Table 1 - Supply'!BC51)","v":""}]
["","REG_CO2_SEQ_LUC","T",null,null,"Carbon emissions - land-use change",null,null,null,null,null,null,null,null,null,null,null,null,{"$f":"IF('Table 1 - Supply'!BC52=\"\", \"\", 'Table 1 - Supply'!BC52)","v":""}]
["","REG_CO2_SEQ_DIST","T",null,null,"Carbon emissions - disturbances",null,null,null,null,null,null,null,null,null,null,null,null,{"$f":"IF('Table 1 - Supply'!BC53=\"\", \"\", 'Table 1 - Supply'!BC53)","v":""}]
["","REG_CO2_SEQ_DIST_PO","T",null,null,"         Of which: due to peat oxidation",null,null,null,null,null,null,null,null,null,null,null,null,{"$f":"IF('Table 1 - Supply'!BC54=\"\", \"\", 'Table 1 - Supply'!BC54)","v":""}]
["","REG_CO2_SEQ_DIST_OTH","T",null,null,"         Of which: due to fires and other disturbances",null,null,null,null,null,null,null,null,null,null,null,null,{"$f":"IF('Table 1 - Supply'!BC55=\"\", \"\", 'Table 1 - Supply'!BC55)","v":""}]
["","REG_CO2_SEQ_RMOV","T",null,null,"Carbon removals - wood harvest",null,null,null,null,null,null,null,null,null,null,null,null,{"$f":"IF('Table 1 - Supply'!BC56=\"\", \"\", 'Table 1 - Supply'!BC56)","v":""}]
["","(REG_CO2_SEQ_NET)","T",null,null,"Net carbon sequestration (indicator)",null,null,null,null,null,null,null,null,null,null,null,null,{"$f":"IF('Table 1 - Supply'!BC57=\"\", \"\", 'Table 1 - Supply'!BC57)","v":""}]
["","(REG_CO2_STO_30CM)","T",null,null,"Carbon storage in the ecosystem at the end of the reference year (closing stock; up to 0.3 m soil depth) "]
[]
[null,null,null,null,null,"ECOSYST","ECO01","ECO02","ECO03","ECO04","ECO05","ECO06","ECO07","ECO08","ECO09","ECO10","ECO11","ECO12","TOTAL"]

{"sheet":"CODES","index":11,"n_rows":68,"n_cols":9,"rows_kept":68,"cut":false,"hidden":true,"merged":[[61,2,66,2],[7,1,46,1],[47,1,56,1],[57,1,58,1],[61,1,67,1]]}
[]
[]
[]
[]
[]
[]
[null,null,"Service","SERVICE CODE","INDICATOR","UNIT","ECOSERV (Service + indicator)","labels","Calculated at ESTAT"]
["PROV","PROVISION","Crop provision",{"$f":"CONCATENATE($A$8,\"_CROP\")","v":"PROV_CROP"},"MF11_12","THS_T","PROV_CR_MF11_12","Crop provision"]
[null,null,null,{"$f":"D$8","v":"PROV_CROP"},"MF11","THS_T","PROV_CR_MF11","Crop provision, excluding fodder crops"]
[null,null,null,{"$f":"D$8","v":"PROV_CROP"},"MF111","THS_T","PROV_CR_MF111","Crop provision, Cereals "]
[null,null,null,"PROV_CROP","MF112","THS_T","PROV_CR_MF112","Crop provision, Roots, tubers"]
[null,null,null,"PROV_CROP","MF113","THS_T","PROV_CR_MF113","Crop provision, Sugar crops "]
[null,null,null,"PROV_CROP","MF114","THS_T","PROV_CR_MF114","Crop provision, Pulses"]
[null,null,null,"PROV_CROP","MF115","THS_T","PROV_CR_MF115","Crop provision, Nuts "]
[null,null,null,"PROV_CROP","MF116","THS_T","PROV_CR_MF116","Crop provision, Oil-bearing crops "]
[null,null,null,"PROV_CROP","MF117","THS_T","PROV_CR_MF117","Crop provision, Vegetables "]
[null,null,null,"PROV_CROP","MF118","THS_T","PROV_CR_MF118","Crop provision, Fruits "]
[null,null,null,"PROV_CROP","MF119","THS_T","PROV_CR_MF119","Crop provision, Fibres "]
[null,null,null,"PROV_CROP","MF11A","THS_T","PROV_CR_MF11A","Crop provision, Other crops (excluding fodder crops) n.e.c."]
[null,null,null,"PROV_CROP","MF12","THS_T","PROV_CR_MF12","Crop provision, Crop residues (used), fodder crops and grazed biomass"]
[null,null,null,"PROV_CROP","MF121","THS_T","PROV_CR_MF121","Crop provision, Crop residues (used)"]
[null,null,null,"PROV_CROP","MF1211","THS_T","PROV_CR_MF1211","Crop provision, Straw"]
[null,null,null,"PROV_CROP","MF1212","THS_T","PROV_CR_MF1212","Crop provision, Other crop residues (sugar and fodder beet leaves, etc.)"]
[null,null,null,"PROV_CROP","MF122","THS_T","PROV_CR_MF122","Crop provision, Fodder crops and grazed biomass"]
[null,null,null,"PROV_CROP","MF1221","THS_T","PROV_CR_MF1221","Crop provision, Fodder crops (including biomass harvest from grassland)"]
[null,null,null,"PROV_CROP","MF1222","THS_T","PROV_CR_MF1222","Crop provision, Grazed biomass"]
[null,null,"Crop polination",{"$f":"CONCATENATE($A$8,\"_POL\")","v":"PROV_POL"},"MF11_12","THS_T","PROV_POLN_MF11_12","Crop pollination"]
[null,null,null,{"$f":"D$27","v":"PROV_POL"},"MF11","THS_T","PROV_POLN_MF11","Crop pollination, excluding fodder crops"]
[null,null,null,{"$f":"D$27","v":"PROV_POL"},"MF111","THS_T","PROV_POLN_MF111","Crop pollination, Cereals "]
[null,null,null,"PROV_POL","MF112","THS_T","PROV_POLN_MF112","Crop pollination, Roots, tubers"]
[null,null,null,"PROV_POL","MF113","THS_T","PROV_POLN_MF113","Crop pollination, Sugar crops "]
[null,null,null,"PROV_POL","MF114","THS_T","PROV_POLN_MF114","Crop pollination, Pulses"]
[null,null,null,"PROV_POL","MF115","THS_T","PROV_POLN_MF115","Crop pollination, Nuts "]
[null,null,null,"PROV_POL","MF116","THS_T","PROV_POLN_MF116","Crop pollination, Oil-bearing crops "]
[null,null,null,"PROV_POL","MF117","THS_T","PROV_POLN_MF117","Crop pollination, Vegetables "]
[null,null,null,"PROV_POL","MF118","THS_T","PROV_POLN_MF118","Crop pollination, Fruits "]
[null,null,null,"PROV_POL","MF119","THS_T","PROV_POLN_MF119","Crop pollination, Fibres "]
[null,null,null,"PROV_POL","MF11A","THS_T","PROV_POLN_MF11A","Crop pollination, Other crops (excluding fodder crops) n.e.c."]
[null,null,null,"PROV_POL","MF12","THS_T","PROV_POLN_MF12","Crop pollination, Crop residues (used), fodder crops and grazed biomass"]
[null,null,null,"PROV_POL","MF121","THS_T","PROV_POLN_MF121","Crop pollination, Crop residues (used)"]
[null,null,null,"PROV_POL","MF1211","THS_T","PROV_POLN_MF1211","Crop pollination, Straw"]
[null,null,null,"PROV_POL","MF1212","THS_T","PROV_POLN_MF1212","Crop pollination, Other crop residues (sugar and fodder beet leaves, etc.)"]
[null,null,null,"PROV_POL","MF122","THS_T","PROV_POLN_MF122","Crop pollination, Fodder crops and grazed biomass"]
[null,null,null,"PROV_POL","MF1221","THS_T","PROV_POLN_MF1221","Crop pollination, Fodder crops (including biomass harvest from grassland)"]
[null,null,null,"PROV_POL","MF1222","THS_T","PROV_POLN_MF1222","Crop pollination, Grazed biomass"]
[null,null,"Wood provision",{"$f":"CONCATENATE($A$8,\"_WD\")","v":"PROV_WD"},"MF13MEMO","THS_M3","PROV_WD_MF13MEMO","Wood provision (increment cultivated)"]
[null,null,null,{"$f":"D46","v":"PROV_WD"},"MF13",{"$f":"F$46","v":"THS_M3"},"PROV_WD_MF13","Wood provision (removals non cultivated)",{"$f":"D46&\"_TOTAL\"","v":"PROV_WD_TOTAL"}]
["REG","REGULATION","Storage of CO2 (Global)",{"$f":"CONCATENATE($A$48,\"_CO2_STO\")","v":"REG_CO2_STO"},"30CM","T","REG_CO2_STO_CM30","Global climate regulation - storage 30cm"]
[null,null,null,{"$f":"D$48","v":"REG_CO2_STO"},"100CM","T","REG_CO2_STO_CM100","Global climate regulation - storage 100cm"]
[null,null,null,{"$f":"D$48","v":"REG_CO2_STO"},"WHOLE","T","REG_CO2_STO_WHL","Global climate regulation - storage whole depth"]
[null,null,"Sequestration (Global)",{"$f":"CONCATENATE($A$48,\"_CO2_SEQ\")","v":"REG_CO2_SEQ"},"NET","T","REG_CO2_SEQ_NET","Global climate regulation - net sequestration (indicator)"]
[null,null,null,{"$f":"D$51","v":"REG_CO2_SEQ"},"PRIM","T","REG_CO2_SEQ_NET_PRIM","Global climate sequestration  - primary net sequestration (ecosystem service)"]
[null,null,"Cooling (Local)",{"$f":"CONCATENATE($A$48,\"_CL\")","v":"REG_CL"},"TEMP_RED_25","DEGC","REG_CL_RED_DEGC_GT25","Local climate regulation (cooling)"]
[null,null,null,{"$f":"D$53","v":"REG_CL"},"PEOPLE","NR","REG_CL_BEN_PER","Benefitting people (NR)"]
[null,null,"Air filtration",{"$f":"CONCATENATE($A$48,\"_AIR_FILT\")","v":"REG_AIR_FILT"},"PM10","T","REG_AIR_FL_PM10","Filtered tonnes of PM10"]
[null,null,null,{"$f":"D$55","v":"REG_AIR_FILT"},"PM2_5","T","REG_AIR_FL_PM2P5","Filtered tonnes of PM2.5"]
[null,null,null,{"$f":"D$55","v":"REG_AIR_FILT"},"PEOPLE","NR","REG_AIR_FL_BEN_PER","Benefitting people"]
["CULT","CULTURE","Tourism",{"$f":"$A$58 & \"_TOUR\"","v":"CULT_TOUR"},"NGT_SP","NR","CLT_TOUR_NGT_SP","Overnight stays"]
[null,null,"Recreation","CULT_RECR","VISITS","NR","CLT_REC_VIS","Visits"]
[]
[]
[null,"CONTEXTUAL INFORMATION","Cooling (Local)",{"$f":"$D$53","v":"REG_CL"},"EXC_25","NR","REG_CL_DEGC_GT25","Days with maximum temperature exceeding 25°C"]
[null,null,null,"REG_CL","EXC_30","NR","REG_CL_DEGC_GT30","Days with maximum temperature exceeding 30°C "]
[null,null,null,"REG_CL","EXC_35","NR","REG_CL_DEGC_GT35","Days with maximum temperature exceeding 35°C"]
[null,null,null,"REG_CL","UA_EXC_25","THS_HA","REG_CL_URB_DEGC_GT25","Urban area with an observed daily maximum temperature exceeding 25°C during the summer"]
[null,null,null,"REG_CL","UA_EXC_30","THS_HA","REG_CL_URB_DEGC_GT30","Urban area with an observed daily maximum temperature exceeding 30°C during the summer"]
[null,null,null,"REG_CL","UA_EXC_35","THS_HA","REG_CL_URB_DEGC_GT35","Urban area with an observed daily maximum temperature exceeding 35°C during the summer"]
[null,null,null,null,null,"T","REG_CO2_EMIS","Global climate regulation CO2 - emissions"]

{"sheet":"ErrorLog","index":12,"n_rows":1,"n_cols":7,"rows_kept":1,"cut":false,"hidden":false,"merged":[]}
["Link to Error","Validation Rule","Cell","Sheet","Description","Severity","Former Color"]

{"sheet":"Lists","index":13,"n_rows":40,"n_cols":13,"rows_kept":40,"cut":false,"hidden":true,"merged":[[1,9,1,10],[5,9,5,10],[10,9,10,10],[15,9,15,10]]}
["Country label","Country code","Currency","Valid flags (obs_status)","Label",null,"Valid flags (obs_conf)","Label",null,"Textual variables","String",null,"TEST"]
["Belgium","BE","EUR","B","break in time series",null,"C","confidential",null,"Institutional names"]
["Bulgaria","BG","BGN","E","estimated data",null,"D","secondary confidentiality set by the sender",null,"Eurostat Text","Statistical Office of the European Union"]
["Czechia","CZ","CZK","P","provisional",null,null,null,null,"Directorate Text","Directorate E: Sectoral and regional statistics"]
["Denmark","DK","DKK","BE",null,null,null,null,null,"Unit Text","Unit E-2: Environmental statistics and accounts; sustainable development"]
["Germany","DE","EUR","BP",null,null,null,null,null,"Data collection information"]
["Estonia","EE","EUR","EP",null,null,null,null,null,"Data Collection Title","Ecosystem Services Accounts"]
["Ireland","IE","EUR","BEP",null,null,null,null,null,"Data Collection Year",2024]
["Greece","EL","EUR",null,null,null,null,null,null,"Launching date","19 December 2024"]
["Spain","ES","EUR",null,null,null,null,null,null,"Submission deadline","13 June 2025"]
["France","FR","EUR",null,null,null,null,null,null,"EDAMIS data"]
["Croatia","HR","EUR",null,null,null,null,null,null,"Domain name","ENVDATA"]
["Italy","IT","EUR",null,null,null,null,null,null,"Dataset name","ENVDATA_ECOSERV_A"]
["Cyprus","CY","EUR",null,null,null,null,null,null,"Web page","https://cros.ec.europa.eu/book-page/national-transmission-coordinators "]
["Latvia","LV","EUR",null,null,null,null,null,null,"Functional e-mail","ESTAT-DATA-METADATA-SERVICES@ec.europa.eu"]
["Lithuania","LT","EUR",null,null,null,null,null,null,"E2 information"]
["Luxembourg","LU","EUR",null,null,null,null,null,null,"Telephone","(+352) 4301 33213"]
["Hungary","HU","HUF",null,null,null,null,null,null,"Contact","ESTAT-ECOSYSTEMS@EC.EUROPA.EU"]
["Malta","MT","EUR",null,null,null,null,null,null,"Methodology URL","https://ec.europa.eu/eurostat/web/environment/methodology "]
["Netherlands","NL","EUR",null,null,null,null,null,null,"Legislation URL","NA"]
["Austria","AT","EUR"]
["Poland","PL","PLN"]
["Portugal","PT","EUR"]
["Romania","RO","RON"]
["Slovenia","SI","EUR"]
["Slovakia","SK","EUR"]
["Finland","FI","EUR"]
["Sweden","SE","SEK"]
["United Kingdom","UK","GBP"]
["Iceland","IS","ISK"]
["Liechtenstein","LI","CHF"]
["Norway","NO","NOK"]
["Switzerland","CH","CHF"]
["Montenegro","ME","EUR"]
["North Macedonia","MK","MKD"]
["Albania","AL","ALL"]
["Serbia","RS","RSD"]
["Turkey","TR","TRY"]
["Bosnia and Herzegovina","BA","BAM"]
["Kosovo (UNSCR 1244)","XK","EUR"]

{"sheet":"MacroBehaviour","index":14,"n_rows":3,"n_cols":7,"rows_kept":3,"cut":false,"hidden":true,"merged":[[0,0,0,2],[0,4,0,6]]}
["COMMON TO ALL (OR MOST)  QUESTIONNAIRE",null,null,null,"SPECIFIC TO THIS QUESTIONNAIRE"]
["Parameter","Value","(Valid values)",null,"Parameter","Value","(Valid values)"]
["DevelopementMode",false,"TRUE (during development)\nFALSE (For real reporting and testing)"]

{"sheet":"Specific Lists","index":15,"n_rows":19,"n_cols":23,"rows_kept":19,"cut":false,"hidden":true,"merged":[]}
["YES / NO",null,"PM SIZES",null,"AIR FILTRATION - \nVd APPROACH",null,"CROP PROVISION - MFA CLASSES",null,"CROP POLLINATION - POLLINATOR SPECIES",null,"SUMMER PERIOD LENGTH",null,"SPATIAL RESOLUTION",null,"Extent used",null,"Crop dependency coefficients",null,"Buffer zone",null,"Temperature",null,"Habitat attractiveness corrections"]
["Yes",null,"PM10",null,"Default values",null,"MF.1.1   Crops (excluding fodder crops)",null,"Short distance flyers",null,"1 month",null,"> 1 km",null,"As reported in ECOEXT questionnaire",null,"for MF1.1 crops",null,"Yes, default 150m",null,"Air temperature",null,"Yes, for linear features"]
["No",null,"PM2.5",null,"LAI-based values",null,"MF.1.1.1   Cereals ",null,"Long distance flyers",null,"2 months",null,"100 m - 1 km",null,"CORINE Land Cover accounting layers",null,"for MF1.2 crops",null,"Yes, other distance",null,"Surface temperature",null,"Yes for management practices"]
[null,null,null,null,"Other",null,"MF.1.1.2   Roots, tubers",null,"Short & long distance flyers",null,"3 months",null,"10 m - 100 m",null,"EEA Extent",null,"for all crop types",null,"No",null,"Both",null,"Yes, for both"]
[null,null,null,null,null,null,"MF.1.1.3   Sugar crops ",null,null,null,"other",null,"< 10 m",null,null,null,"with modifications",null,null,null,null,null,"No"]
[null,null,null,null,null,null,"MF.1.1.4   Pulses"]
[null,null,null,null,null,null,"MF.1.1.5   Nuts "]
[null,null,null,null,null,null,"MF.1.1.6   Oil-bearing crops "]
[null,null,null,null,null,null,"MF.1.1.7   Vegetables "]
[null,null,null,null,null,null,"MF.1.1.8   Fruits "]
[null,null,null,null,null,null,"MF.1.1.9   Fibres "]
[null,null,null,null,null,null,"MF.1.1.A   Other crops (excluding fodder crops) n.e.c."]
[null,null,null,null,null,null,"MF.1.2   Crop residues (used), fodder crops and grazed biomass"]
[null,null,null,null,null,null,"MF.1.2.1   Crop residues (used)"]
[null,null,null,null,null,null,"MF.1.2.1.1   Straw"]
[null,null,null,null,null,null,"MF.1.2.1.2   Other crop residues (sugar and fodder beet leaves, etc.)"]
[null,null,null,null,null,null,"MF.1.2.2   Fodder crops and grazed biomass"]
[null,null,null,null,null,null,"MF.1.2.2.1   Fodder crops (including biomass harvest from grassland)"]
[null,null,null,null,null,null,"MF.1.2.2.2   Grazed biomass"]

{"sheet":"Locks","index":16,"n_rows":15,"n_cols":7,"rows_kept":15,"cut":false,"hidden":true,"merged":[]}
["Sheet Name","Top Left Cell","Bottom Right Cell","Row Step","Column Step","Lock Type","Focus Back To"]
["Table 1 - Supply","G8","AY9",{"$f":"IF(ROW(INDIRECT(B2))=ROW(INDIRECT(C2)),\"999\",1)","v":1},4,"Formulas","G8"]
["Table 1 - Supply","G20","AY21",{"$f":"IF(ROW(INDIRECT(B3))=ROW(INDIRECT(C3)),\"999\",1)","v":1},4,"Formulas","G8"]
["Table 1 - Supply","G24","AY24",{"$f":"IF(ROW(INDIRECT(B4))=ROW(INDIRECT(C4)),\"999\",1)","v":"999"},4,"Formulas","G8"]
["Table 1 - Supply","G27","AY28",{"$f":"IF(ROW(INDIRECT(B5))=ROW(INDIRECT(C5)),\"999\",1)","v":1},4,"Formulas","G8"]
["Table 1 - Supply","G39","AY40",{"$f":"IF(ROW(INDIRECT(B6))=ROW(INDIRECT(C6)),\"999\",1)","v":1},4,"Formulas","G8"]
["Table 1 - Supply","G43","AY43",{"$f":"IF(ROW(INDIRECT(B7))=ROW(INDIRECT(C7)),\"999\",1)","v":"999"},4,"Formulas","G8"]
["Table 1 - Supply","BC8","BC57",{"$f":"IF(ROW(INDIRECT(B8))=ROW(INDIRECT(C8)),\"999\",1)","v":1},{"$f":"IF(COLUMN(INDIRECT(B8))=COLUMN(INDIRECT(C8)),\"999\",1)","v":"999"},"Formulas","G8"]
["Table 2 - Use","G8","W9",{"$f":"IF(ROW(INDIRECT(B9))=ROW(INDIRECT(C9)),\"999\",1)","v":1},4,"Formulas","G8"]
["Table 2 - Use","G20","W21",{"$f":"IF(ROW(INDIRECT(B10))=ROW(INDIRECT(C10)),\"999\",1)","v":1},4,"Formulas","G8"]
["Table 2 - Use","G24","W24",1,4,"Formulas","G8"]
["Table 2 - Use","G27","W28",{"$f":"IF(ROW(INDIRECT(B12))=ROW(INDIRECT(C12)),\"999\",1)","v":1},4,"Formulas","G8"]
["Table 2 - Use","G39","W40",{"$f":"IF(ROW(INDIRECT(B13))=ROW(INDIRECT(C13)),\"999\",1)","v":1},4,"Formulas","G8"]
["Table 2 - Use","G43","W43",1,4,"Formulas","G8"]
["Table 2 - Use","AA8","AA57",{"$f":"IF(ROW(INDIRECT(B15))=ROW(INDIRECT(C15)),\"999\",1)","v":1},{"$f":"IF(COLUMN(INDIRECT(B15))=COLUMN(INDIRECT(C15)),\"999\",1)","v":"999"},"Formulas","G8"]

{"sheet":"Mandatory","index":17,"n_rows":16,"n_cols":8,"rows_kept":16,"cut":false,"hidden":true,"merged":[]}
["Severity","SheetName","Top Left Cell","Bottom Right Cell","Row Step","Column Step","Empty Is Valid If Footnote Exists","Footnote Shift From Value"]
["Error","GETTING STARTED","E9","E10",{"$f":"IF(ROW(INDIRECT(C2))=ROW(INDIRECT(D2)),\"999\",1)","v":1},{"$f":"IF(COLUMN(INDIRECT(C2))=COLUMN(INDIRECT(D2)),\"999\",1)","v":"999"},"NO",999]
["Error","GETTING STARTED","D15","D17",2,{"$f":"IF(COLUMN(INDIRECT(C3))=COLUMN(INDIRECT(D3)),\"999\",1)","v":"999"},"NO",999]
["Error","GETTING STARTED","D23","D23",999,{"$f":"IF(COLUMN(INDIRECT(C4))=COLUMN(INDIRECT(D4)),\"999\",1)","v":"999"},"NO",999]
["Warning","Table 1 - Supply","G8","AM46",1,4,"NO",999]
["Warning","Table 1 - Supply","G48","AM50",1,4,"NO",999]
["Warning","Table 1 - Supply","G52","AM52",999,4,"NO",999]
["Warning","Table 1 - Supply","G55","AM56",1,4,"NO",999]
["Warning","Table 1 - Supply","AU8","AU46",{"$f":"IF(ROW(INDIRECT(C9))=ROW(INDIRECT(D9)),\"999\",1)","v":1},{"$f":"IF(COLUMN(INDIRECT(C9))=COLUMN(INDIRECT(D9)),\"999\",1)","v":"999"},"NO",999]
["Warning","Table 1 - Supply","AU48","AU50",{"$f":"IF(ROW(INDIRECT(C10))=ROW(INDIRECT(D10)),\"999\",1)","v":1},{"$f":"IF(COLUMN(INDIRECT(C10))=COLUMN(INDIRECT(D10)),\"999\",1)","v":"999"},"NO",999]
["Warning","Table 1 - Supply","AU52","AU52",{"$f":"IF(ROW(INDIRECT(C11))=ROW(INDIRECT(D11)),\"999\",1)","v":"999"},{"$f":"IF(COLUMN(INDIRECT(C11))=COLUMN(INDIRECT(D11)),\"999\",1)","v":"999"},"NO",999]
["Warning","Table 1 - Supply","AU55","AU56",{"$f":"IF(ROW(INDIRECT(C12))=ROW(INDIRECT(D12)),\"999\",1)","v":1},{"$f":"IF(COLUMN(INDIRECT(C12))=COLUMN(INDIRECT(D12)),\"999\",1)","v":"999"},"NO",999]
["Warning","Table 2 - Use","G8","W46",{"$f":"IF(ROW(INDIRECT(C13))=ROW(INDIRECT(D13)),\"999\",1)","v":1},4,"NO",999]
["Warning","Table 2 - Use","G48","W50",{"$f":"IF(ROW(INDIRECT(C14))=ROW(INDIRECT(D14)),\"999\",1)","v":1},4,"NO",999]
["Warning","Table 2 - Use","G52","W52",{"$f":"IF(ROW(INDIRECT(C15))=ROW(INDIRECT(D15)),\"999\",1)","v":"999"},4,"NO",999]
["Warning","Table 2 - Use","G55","W56",{"$f":"IF(ROW(INDIRECT(C16))=ROW(INDIRECT(D16)),\"999\",1)","v":1},4,"NO",999]

{"sheet":"IsNumeric","index":18,"n_rows":5,"n_cols":6,"rows_kept":5,"cut":false,"hidden":true,"merged":[]}
["Severity","SheetName","TopLeftCell","BottomRightCell","RowStep","ColumnStep"]
["Error","Table 1 - Supply","G8","BC57",{"$f":"IF(ROW(INDIRECT(C2))=ROW(INDIRECT(D2)),\"999\",1)","v":1},4]
["Error","Table 2 - Use","G8","AA57",{"$f":"IF(ROW(INDIRECT(C3))=ROW(INDIRECT(D3)),\"999\",1)","v":1},4]
["Error","Table 3 - Complementary","G8","G15",{"$f":"IF(ROW(INDIRECT(C4))=ROW(INDIRECT(D4)),\"999\",1)","v":1},{"$f":"IF(COLUMN(INDIRECT(C4))=COLUMN(INDIRECT(D4)),\"999\",1)","v":"999"}]
["Error","Table 4 - Carbon seq_stor","G8","S20",{"$f":"IF(ROW(INDIRECT(C5))=ROW(INDIRECT(D5)),\"999\",1)","v":1},{"$f":"IF(COLUMN(INDIRECT(C5))=COLUMN(INDIRECT(D5)),\"999\",1)","v":1}]

{"sheet":"MustNotBeNegative","index":19,"n_rows":9,"n_cols":6,"rows_kept":9,"cut":false,"hidden":true,"merged":[]}
["Severity","SheetName","TopLeftCell","BottomRightCell","RowStep","ColumnStep"]
["Error","Table 1 - Supply","G8","BC49",{"$f":"IF(ROW(INDIRECT(C2))=ROW(INDIRECT(D2)),\"999\",1)","v":1},4]
["Error","Table 1 - Supply","G52","BC57",{"$f":"IF(ROW(INDIRECT(C3))=ROW(INDIRECT(D3)),\"999\",1)","v":1},4]
["Error","Table 2 - Use","G8","AA49",{"$f":"IF(ROW(INDIRECT(C4))=ROW(INDIRECT(D4)),\"999\",1)","v":1},4]
["Error","Table 2 - Use","G52","BC57",{"$f":"IF(ROW(INDIRECT(C5))=ROW(INDIRECT(D5)),\"999\",1)","v":1},4]
["Error","Table 3 - Complementary","G8","G15",{"$f":"IF(ROW(INDIRECT(C6))=ROW(INDIRECT(D6)),\"999\",1)","v":1},{"$f":"IF(COLUMN(INDIRECT(C6))=COLUMN(INDIRECT(D6)),\"999\",1)","v":"999"}]
["Error","Table 4 - Carbon seq_stor","G8","O20",{"$f":"IF(ROW(INDIRECT(C7))=ROW(INDIRECT(D7)),\"999\",1)","v":1},{"$f":"IF(COLUMN(INDIRECT(C7))=COLUMN(INDIRECT(D7)),\"999\",1)","v":1}]
["Error","Table 4 - Carbon seq_stor","Q8","Q20",{"$f":"IF(ROW(INDIRECT(C8))=ROW(INDIRECT(D8)),\"999\",1)","v":1},{"$f":"IF(COLUMN(INDIRECT(C8))=COLUMN(INDIRECT(D8)),\"999\",1)","v":"999"}]
["Error","Table 4 - Carbon seq_stor","S8","S20",{"$f":"IF(ROW(INDIRECT(C9))=ROW(INDIRECT(D9)),\"999\",1)","v":1},{"$f":"IF(COLUMN(INDIRECT(C9))=COLUMN(INDIRECT(D9)),\"999\",1)","v":"999"}]

{"sheet":"Summations","index":20,"n_rows":124,"n_cols":13,"rows_kept":124,"cut":false,"hidden":true,"merged":[[25,5,25,6]]}
["Severity","Sheet Name","List of Cells\n (first block)","First Total Cell (first block)","Last Total Cell\n(Last block)","Row Block Repetition Step","Column Block Repetition Step","Greater or Equal","Valid Tolerance","Only if all data is available","Non compliance Is Valid If Footnote Exists","Footnote Shift From Value","Display text in error"]
["Error","Table 1 - Supply","G9,G20","G8","BC8",999,4,"EQ",0.1,"YES","NO",999,"Crop provision supply total per ecosystem type"]
["Error","Table 1 - Supply","G10,G11,G12,G13,G14,G15,G16,G17,G18,G19","G9","BC9",999,4,"EQ",0.1,"YES","NO",999,"Crop provision supply total for MF1.1 components"]
["Error","Table 1 - Supply","G21,G24","G20","BC20",999,4,"EQ",0.1,"YES","NO",999,"Crop provision supply total for MF1.2 = MF1.2.1 + MF1.2.2"]
["Error","Table 1 - Supply","G22,G23","G21","BC21",999,4,"EQ",0.1,"YES","NO",999,"Crop provision supply total for MF1.2.1 = MF1.2.1.1 + MF1.2.1.2"]
["Error","Table 1 - Supply","G25,G26","G24","BC24",999,4,"EQ",0.1,"YES","NO",999,"Crop provision supply total for MF1.2.2 = MF1.2.2.1 + MF1.2.2.2"]
["Error","Table 1 - Supply","G28,G39","G27","BC27",999,4,"EQ",0.1,"YES","NO",999,"Crop pollination supply total per ecosystem type "]
["Error","Table 1 - Supply","G29,G30,G31,G32,G33,G34,G35,G36,G37,G38","G28","BC28",999,4,"EQ",0.1,"YES","NO",999,"Crop pollination supply total for MF1.1 components"]
["Error","Table 1 - Supply","G40,G43","G39","BC39",999,4,"EQ",0.1,"YES","NO",999,"Crop pollination supply total for MF1.2 = MF1.2.1 + MF1.2.2 "]
["Error","Table 1 - Supply","G41,G42","G40","BC40",999,4,"EQ",0.1,"YES","NO",999,"Crop pollination supply total for MF1.2.1 = MF1.2.1.1 + MF1.2.1.2"]
["Error","Table 1 - Supply","G44,G45","G43","BC43",999,4,"EQ",0.1,"YES","NO",999,"Crop pollination supply total for MF1.2.2 = MF1.2.2.1 + MF1.2.2.2"]
["Error","Table 1 - Supply","G8,K8,O8,S8,W8,AA8,AE8,AI8,AM8,AQ8,AU8,AY8","BC88","BC57",4,999,"EQ",0.1,"YES","NO",999,"Total supply must be equal to the sum of flows supplied by ecosystem types"]
["Error","Table 2 - Use","G9,G20","G8","AA8",999,4,"EQ",0.1,"YES","NO",999,"Crop provision use total per sector"]
["Error","Table 2 - Use","G10,G11,G12,G13,G14,G15,G16,G17,G18,G19","G9","AA9",999,4,"EQ",0.1,"YES","NO",999,"Crop provision use total for MF1.1 components"]
["Error","Table 2 - Use","G21,G24","G20","AA20",999,4,"EQ",0.1,"YES","NO",999,"Crop provision use total for MF1.2 = MF1.2.1 + MF1.2.2"]
["Error","Table 2 - Use","G22,G23","G21","AA21",999,4,"EQ",0.1,"YES","NO",999,"Crop provision use total for MF1.2.1 = MF1.2.1.1 + MF1.2.1.2"]
["Error","Table 2 - Use","G25,G26","G24","AA24",999,4,"EQ",0.1,"YES","NO",999,"Crop provision use total for MF1.2.2 = MF1.2.2.1 + MF1.2.2.2"]
["Error","Table 2 - Use","G28,G39","G27","AA27",999,4,"EQ",0.1,"YES","NO",999,"Crop pollination use total per sector (voluntary)"]
["Error","Table 2 - Use","G29,G30,G31,G32,G33,G34,G35,G36,G37,G38","G28","AA28",999,4,"EQ",0.1,"YES","NO",999,"Crop pollination use total for MF1.1 components"]
["Error","Table 2 - Use","G40,G43","G39","AA39",999,4,"EQ",0.1,"YES","NO",999,"Crop pollination use total for MF1.2 = MF1.2.1 + MF1.2.2"]
["Error","Table 2 - Use","G41,G42","G40","AA40",999,4,"EQ",0.1,"YES","NO",999,"Crop pollination use total for MF1.2.1 = MF1.2.1.1 + MF1.2.1.2"]
["Error","Table 2 - Use","G44,G45","G43","AA43",999,4,"EQ",0.1,"YES","NO",999,"Crop pollination use total for MF1.2.2 = MF1.2.2.1 + MF1.2.2.2"]
["Error","Table 2 - Use","G8,K8,O8,S8,W8","AA8","AA57",4,999,"EQ",0.1,"YES","NO",999,"Total use must be equal to the sum of uses across use types"]
["Error","Table 4 - Carbon seq_stor","G8,H8,I8,J8,K8,L8,M8,N8,O8,Q8","S8","S20",1,999,"EQ",0.1,"YES","NO",999,"Table 4 - totals across ecosystem types"]
[]
[null,null,null,null,null,"Must be > 0 for a not relevant dimension. Else you get an infinite loop",null,"EQ or GE or GT","GT does not admit Tolerance","NO or YES",null,"Not Applicable if the previous column is \"NO\""]
[]
["DESCRIPTION"]
["This sheet is meant to define the validation for summations in a row or in a column."]
["- A block is defined as a sequence of addendums in the same row or column"]
["- Only the first block must be explicitly defined"]
["- The block can be repeated at regular patterns through rows and columns at the same time"]
[]
[]
["PARAMETRES"]
["SheetName",null,"Name of the sheet to be validated (e.g. Table 1)"]
["List of Cells\n (first block)",null,"First cell in the first block to be validated"]
["First TotalCell (first block)"]
["Last TotalCell (Last block)"]
["Row Block Repetition Step"]
["Column Block Repetition Step"]
["Greater or Equal"]
["Valid Threshold"]
["Only if all data is available"]
["Display text in error",null,"Valid values: EQ (Strictly equal); GE (Greater or Equal); GT (Strictly greater - No threshold will be considered)"]
[]
[]
[]
[]
[]
[]
[]
[]
[]
[]
[]
[]
[]
[]
[]
[]
[]
[]
[]
[]
[]
[]
[]
[]
[]
[]
[]
[]
[]
[]
[]
[]
[]
[]
[]
[]
[]
[]
[]
[]
[]
[]
[]
[]
[]
[]
[]
[]
[]
[]
[]
[]
[]
[]
[]
[]
[]
[]
[]
[]
[]
[]
[]
[]
[]
[]
[]
[]
[]
[]
[]
[]
[]
[]
[]
[]
[]
[]
[null,null,null,{"$f":"SUM(Summations!B3º)","v":{"$error":"#NAME?"}}]

{"sheet":"x StandardFootnotes","index":21,"n_rows":2,"n_cols":7,"rows_kept":2,"cut":false,"hidden":true,"merged":[]}
["Severity","SheetName","Top Left Cell","Bottom Right Cell","Row Step","Column Step","Footnote type \n(CONF/STATUS)"]
["Error","Table_1","H8","AJ18",1,4,"STATUS"]

{"sheet":"x ContentInHiddenSheets","index":22,"n_rows":2,"n_cols":6,"rows_kept":2,"cut":false,"hidden":true,"merged":[]}
["Severity","SheetName","Top Left Cell","Bottom Right Cell","Row Step","Column Step"]
["Error","Table_1","G8","AL18",1,1]

{"sheet":"x Between2Cells","index":23,"n_rows":8,"n_cols":8,"rows_kept":8,"cut":false,"hidden":true,"merged":[]}
["Severity","SheetName","Top Left Cell","Bottom Right Cell","Row Step","Column Step","Cell A\n(first block)","Cell B\n(first block)"]
["Error","Table_1","G8","G18",1,999,"K8","O8"]
[]
[]
[]
[]
[]
["The tested cell must have a value in between CellA and CellB values, disregarding which value (CellA or CellB) is higher."]

{"sheet":"x ForbiddenStrings","index":24,"n_rows":5,"n_cols":8,"rows_kept":5,"cut":false,"hidden":true,"merged":[]}
["Severity","SheetName","TopLeftCell","BottomRightCell","RowStep","ColumnStep","ForbiddenString","Display text in error"]
["Warning","Footnotes list","E9","E58",1,999,"not available","Please verify the explanatory note sufficiently explains why the data is not available"]
["Warning","Footnotes list","E9","E58",1,999,"not reported","Please verify the explanatory note sufficiently explains why the data is not available"]
["Warning","Footnotes list","E9","E58",1,999,"unavailable data","Please verify the explanatory note sufficiently explains why the data is not available"]
["Warning","Footnotes list","E9","E58",1,999,"no data available","Please verify the explanatory note sufficiently explains why the data is not available"]

{"sheet":"x MandatoryAtLeast","index":25,"n_rows":17,"n_cols":6,"rows_kept":17,"cut":false,"hidden":true,"merged":[]}
["Severity","Sheet Name","List of Cells","Mandatory at least X cells","Mandatory at most X cells","Display text in error"]
["Error","Table_1","G8,G9,G10,G15,G16,G17",2,999,"At least two cells must be filled-in"]
["Error","Table_1","K8,O8,S8",1,999]
["Error","Table_3","AA10",1,999]
[]
[]
[]
["DESCRIPTION"]
["This sheet is meant to define the list of cells, of which at least one (or more, as indicated in column D) must be filled-in"]
[]
[]
["PARAMETRES"]
["SheetName",null,"Name of the sheet to be validated (e.g. Table 1)"]
["List of Cells",null,"First cell in the first block to be validated"]
["Mandatory at least X cells",null,"Number of cells in the list that, at least, must be filled in"]
["Mandatory at most Y cells",null,"Maximum number of cells in the list that must be filled in"]
["Display text in error",null,"Valid values: EQ (Strictly equal); GE (Greater or Equal); GT (Strictly greater - No threshold will be considered)"]

{"sheet":"x Thresholds","index":26,"n_rows":2,"n_cols":10,"rows_kept":2,"cut":false,"hidden":true,"merged":[]}
["Severity","SheetName","Top Left Cell","Bottom Right Cell","Row Step","Column Step","Lower value","Upper value","Error Is Valid If Footnote Exists","Footnote Shift From Value"]
["Error","Table_2","G8","J14",1,1,0,100,"NO",999]

{"sheet":"x IsFormula","index":27,"n_rows":7,"n_cols":6,"rows_kept":7,"cut":false,"hidden":true,"merged":[]}
["Severity","Sheet Name","Top Left Cell","Bottom Right Cell","Row Step","Column Step"]
["Info","Table_1","G18","AI18",999,4]
["Info","Table_1","G10","W10",999,4]
["Info","Table_1","AE10","AI10",999,4]
["Info","Table_1a","G13","K13",999,4]
["Info","Table_1a","G16","K16",999,4]
["Info","Table_3","G17","AQ17",999,4]

{"sheet":"x FootnoteContent","index":28,"n_rows":4,"n_cols":7,"rows_kept":4,"cut":false,"hidden":true,"merged":[]}
["Severity","SheetName","TopLeftCell","BottomRightCell","RowStep","ColumnStep","DistanceFromReferenceToText"]
["Error","Table_1","I8","AK18",1,4,1]
["Error","Table_1a","I8","M16",1,4,1]
["Error","Table_3","I10","AS17",1,4,1]